Transaction Date,Local Authority Department,Beneficiary,Purpose of Expenditure,Amount (excluding VAT),Non Recoverable VAT,Merchant Category
 01-12-2020,Adults,Marlow,Residential Placements - Private Contractors Payment,6083.76,0.00,COMMERCIAL SUPPLIER 
 01-12-2020,Adults,Marlow,Residential Placements - Private Contractors Payment,1930.64,0.00,COMMERCIAL SUPPLIER 
 01-12-2020,Adults,IJB Healthcare Ltd,Home Care - Private Contractors Payment,1137.75,0.00,COMMERCIAL SUPPLIER 
 01-12-2020,Adults,Essex County Council_a,Residential Placements - Private Contractors Payment,2919.13,0.00,LOCAL AUTHORITY SERVICES 
 01-12-2020,Adults,Sequence Care Group - Oakdene House,Residential Placements - Private Contractors Payment,1199.61,0.00,COMMERCIAL SUPPLIER 
 01-12-2020,Adults,Sequence Care Group - Oakdene House,Residential Placements - Private Contractors Payment,8397.28,0.00,COMMERCIAL SUPPLIER 
 01-12-2020,Adults,Osmond Group Ltd T/A Osmond Ergonomics,"Purchase - Equipment, Furniture And Materials",962.90,0.00,COMMERCIAL SUPPLIER 
 01-12-2020,Adults,Phoenix Care Havering Ltd,Other Short Term Support,2337.72,0.00,COMMERCIAL SUPPLIER 
 01-12-2020,Adults,"Age Uk Redbridge, Barking and Havering Limited",Payments To Voluntary Sector,3306.17,0.00,COMMERCIAL SUPPLIER 
 01-12-2020,Adults,"Age Uk Redbridge, Barking and Havering Limited",Payments To Voluntary Sector,3306.17,0.00,COMMERCIAL SUPPLIER 
 02-12-2020,Adults,The Sycamore Trust,Payments To Voluntary Sector,3333.33,0.00,COMMERCIAL SUPPLIER 
 02-12-2020,Adults,The Sycamore Trust,Payments To Voluntary Sector,3333.34,0.00,COMMERCIAL SUPPLIER 
 02-12-2020,Adults,Three Angel Healthcare Ltd,Other Short Term Support,2517.55,0.00,COMMERCIAL SUPPLIER 
 02-12-2020,Adults,Peabody Trust,Private Contractors Payment - Other,46444.97,0.00,NON COMMERCIAL SUPPLIER 
 03-12-2020,Adults,Independent People Homecare Services,Home Care - Private Contractors Payment,4743.00,0.00,NON COMMERCIAL SUPPLIER 
 03-12-2020,Adults,Havering Mind,Payments To Voluntary Sector,3363.17,0.00,NON COMMERCIAL SUPPLIER 
 03-12-2020,Adults,Havering Mind,Payments To Voluntary Sector,3346.08,0.00,NON COMMERCIAL SUPPLIER 
 03-12-2020,Adults,Castle Water Limited,Private Contractors Payment - Other,994.72,0.00,COMMERCIAL SUPPLIER 
 03-12-2020,Adults,Osborne Partnership,Daycare - Private Contractors Payment,1380.00,0.00,COMMERCIAL SUPPLIER 
 03-12-2020,Adults,Osborne Partnership,Daycare - Private Contractors Payment,1380.00,0.00,COMMERCIAL SUPPLIER 
 03-12-2020,Adults,Cornerstone Care Services,Other Short Term Support,3596.50,0.00,COMMERCIAL SUPPLIER 
 03-12-2020,Adults,Hospiva Care & Associates Agency Ltd_a,Other Short Term Support,6114.05,0.00,COMMERCIAL SUPPLIER 
 03-12-2020,Adults,Peabody Trust,Private Contractors Payment - Other,3213.92,0.00,NON COMMERCIAL SUPPLIER 
 04-12-2020,Adults,Independent Living Agency (Non Direct Payments),Home Care - Private Contractors Payment,680.00,0.00,COMMERCIAL SUPPLIER 
 04-12-2020,Adults,Headway East London,Daycare - Private Contractors Payment,1008.00,0.00,COMMERCIAL SUPPLIER 
 04-12-2020,Adults,Headway East London,Daycare - Private Contractors Payment,1008.00,0.00,COMMERCIAL SUPPLIER 
 04-12-2020,Adults,The Cedars,Other Short Term Support,6000.00,0.00,COMMERCIAL SUPPLIER 
 04-12-2020,Adults,Impact Care Limited,Other Short Term Support,16543.90,0.00,COMMERCIAL SUPPLIER 
 04-12-2020,Adults,Allied Health Services Ltd,Other Short Term Support,8991.25,0.00,COMMERCIAL SUPPLIER 
 06-12-2020,Adults,Hospiva Care & Associates Agency Ltd_a,Home Care - Private Contractors Payment,1282.96,0.00,COMMERCIAL SUPPLIER 
 06-12-2020,Adults,Hospiva Care & Associates Agency Ltd_a,Home Care - Private Contractors Payment,2118.25,0.00,COMMERCIAL SUPPLIER 
 06-12-2020,Adults,Hospiva Care & Associates Agency Ltd_a,Home Care - Private Contractors Payment,2122.80,0.00,COMMERCIAL SUPPLIER 
 06-12-2020,Adults,Hospiva Care & Associates Agency Ltd_a,Home Care - Private Contractors Payment,1231.09,0.00,COMMERCIAL SUPPLIER 
 06-12-2020,Adults,Hospiva Care & Associates Agency Ltd_a,Home Care - Private Contractors Payment,1247.78,0.00,COMMERCIAL SUPPLIER 
 06-12-2020,Adults,Hospiva Care & Associates Agency Ltd_a,Home Care - Private Contractors Payment,510.76,0.00,COMMERCIAL SUPPLIER 
 06-12-2020,Adults,Hospiva Care & Associates Agency Ltd_a,Home Care - Private Contractors Payment,1035.16,0.00,COMMERCIAL SUPPLIER 
 06-12-2020,Adults,Hospiva Care & Associates Agency Ltd_a,Home Care - Private Contractors Payment,1237.77,0.00,COMMERCIAL SUPPLIER 
 06-12-2020,Adults,Hospiva Care & Associates Agency Ltd_a,Home Care - Private Contractors Payment,1237.77,0.00,COMMERCIAL SUPPLIER 
 06-12-2020,Adults,Hospiva Care & Associates Agency Ltd_a,Home Care - Private Contractors Payment,1113.41,0.00,COMMERCIAL SUPPLIER 
 06-12-2020,Adults,Hospiva Care & Associates Agency Ltd_a,Home Care - Private Contractors Payment,760.37,0.00,COMMERCIAL SUPPLIER 
 06-12-2020,Adults,Hospiva Care & Associates Agency Ltd_a,Home Care - Private Contractors Payment,796.92,0.00,COMMERCIAL SUPPLIER 
 06-12-2020,Adults,Hospiva Care & Associates Agency Ltd_a,Home Care - Private Contractors Payment,503.48,0.00,COMMERCIAL SUPPLIER 
 06-12-2020,Adults,Hospiva Care & Associates Agency Ltd_a,Home Care - Private Contractors Payment,509.54,0.00,COMMERCIAL SUPPLIER 
 06-12-2020,Adults,Hospiva Care & Associates Agency Ltd_a,Home Care - Private Contractors Payment,1280.84,0.00,COMMERCIAL SUPPLIER 
 06-12-2020,Adults,Hospiva Care & Associates Agency Ltd_a,Home Care - Private Contractors Payment,501.66,0.00,COMMERCIAL SUPPLIER 
 06-12-2020,Adults,Homestead Care Service,Home Care - Private Contractors Payment,1158.00,0.00,COMMERCIAL SUPPLIER 
 06-12-2020,Adults,Homestead Care Service,Home Care - Private Contractors Payment,1007.56,0.00,COMMERCIAL SUPPLIER 
 06-12-2020,Adults,Homestead Care Service,Home Care - Private Contractors Payment,1012.72,0.00,COMMERCIAL SUPPLIER 
 06-12-2020,Adults,Homestead Care Service,Home Care - Private Contractors Payment,576.27,0.00,COMMERCIAL SUPPLIER 
 06-12-2020,Adults,Homestead Care Service,Home Care - Private Contractors Payment,670.60,0.00,COMMERCIAL SUPPLIER 
 06-12-2020,Adults,Homestead Care Service,Home Care - Private Contractors Payment,857.43,0.00,COMMERCIAL SUPPLIER 
 06-12-2020,Adults,Homestead Care Service,Home Care - Private Contractors Payment,857.43,0.00,COMMERCIAL SUPPLIER 
 06-12-2020,Adults,Homestead Care Service,Home Care - Private Contractors Payment,1247.17,0.00,COMMERCIAL SUPPLIER 
 06-12-2020,Adults,Homestead Care Service,Home Care - Private Contractors Payment,851.97,0.00,COMMERCIAL SUPPLIER 
 06-12-2020,Adults,Homestead Care Service,Home Care - Private Contractors Payment,849.24,0.00,COMMERCIAL SUPPLIER 
 06-12-2020,Adults,Homestead Care Service,Home Care - Private Contractors Payment,563.23,0.00,COMMERCIAL SUPPLIER 
 06-12-2020,Adults,Homestead Care Service,Home Care - Private Contractors Payment,1185.30,0.00,COMMERCIAL SUPPLIER 
 06-12-2020,Adults,Homestead Care Service,Home Care - Private Contractors Payment,504.99,0.00,COMMERCIAL SUPPLIER 
 06-12-2020,Adults,Homestead Care Service,Home Care - Private Contractors Payment,986.94,0.00,COMMERCIAL SUPPLIER 
 06-12-2020,Adults,Homestead Care Service,Home Care - Private Contractors Payment,993.91,0.00,COMMERCIAL SUPPLIER 
 06-12-2020,Adults,Homestead Care Service,Home Care - Private Contractors Payment,865.92,0.00,COMMERCIAL SUPPLIER 
 06-12-2020,Adults,Homestead Care Service,Home Care - Private Contractors Payment,867.74,0.00,COMMERCIAL SUPPLIER 
 06-12-2020,Adults,Homestead Care Service,Home Care - Private Contractors Payment,1007.87,0.00,COMMERCIAL SUPPLIER 
 06-12-2020,Adults,Homestead Care Service,Home Care - Private Contractors Payment,912.63,0.00,COMMERCIAL SUPPLIER 
 06-12-2020,Adults,Homestead Care Service,Home Care - Private Contractors Payment,922.03,0.00,COMMERCIAL SUPPLIER 
 06-12-2020,Adults,Homestead Care Service,Home Care - Private Contractors Payment,978.45,0.00,COMMERCIAL SUPPLIER 
 06-12-2020,Adults,Homestead Care Service,Home Care - Private Contractors Payment,988.15,0.00,COMMERCIAL SUPPLIER 
 06-12-2020,Adults,Homestead Care Service,Home Care - Private Contractors Payment,559.29,0.00,COMMERCIAL SUPPLIER 
 06-12-2020,Adults,Homestead Care Service,Home Care - Private Contractors Payment,559.59,0.00,COMMERCIAL SUPPLIER 
 06-12-2020,Adults,Homestead Care Service,Home Care - Private Contractors Payment,863.80,0.00,COMMERCIAL SUPPLIER 
 06-12-2020,Adults,Homestead Care Service,Home Care - Private Contractors Payment,1145.56,0.00,COMMERCIAL SUPPLIER 
 06-12-2020,Adults,Homestead Care Service,Home Care - Private Contractors Payment,828.62,0.00,COMMERCIAL SUPPLIER 
 06-12-2020,Adults,Homestead Care Service,Home Care - Private Contractors Payment,829.22,0.00,COMMERCIAL SUPPLIER 
 06-12-2020,Adults,Homestead Care Service,Home Care - Private Contractors Payment,672.11,0.00,COMMERCIAL SUPPLIER 
 06-12-2020,Adults,Homestead Care Service,Home Care - Private Contractors Payment,1259.00,0.00,COMMERCIAL SUPPLIER 
 06-12-2020,Adults,Homestead Care Service,Home Care - Private Contractors Payment,511.67,0.00,COMMERCIAL SUPPLIER 
 06-12-2020,Adults,Homestead Care Service,Home Care - Private Contractors Payment,955.70,0.00,COMMERCIAL SUPPLIER 
 06-12-2020,Adults,Homestead Care Service,Home Care - Private Contractors Payment,959.64,0.00,COMMERCIAL SUPPLIER 
 06-12-2020,Adults,Homestead Care Service,Home Care - Private Contractors Payment,900.50,0.00,COMMERCIAL SUPPLIER 
 06-12-2020,Adults,Homestead Care Service,Home Care - Private Contractors Payment,822.85,0.00,COMMERCIAL SUPPLIER 
 06-12-2020,Adults,Homestead Care Service,Home Care - Private Contractors Payment,823.76,0.00,COMMERCIAL SUPPLIER 
 06-12-2020,Adults,Homestead Care Service,Home Care - Private Contractors Payment,604.78,0.00,COMMERCIAL SUPPLIER 
 06-12-2020,Adults,Homestead Care Service,Home Care - Private Contractors Payment,1098.86,0.00,COMMERCIAL SUPPLIER 
 06-12-2020,Adults,Homestead Care Service,Home Care - Private Contractors Payment,541.09,0.00,COMMERCIAL SUPPLIER 
 06-12-2020,Adults,Homestead Care Service,Home Care - Private Contractors Payment,1144.96,0.00,COMMERCIAL SUPPLIER 
 06-12-2020,Adults,Homestead Care Service,Home Care - Private Contractors Payment,799.80,0.00,COMMERCIAL SUPPLIER 
 06-12-2020,Adults,Homestead Care Service,Home Care - Private Contractors Payment,801.02,0.00,COMMERCIAL SUPPLIER 
 06-12-2020,Adults,Homestead Care Service,Home Care - Private Contractors Payment,973.29,0.00,COMMERCIAL SUPPLIER 
 06-12-2020,Adults,Homestead Care Service,Home Care - Private Contractors Payment,897.77,0.00,COMMERCIAL SUPPLIER 
 06-12-2020,Adults,Homestead Care Service,Home Care - Private Contractors Payment,1081.87,0.00,COMMERCIAL SUPPLIER 
 06-12-2020,Adults,Homestead Care Service,Home Care - Private Contractors Payment,945.39,0.00,COMMERCIAL SUPPLIER 
 06-12-2020,Adults,Homestead Care Service,Home Care - Private Contractors Payment,948.12,0.00,COMMERCIAL SUPPLIER 
 06-12-2020,Adults,Homestead Care Service,Home Care - Private Contractors Payment,727.92,0.00,COMMERCIAL SUPPLIER 
 06-12-2020,Adults,Homestead Care Service,Home Care - Private Contractors Payment,846.81,0.00,COMMERCIAL SUPPLIER 
 06-12-2020,Adults,Homestead Care Service,Home Care - Private Contractors Payment,854.40,0.00,COMMERCIAL SUPPLIER 
 06-12-2020,Adults,Homestead Care Service,Home Care - Private Contractors Payment,862.28,0.00,COMMERCIAL SUPPLIER 
 06-12-2020,Adults,Homestead Care Service,Home Care - Private Contractors Payment,862.59,0.00,COMMERCIAL SUPPLIER 
 06-12-2020,Adults,Homestead Care Service,Home Care - Private Contractors Payment,661.80,0.00,COMMERCIAL SUPPLIER 
 06-12-2020,Adults,Homestead Care Service,Home Care - Private Contractors Payment,874.41,0.00,COMMERCIAL SUPPLIER 
 06-12-2020,Adults,Homestead Care Service,Home Care - Private Contractors Payment,877.75,0.00,COMMERCIAL SUPPLIER 
 06-12-2020,Adults,Homestead Care Service,Home Care - Private Contractors Payment,1063.98,0.00,COMMERCIAL SUPPLIER 
 06-12-2020,Adults,Homestead Care Service,Home Care - Private Contractors Payment,883.51,0.00,COMMERCIAL SUPPLIER 
 06-12-2020,Adults,Homestead Care Service,Home Care - Private Contractors Payment,806.78,0.00,COMMERCIAL SUPPLIER 
 06-12-2020,Adults,Homestead Care Service,Home Care - Private Contractors Payment,1039.41,0.00,COMMERCIAL SUPPLIER 
 06-12-2020,Adults,Homestead Care Service,Home Care - Private Contractors Payment,1043.66,0.00,COMMERCIAL SUPPLIER 
 06-12-2020,Adults,Homestead Care Service,Home Care - Private Contractors Payment,878.66,0.00,COMMERCIAL SUPPLIER 
 06-12-2020,Adults,Homestead Care Service,Home Care - Private Contractors Payment,1091.58,0.00,COMMERCIAL SUPPLIER 
 06-12-2020,Adults,Homestead Care Service,Home Care - Private Contractors Payment,853.49,0.00,COMMERCIAL SUPPLIER 
 06-12-2020,Adults,Homestead Care Service,Home Care - Private Contractors Payment,925.97,0.00,COMMERCIAL SUPPLIER 
 06-12-2020,Adults,Homestead Care Service,Home Care - Private Contractors Payment,831.04,0.00,COMMERCIAL SUPPLIER 
 06-12-2020,Adults,Homestead Care Service,Home Care - Private Contractors Payment,855.61,0.00,COMMERCIAL SUPPLIER 
 06-12-2020,Adults,Homestead Care Service,Home Care - Private Contractors Payment,558.38,0.00,COMMERCIAL SUPPLIER 
 06-12-2020,Adults,Homestead Care Service,Home Care - Private Contractors Payment,1037.59,0.00,COMMERCIAL SUPPLIER 
 06-12-2020,Adults,Homestead Care Service,Home Care - Private Contractors Payment,964.19,0.00,COMMERCIAL SUPPLIER 
 06-12-2020,Adults,Homestead Care Service,Home Care - Private Contractors Payment,842.87,0.00,COMMERCIAL SUPPLIER 
 06-12-2020,Adults,Homestead Care Service,Home Care - Private Contractors Payment,1145.26,0.00,COMMERCIAL SUPPLIER 
 06-12-2020,Adults,Homestead Care Service,Home Care - Private Contractors Payment,899.28,0.00,COMMERCIAL SUPPLIER 
 06-12-2020,Adults,Homestead Care Service,Home Care - Private Contractors Payment,812.24,0.00,COMMERCIAL SUPPLIER 
 06-12-2020,Adults,Homestead Care Service,Home Care - Private Contractors Payment,1089.15,0.00,COMMERCIAL SUPPLIER 
 06-12-2020,Adults,Homestead Care Service,Home Care - Private Contractors Payment,1412.77,0.00,COMMERCIAL SUPPLIER 
 06-12-2020,Adults,Homestead Care Service,Home Care - Private Contractors Payment,1011.20,0.00,COMMERCIAL SUPPLIER 
 06-12-2020,Adults,Homestead Care Service,Home Care - Private Contractors Payment,2360.28,0.00,COMMERCIAL SUPPLIER 
 06-12-2020,Adults,Homestead Care Service,Home Care - Private Contractors Payment,574.75,0.00,COMMERCIAL SUPPLIER 
 06-12-2020,Adults,Homestead Care Service,Home Care - Private Contractors Payment,521.68,0.00,COMMERCIAL SUPPLIER 
 06-12-2020,Adults,Homestead Care Service,Home Care - Private Contractors Payment,530.78,0.00,COMMERCIAL SUPPLIER 
 06-12-2020,Adults,Homestead Care Service,Home Care - Private Contractors Payment,890.19,0.00,COMMERCIAL SUPPLIER 
 06-12-2020,Adults,Homestead Care Service,Home Care - Private Contractors Payment,898.37,0.00,COMMERCIAL SUPPLIER 
 06-12-2020,Adults,Homestead Care Service,Home Care - Private Contractors Payment,890.19,0.00,COMMERCIAL SUPPLIER 
 06-12-2020,Adults,Homestead Care Service,Home Care - Private Contractors Payment,855.61,0.00,COMMERCIAL SUPPLIER 
 06-12-2020,Adults,Homestead Care Service,Home Care - Private Contractors Payment,551.10,0.00,COMMERCIAL SUPPLIER 
 06-12-2020,Adults,Homestead Care Service,Home Care - Private Contractors Payment,814.06,0.00,COMMERCIAL SUPPLIER 
 06-12-2020,Adults,Homestead Care Service,Home Care - Private Contractors Payment,876.23,0.00,COMMERCIAL SUPPLIER 
 06-12-2020,Adults,Homestead Care Service,Home Care - Private Contractors Payment,880.48,0.00,COMMERCIAL SUPPLIER 
 06-12-2020,Adults,Homestead Care Service,Home Care - Private Contractors Payment,846.21,0.00,COMMERCIAL SUPPLIER 
 06-12-2020,Adults,Homestead Care Service,Home Care - Private Contractors Payment,959.94,0.00,COMMERCIAL SUPPLIER 
 06-12-2020,Adults,Homestead Care Service,Home Care - Private Contractors Payment,844.69,0.00,COMMERCIAL SUPPLIER 
 06-12-2020,Adults,Homestead Care Service,Home Care - Private Contractors Payment,847.42,0.00,COMMERCIAL SUPPLIER 
 06-12-2020,Adults,Homestead Care Service,Home Care - Private Contractors Payment,986.94,0.00,COMMERCIAL SUPPLIER 
 06-12-2020,Adults,Homestead Care Service,Home Care - Private Contractors Payment,988.15,0.00,COMMERCIAL SUPPLIER 
 06-12-2020,Adults,Homestead Care Service,Home Care - Private Contractors Payment,869.26,0.00,COMMERCIAL SUPPLIER 
 06-12-2020,Adults,Homestead Care Service,Home Care - Private Contractors Payment,624.57,0.00,COMMERCIAL SUPPLIER 
 06-12-2020,Adults,Homestead Care Service,Home Care - Private Contractors Payment,731.56,0.00,COMMERCIAL SUPPLIER 
 06-12-2020,Adults,Homestead Care Service,Home Care - Private Contractors Payment,649.12,0.00,COMMERCIAL SUPPLIER 
 06-12-2020,Adults,Homestead Care Service,Home Care - Private Contractors Payment,683.33,0.00,COMMERCIAL SUPPLIER 
 06-12-2020,Adults,Homestead Care Service,Home Care - Private Contractors Payment,690.61,0.00,COMMERCIAL SUPPLIER 
 06-12-2020,Adults,Homestead Care Service,Home Care - Private Contractors Payment,564.14,0.00,COMMERCIAL SUPPLIER 
 06-12-2020,Adults,Homestead Care Service,Home Care - Private Contractors Payment,661.19,0.00,COMMERCIAL SUPPLIER 
 06-12-2020,Adults,Homestead Care Service,Home Care - Private Contractors Payment,864.41,0.00,COMMERCIAL SUPPLIER 
 06-12-2020,Adults,Homestead Care Service,Home Care - Private Contractors Payment,867.44,0.00,COMMERCIAL SUPPLIER 
 06-12-2020,Adults,Homestead Care Service,Home Care - Private Contractors Payment,929.01,0.00,COMMERCIAL SUPPLIER 
 06-12-2020,Adults,Homestead Care Service,Home Care - Private Contractors Payment,616.00,0.00,COMMERCIAL SUPPLIER 
 06-12-2020,Adults,Homestead Care Service,Home Care - Private Contractors Payment,884.73,0.00,COMMERCIAL SUPPLIER 
 06-12-2020,Adults,Homestead Care Service,Home Care - Private Contractors Payment,563.53,0.00,COMMERCIAL SUPPLIER 
 06-12-2020,Adults,Homestead Care Service,Home Care - Private Contractors Payment,563.83,0.00,COMMERCIAL SUPPLIER 
 06-12-2020,Adults,Homestead Care Service,Home Care - Private Contractors Payment,921.43,0.00,COMMERCIAL SUPPLIER 
 06-12-2020,Adults,Homestead Care Service,Home Care - Private Contractors Payment,791.61,0.00,COMMERCIAL SUPPLIER 
 06-12-2020,Adults,Homestead Care Service,Home Care - Private Contractors Payment,852.58,0.00,COMMERCIAL SUPPLIER 
 06-12-2020,Adults,Homestead Care Service,Home Care - Private Contractors Payment,852.88,0.00,COMMERCIAL SUPPLIER 
 06-12-2020,Adults,Homestead Care Service,Home Care - Private Contractors Payment,900.19,0.00,COMMERCIAL SUPPLIER 
 06-12-2020,Adults,Homestead Care Service,Home Care - Private Contractors Payment,573.54,0.00,COMMERCIAL SUPPLIER 
 06-12-2020,Adults,Homestead Care Service,Home Care - Private Contractors Payment,575.97,0.00,COMMERCIAL SUPPLIER 
 06-12-2020,Adults,Homestead Care Service,Home Care - Private Contractors Payment,723.98,0.00,COMMERCIAL SUPPLIER 
 06-12-2020,Adults,Vibrance Outreach,Home Care - Private Contractors Payment,7687.20,0.00,COMMERCIAL SUPPLIER 
 06-12-2020,Adults,Vibrance Outreach,Daycare - Private Contractors Payment,1573.47,0.00,COMMERCIAL SUPPLIER 
 06-12-2020,Adults,Optimal Care Services Ltd,Supported Other Accommodation - Private Contractors Payment,3597.84,0.00,COMMERCIAL SUPPLIER 
 06-12-2020,Adults,Optimal Care Services Ltd,Supported Other Accommodation - Private Contractors Payment,5781.36,0.00,COMMERCIAL SUPPLIER 
 06-12-2020,Adults,Optimal Care Services Ltd,Supported Other Accommodation - Private Contractors Payment,7033.12,0.00,COMMERCIAL SUPPLIER 
 06-12-2020,Adults,London Homecare Ltd,Home Care - Private Contractors Payment,2110.97,0.00,COMMERCIAL SUPPLIER 
 06-12-2020,Adults,London Homecare Ltd,Home Care - Private Contractors Payment,764.32,0.00,COMMERCIAL SUPPLIER 
 06-12-2020,Adults,London Homecare Ltd,Home Care - Private Contractors Payment,1146.47,0.00,COMMERCIAL SUPPLIER 
 06-12-2020,Adults,London Homecare Ltd,Home Care - Private Contractors Payment,1146.47,0.00,COMMERCIAL SUPPLIER 
 06-12-2020,Adults,Westminster Homecare Ltd_a,Home Care - Private Contractors Payment,1154.06,0.00,COMMERCIAL SUPPLIER 
 06-12-2020,Adults,Westminster Homecare Ltd_a,Home Care - Private Contractors Payment,1146.78,0.00,COMMERCIAL SUPPLIER 
 06-12-2020,Adults,Westminster Homecare Ltd_a,Home Care - Private Contractors Payment,1014.54,0.00,COMMERCIAL SUPPLIER 
 06-12-2020,Adults,Westminster Homecare Ltd_a,Home Care - Private Contractors Payment,718.52,0.00,COMMERCIAL SUPPLIER 
 06-12-2020,Adults,Westminster Homecare Ltd_a,Home Care - Private Contractors Payment,636.93,0.00,COMMERCIAL SUPPLIER 
 06-12-2020,Adults,Westminster Homecare Ltd_a,Home Care - Private Contractors Payment,549.88,0.00,COMMERCIAL SUPPLIER 
 06-12-2020,Adults,Westminster Homecare Ltd_a,Home Care - Private Contractors Payment,609.94,0.00,COMMERCIAL SUPPLIER 
 06-12-2020,Adults,Westminster Homecare Ltd_a,Home Care - Private Contractors Payment,727.92,0.00,COMMERCIAL SUPPLIER 
 06-12-2020,Adults,Westminster Homecare Ltd_a,Home Care - Private Contractors Payment,873.81,0.00,COMMERCIAL SUPPLIER 
 07-12-2020,Adults,Reed Specialist Recruitment Ltd,Consultancy Fees,1240.00,0.00,COMMERCIAL SUPPLIER 
 07-12-2020,Adults,Reed Specialist Recruitment Ltd,Consultancy Fees,620.00,0.00,COMMERCIAL SUPPLIER 
 07-12-2020,Adults,Reed Specialist Recruitment Ltd,Consultancy Fees,1860.00,0.00,COMMERCIAL SUPPLIER 
 07-12-2020,Adults,Bluebird Care Havering,Home Care - Private Contractors Payment,1989.00,0.00,COMMERCIAL SUPPLIER 
 07-12-2020,Adults,Bluebird Care Havering,Home Care - Private Contractors Payment,1015.04,0.00,COMMERCIAL SUPPLIER 
 07-12-2020,Adults,Mind in Tower Hamlets And Newham,Private Contractors Payment - Other,30857.34,0.00,COMMERCIAL SUPPLIER 
 07-12-2020,Adults,Tapestry_a.,Payments To Voluntary Sector,2500.00,0.00,COMMERCIAL SUPPLIER 
 07-12-2020,Adults,Tapestry_a.,Daycare - Private Contractors Payment,660.00,0.00,COMMERCIAL SUPPLIER 
 07-12-2020,Adults,Tapestry_a.,Daycare - Private Contractors Payment,660.00,0.00,COMMERCIAL SUPPLIER 
 07-12-2020,Adults,Tapestry_a.,Daycare - Private Contractors Payment,1100.00,0.00,COMMERCIAL SUPPLIER 
 07-12-2020,Adults,Tapestry_a.,Daycare - Private Contractors Payment,1100.00,0.00,COMMERCIAL SUPPLIER 
 07-12-2020,Adults,Essex Cares Ltd,Private Contractors Payment - Other,151250.00,0.00,COMMERCIAL SUPPLIER 
 07-12-2020,Adults,Essex Cares Ltd,Private Contractors Payment - Other,4000.00,0.00,COMMERCIAL SUPPLIER 
 07-12-2020,Adults,Home Sweet Home Care Ltd,Home Care - Private Contractors Payment,1710.61,0.00,COMMERCIAL SUPPLIER 
 07-12-2020,Adults,Home Sweet Home Care Ltd,Home Care - Private Contractors Payment,764.32,0.00,COMMERCIAL SUPPLIER 
 07-12-2020,Adults,Home Sweet Home Care Ltd,Home Care - Private Contractors Payment,1401.25,0.00,COMMERCIAL SUPPLIER 
 07-12-2020,Adults,Home Sweet Home Care Ltd,Home Care - Private Contractors Payment,1019.09,0.00,COMMERCIAL SUPPLIER 
 07-12-2020,Adults,Home Sweet Home Care Ltd,Home Care - Private Contractors Payment,1019.09,0.00,COMMERCIAL SUPPLIER 
 07-12-2020,Adults,Home Sweet Home Care Ltd,Home Care - Private Contractors Payment,509.54,0.00,COMMERCIAL SUPPLIER 
 07-12-2020,Adults,Home Sweet Home Care Ltd,Home Care - Private Contractors Payment,1019.09,0.00,COMMERCIAL SUPPLIER 
 07-12-2020,Adults,Home Sweet Home Care Ltd,Home Care - Private Contractors Payment,1146.47,0.00,COMMERCIAL SUPPLIER 
 07-12-2020,Adults,Home Sweet Home Care Ltd,Home Care - Private Contractors Payment,509.54,0.00,COMMERCIAL SUPPLIER 
 07-12-2020,Adults,Home Sweet Home Care Ltd,Home Care - Private Contractors Payment,1019.09,0.00,COMMERCIAL SUPPLIER 
 07-12-2020,Adults,The Camden Society,Daycare - Private Contractors Payment,520.00,0.00,NON COMMERCIAL SUPPLIER 
 07-12-2020,Adults,Home Support Services (Havering & Essex) Ltd,Home Care - Private Contractors Payment,5600.00,0.00,COMMERCIAL SUPPLIER 
 08-12-2020,Adults,Anytime Care 2020_a,Home Care - Private Contractors Payment,743.69,0.00,COMMERCIAL SUPPLIER 
 08-12-2020,Adults,Anytime Care 2020_a,Home Care - Private Contractors Payment,737.02,0.00,COMMERCIAL SUPPLIER 
 08-12-2020,Adults,Anytime Care 2020_a,Home Care - Private Contractors Payment,801.02,0.00,COMMERCIAL SUPPLIER 
 08-12-2020,Adults,Anytime Care 2020_a,Home Care - Private Contractors Payment,773.42,0.00,COMMERCIAL SUPPLIER 
 08-12-2020,Adults,Anytime Care 2020_a,Home Care - Private Contractors Payment,618.73,0.00,COMMERCIAL SUPPLIER 
 08-12-2020,Adults,Anytime Care 2020_a,Home Care - Private Contractors Payment,770.08,0.00,COMMERCIAL SUPPLIER 
 08-12-2020,Adults,Anytime Care 2020_a,Home Care - Private Contractors Payment,661.50,0.00,COMMERCIAL SUPPLIER 
 08-12-2020,Adults,Anytime Care 2020_a,Home Care - Private Contractors Payment,683.03,0.00,COMMERCIAL SUPPLIER 
 08-12-2020,Adults,Anytime Care 2020_a,Home Care - Private Contractors Payment,722.25,0.00,COMMERCIAL SUPPLIER 
 08-12-2020,Adults,Anytime Care 2020_a,Home Care - Private Contractors Payment,730.95,0.00,COMMERCIAL SUPPLIER 
 08-12-2020,Adults,Anytime Care 2020_a,Home Care - Private Contractors Payment,666.05,0.00,COMMERCIAL SUPPLIER 
 08-12-2020,Adults,Anytime Care 2020_a,Home Care - Private Contractors Payment,594.23,0.00,COMMERCIAL SUPPLIER 
 08-12-2020,Adults,Anytime Care 2020_a,Home Care - Private Contractors Payment,1238.07,0.00,COMMERCIAL SUPPLIER 
 08-12-2020,Adults,Anytime Care 2020_a,Home Care - Private Contractors Payment,562.92,0.00,COMMERCIAL SUPPLIER 
 08-12-2020,Adults,Anytime Care 2020_a,Home Care - Private Contractors Payment,956.00,0.00,COMMERCIAL SUPPLIER 
 08-12-2020,Adults,Anytime Care 2020_a,Home Care - Private Contractors Payment,666.96,0.00,COMMERCIAL SUPPLIER 
 08-12-2020,Adults,Anytime Care 2020_a,Home Care - Private Contractors Payment,705.48,0.00,COMMERCIAL SUPPLIER 
 08-12-2020,Adults,Havering Healthwatch C.I.C,Payment To Health Authorities,29339.75,0.00,COMMERCIAL SUPPLIER 
 08-12-2020,Adults,Care-Away Ltd T/A Care Support,Home Care - Private Contractors Payment,544.00,0.00,COMMERCIAL SUPPLIER 
 08-12-2020,Adults,Care-Away Ltd T/A Care Support,Home Care - Private Contractors Payment,984.00,0.00,COMMERCIAL SUPPLIER 
 08-12-2020,Adults,Care-Away Ltd T/A Care Support,Home Care - Private Contractors Payment,1032.00,0.00,COMMERCIAL SUPPLIER 
 08-12-2020,Adults,Care-Away Ltd T/A Care Support,Home Care - Private Contractors Payment,928.00,0.00,COMMERCIAL SUPPLIER 
 08-12-2020,Adults,Care-Away Ltd T/A Care Support,Home Care - Private Contractors Payment,928.00,0.00,COMMERCIAL SUPPLIER 
 08-12-2020,Adults,Care-Away Ltd T/A Care Support,Home Care - Private Contractors Payment,560.00,0.00,COMMERCIAL SUPPLIER 
 08-12-2020,Adults,Care-Away Ltd T/A Care Support,Home Care - Private Contractors Payment,560.00,0.00,COMMERCIAL SUPPLIER 
 08-12-2020,Adults,Care-Away Ltd T/A Care Support,Home Care - Private Contractors Payment,1344.00,0.00,COMMERCIAL SUPPLIER 
 08-12-2020,Adults,Care-Away Ltd T/A Care Support,Home Care - Private Contractors Payment,816.00,0.00,COMMERCIAL SUPPLIER 
 08-12-2020,Adults,Care-Away Ltd T/A Care Support,Home Care - Private Contractors Payment,880.00,0.00,COMMERCIAL SUPPLIER 
 08-12-2020,Adults,Care-Away Ltd T/A Care Support,Home Care - Private Contractors Payment,736.00,0.00,COMMERCIAL SUPPLIER 
 08-12-2020,Adults,Care-Away Ltd T/A Care Support,Home Care - Private Contractors Payment,1232.00,0.00,COMMERCIAL SUPPLIER 
 08-12-2020,Adults,Care-Away Ltd T/A Care Support,Home Care - Private Contractors Payment,1232.00,0.00,COMMERCIAL SUPPLIER 
 08-12-2020,Adults,Care-Away Ltd T/A Care Support,Home Care - Private Contractors Payment,560.00,0.00,COMMERCIAL SUPPLIER 
 08-12-2020,Adults,Care-Away Ltd T/A Care Support,Home Care - Private Contractors Payment,560.00,0.00,COMMERCIAL SUPPLIER 
 08-12-2020,Adults,Care-Away Ltd T/A Care Support,Home Care - Private Contractors Payment,944.00,0.00,COMMERCIAL SUPPLIER 
 08-12-2020,Adults,Care-Away Ltd T/A Care Support,Home Care - Private Contractors Payment,1232.00,0.00,COMMERCIAL SUPPLIER 
 08-12-2020,Adults,Care-Away Ltd T/A Care Support,Home Care - Private Contractors Payment,1232.00,0.00,COMMERCIAL SUPPLIER 
 08-12-2020,Adults,Care-Away Ltd T/A Care Support,Home Care - Private Contractors Payment,1024.00,0.00,COMMERCIAL SUPPLIER 
 08-12-2020,Adults,Care-Away Ltd T/A Care Support,Home Care - Private Contractors Payment,896.00,0.00,COMMERCIAL SUPPLIER 
 08-12-2020,Adults,Care-Away Ltd T/A Care Support,Home Care - Private Contractors Payment,896.00,0.00,COMMERCIAL SUPPLIER 
 08-12-2020,Adults,Care-Away Ltd T/A Care Support,Home Care - Private Contractors Payment,672.00,0.00,COMMERCIAL SUPPLIER 
 08-12-2020,Adults,Care-Away Ltd T/A Care Support,Home Care - Private Contractors Payment,560.00,0.00,COMMERCIAL SUPPLIER 
 08-12-2020,Adults,Care-Away Ltd T/A Care Support,Home Care - Private Contractors Payment,976.00,0.00,COMMERCIAL SUPPLIER 
 08-12-2020,Adults,Care-Away Ltd T/A Care Support,Home Care - Private Contractors Payment,896.00,0.00,COMMERCIAL SUPPLIER 
 08-12-2020,Adults,Care-Away Ltd T/A Care Support,Home Care - Private Contractors Payment,896.00,0.00,COMMERCIAL SUPPLIER 
 08-12-2020,Adults,Care-Away Ltd T/A Care Support,Home Care - Private Contractors Payment,672.00,0.00,COMMERCIAL SUPPLIER 
 08-12-2020,Adults,Care-Away Ltd T/A Care Support,Home Care - Private Contractors Payment,664.00,0.00,COMMERCIAL SUPPLIER 
 08-12-2020,Adults,Care-Away Ltd T/A Care Support,Home Care - Private Contractors Payment,896.00,0.00,COMMERCIAL SUPPLIER 
 08-12-2020,Adults,Care-Away Ltd T/A Care Support,Home Care - Private Contractors Payment,896.00,0.00,COMMERCIAL SUPPLIER 
 08-12-2020,Adults,Care-Away Ltd T/A Care Support,Home Care - Private Contractors Payment,896.00,0.00,COMMERCIAL SUPPLIER 
 08-12-2020,Adults,Care-Away Ltd T/A Care Support,Home Care - Private Contractors Payment,896.00,0.00,COMMERCIAL SUPPLIER 
 08-12-2020,Adults,Care-Away Ltd T/A Care Support,Home Care - Private Contractors Payment,896.00,0.00,COMMERCIAL SUPPLIER 
 08-12-2020,Adults,Care-Away Ltd T/A Care Support,Home Care - Private Contractors Payment,672.00,0.00,COMMERCIAL SUPPLIER 
 08-12-2020,Adults,Care-Away Ltd T/A Care Support,Home Care - Private Contractors Payment,1120.00,0.00,COMMERCIAL SUPPLIER 
 08-12-2020,Adults,Care-Away Ltd T/A Care Support,Home Care - Private Contractors Payment,1128.00,0.00,COMMERCIAL SUPPLIER 
 08-12-2020,Adults,Care-Away Ltd T/A Care Support,Home Care - Private Contractors Payment,800.00,0.00,COMMERCIAL SUPPLIER 
 08-12-2020,Adults,Care-Away Ltd T/A Care Support,Home Care - Private Contractors Payment,888.00,0.00,COMMERCIAL SUPPLIER 
 08-12-2020,Adults,Care-Away Ltd T/A Care Support,Home Care - Private Contractors Payment,2152.00,0.00,COMMERCIAL SUPPLIER 
 08-12-2020,Adults,Care-Away Ltd T/A Care Support,Home Care - Private Contractors Payment,900.00,0.00,COMMERCIAL SUPPLIER 
 08-12-2020,Adults,Care-Away Ltd T/A Care Support,Home Care - Private Contractors Payment,1008.00,0.00,COMMERCIAL SUPPLIER 
 08-12-2020,Adults,Care-Away Ltd T/A Care Support,Home Care - Private Contractors Payment,1120.00,0.00,COMMERCIAL SUPPLIER 
 08-12-2020,Adults,Care-Away Ltd T/A Care Support,Home Care - Private Contractors Payment,888.00,0.00,COMMERCIAL SUPPLIER 
 08-12-2020,Adults,Care-Away Ltd T/A Care Support,Home Care - Private Contractors Payment,896.00,0.00,COMMERCIAL SUPPLIER 
 08-12-2020,Adults,Care-Away Ltd T/A Care Support,Home Care - Private Contractors Payment,1232.00,0.00,COMMERCIAL SUPPLIER 
 08-12-2020,Adults,Care-Away Ltd T/A Care Support,Home Care - Private Contractors Payment,896.00,0.00,COMMERCIAL SUPPLIER 
 08-12-2020,Adults,Care-Away Ltd T/A Care Support,Home Care - Private Contractors Payment,908.00,0.00,COMMERCIAL SUPPLIER 
 08-12-2020,Adults,Care-Away Ltd T/A Care Support,Home Care - Private Contractors Payment,1120.00,0.00,COMMERCIAL SUPPLIER 
 08-12-2020,Adults,Care-Away Ltd T/A Care Support,Home Care - Private Contractors Payment,904.00,0.00,COMMERCIAL SUPPLIER 
 08-12-2020,Adults,Care-Away Ltd T/A Care Support,Home Care - Private Contractors Payment,560.00,0.00,COMMERCIAL SUPPLIER 
 08-12-2020,Adults,Care-Away Ltd T/A Care Support,Home Care - Private Contractors Payment,1008.00,0.00,COMMERCIAL SUPPLIER 
 08-12-2020,Adults,Care-Away Ltd T/A Care Support,Home Care - Private Contractors Payment,2468.00,0.00,COMMERCIAL SUPPLIER 
 08-12-2020,Adults,Care-Away Ltd T/A Care Support,Home Care - Private Contractors Payment,824.00,0.00,COMMERCIAL SUPPLIER 
 08-12-2020,Adults,Care-Away Ltd T/A Care Support,Home Care - Private Contractors Payment,672.00,0.00,COMMERCIAL SUPPLIER 
 08-12-2020,Adults,Care-Away Ltd T/A Care Support,Home Care - Private Contractors Payment,1120.00,0.00,COMMERCIAL SUPPLIER 
 08-12-2020,Adults,Care-Away Ltd T/A Care Support,Home Care - Private Contractors Payment,560.00,0.00,COMMERCIAL SUPPLIER 
 08-12-2020,Adults,Care-Away Ltd T/A Care Support,Home Care - Private Contractors Payment,992.00,0.00,COMMERCIAL SUPPLIER 
 08-12-2020,Adults,Care-Away Ltd T/A Care Support,Home Care - Private Contractors Payment,1216.00,0.00,COMMERCIAL SUPPLIER 
 08-12-2020,Adults,Care-Away Ltd T/A Care Support,Home Care - Private Contractors Payment,568.00,0.00,COMMERCIAL SUPPLIER 
 08-12-2020,Adults,Care-Away Ltd T/A Care Support,Home Care - Private Contractors Payment,644.00,0.00,COMMERCIAL SUPPLIER 
 08-12-2020,Adults,Care-Away Ltd T/A Care Support,Home Care - Private Contractors Payment,1168.00,0.00,COMMERCIAL SUPPLIER 
 08-12-2020,Adults,Care-Away Ltd T/A Care Support,Home Care - Private Contractors Payment,852.00,0.00,COMMERCIAL SUPPLIER 
 08-12-2020,Adults,Care-Away Ltd T/A Care Support,Home Care - Private Contractors Payment,944.00,0.00,COMMERCIAL SUPPLIER 
 08-12-2020,Adults,Care-Away Ltd T/A Care Support,Home Care - Private Contractors Payment,672.00,0.00,COMMERCIAL SUPPLIER 
 08-12-2020,Adults,KJD Care Limited,Home Care - Private Contractors Payment,5598.32,0.00,INDIVIDUALS 
 08-12-2020,Adults,North East London NHS Foundation Trust_a,Payment To Health Authorities,1180.10,0.00,NHS BODIES 
 08-12-2020,Adults,North East London NHS Foundation Trust_a,Payment To Health Authorities,3757.08,0.00,NHS BODIES 
 08-12-2020,Adults,North East London NHS Foundation Trust_a,Payment To Health Authorities,8997.30,0.00,NHS BODIES 
 08-12-2020,Adults,North East London NHS Foundation Trust_a,Payment To Health Authorities,14106.98,0.00,NHS BODIES 
 08-12-2020,Adults,North East London NHS Foundation Trust_a,Payment To Health Authorities,1166.09,0.00,NHS BODIES 
 08-12-2020,Adults,North East London NHS Foundation Trust_a,Payment To Health Authorities,17336.06,0.00,NHS BODIES 
 08-12-2020,Adults,North East London NHS Foundation Trust_a,Payment To Health Authorities,4826.24,0.00,NHS BODIES 
 08-12-2020,Adults,North East London NHS Foundation Trust_a,Payment To Health Authorities,3758.08,0.00,NHS BODIES 
 08-12-2020,Adults,North East London NHS Foundation Trust_a,Payment To Health Authorities,13767.19,0.00,NHS BODIES 
 08-12-2020,Adults,North East London NHS Foundation Trust_a,Payment To Health Authorities,1206.76,0.00,NHS BODIES 
 08-12-2020,Adults,North East London NHS Foundation Trust_a,Payment To Health Authorities,4880.15,0.00,NHS BODIES 
 08-12-2020,Adults,North East London NHS Foundation Trust_a,Payment To Health Authorities,3834.26,0.00,NHS BODIES 
 08-12-2020,Adults,North East London NHS Foundation Trust_a,Payment To Health Authorities,1206.75,0.00,NHS BODIES 
 08-12-2020,Adults,North East London NHS Foundation Trust_a,Payment To Health Authorities,5423.82,0.00,NHS BODIES 
 08-12-2020,Adults,North East London NHS Foundation Trust_a,Payment To Health Authorities,3834.25,0.00,NHS BODIES 
 08-12-2020,Adults,North East London NHS Foundation Trust_a,Payment To Health Authorities,21677.44,0.00,NHS BODIES 
 08-12-2020,Adults,North East London NHS Foundation Trust_a,Payment To Health Authorities,1206.76,0.00,NHS BODIES 
 08-12-2020,Adults,North East London NHS Foundation Trust_a,Payment To Health Authorities,5397.39,0.00,NHS BODIES 
 08-12-2020,Adults,North East London NHS Foundation Trust_a,Payment To Health Authorities,3834.26,0.00,NHS BODIES 
 08-12-2020,Adults,North East London NHS Foundation Trust_a,Payment To Health Authorities,17228.36,0.00,NHS BODIES 
 08-12-2020,Adults,North East London NHS Foundation Trust_a,Payment To Health Authorities,14101.78,0.00,NHS BODIES 
 08-12-2020,Adults,North East London NHS Foundation Trust_a,Payment To Health Authorities,1206.76,0.00,NHS BODIES 
 08-12-2020,Adults,North East London NHS Foundation Trust_a,Payment To Health Authorities,5020.51,0.00,NHS BODIES 
 08-12-2020,Adults,North East London NHS Foundation Trust_a,Payment To Health Authorities,3834.26,0.00,NHS BODIES 
 08-12-2020,Adults,North East London NHS Foundation Trust_a,Payment To Health Authorities,3834.26,0.00,NHS BODIES 
 08-12-2020,Adults,North East London NHS Foundation Trust_a,Payment To Health Authorities,1206.76,0.00,NHS BODIES 
 08-12-2020,Adults,North East London NHS Foundation Trust_a,Payment To Health Authorities,4558.40,0.00,NHS BODIES 
 08-12-2020,Adults,North East London NHS Foundation Trust_a,Payment To Health Authorities,19482.95,0.00,NHS BODIES 
 09-12-2020,Adults,London Care Plc_a,Home Care - Private Contractors Payment,897.46,0.00,COMMERCIAL SUPPLIER 
 09-12-2020,Adults,London Care Plc_a,Home Care - Private Contractors Payment,1010.29,0.00,COMMERCIAL SUPPLIER 
 09-12-2020,Adults,London Care Plc_a,Home Care - Private Contractors Payment,1010.60,0.00,COMMERCIAL SUPPLIER 
 09-12-2020,Adults,London Care Plc_a,Home Care - Private Contractors Payment,978.45,0.00,COMMERCIAL SUPPLIER 
 09-12-2020,Adults,London Care Plc_a,Home Care - Private Contractors Payment,1054.88,0.00,COMMERCIAL SUPPLIER 
 09-12-2020,Adults,London Care Plc_a,Home Care - Private Contractors Payment,739.45,0.00,COMMERCIAL SUPPLIER 
 09-12-2020,Adults,London Care Plc_a,Home Care - Private Contractors Payment,999.07,0.00,COMMERCIAL SUPPLIER 
 09-12-2020,Adults,London Care Plc_a,Home Care - Private Contractors Payment,1464.03,0.00,COMMERCIAL SUPPLIER 
 09-12-2020,Adults,London Care Plc_a,Home Care - Private Contractors Payment,1525.60,0.00,COMMERCIAL SUPPLIER 
 09-12-2020,Adults,London Care Plc_a,Home Care - Private Contractors Payment,1138.59,0.00,COMMERCIAL SUPPLIER 
 09-12-2020,Adults,London Care Plc_a,Home Care - Private Contractors Payment,1052.15,0.00,COMMERCIAL SUPPLIER 
 09-12-2020,Adults,London Care Plc_a,Home Care - Private Contractors Payment,1088.24,0.00,COMMERCIAL SUPPLIER 
 09-12-2020,Adults,London Care Plc_a,Home Care - Private Contractors Payment,1090.67,0.00,COMMERCIAL SUPPLIER 
 09-12-2020,Adults,London Care Plc_a,Home Care - Private Contractors Payment,589.01,0.00,COMMERCIAL SUPPLIER 
 09-12-2020,Adults,London Care Plc_a,Home Care - Private Contractors Payment,807.69,0.00,COMMERCIAL SUPPLIER 
 09-12-2020,Adults,Gims Care Solution Ltd_a,Home Care - Private Contractors Payment,2038.85,0.00,NON COMMERCIAL SUPPLIER 
 09-12-2020,Adults,Gims Care Solution Ltd_a,Home Care - Private Contractors Payment,1237.87,0.00,NON COMMERCIAL SUPPLIER 
 09-12-2020,Adults,John Stanleys Care Agency Ltd,Home Care - Private Contractors Payment,719.43,0.00,COMMERCIAL SUPPLIER 
 09-12-2020,Adults,John Stanleys Care Agency Ltd,Home Care - Private Contractors Payment,1086.42,0.00,COMMERCIAL SUPPLIER 
 09-12-2020,Adults,John Stanleys Care Agency Ltd,Home Care - Private Contractors Payment,1109.77,0.00,COMMERCIAL SUPPLIER 
 09-12-2020,Adults,John Stanleys Care Agency Ltd,Home Care - Private Contractors Payment,767.65,0.00,COMMERCIAL SUPPLIER 
 09-12-2020,Adults,John Stanleys Care Agency Ltd,Home Care - Private Contractors Payment,1120.09,0.00,COMMERCIAL SUPPLIER 
 09-12-2020,Adults,John Stanleys Care Agency Ltd,Home Care - Private Contractors Payment,640.27,0.00,COMMERCIAL SUPPLIER 
 09-12-2020,Adults,John Stanleys Care Agency Ltd,Home Care - Private Contractors Payment,3570.45,0.00,COMMERCIAL SUPPLIER 
 09-12-2020,Adults,John Stanleys Care Agency Ltd,Home Care - Private Contractors Payment,887.15,0.00,COMMERCIAL SUPPLIER 
 09-12-2020,Adults,John Stanleys Care Agency Ltd,Home Care - Private Contractors Payment,978.45,0.00,COMMERCIAL SUPPLIER 
 09-12-2020,Adults,John Stanleys Care Agency Ltd,Home Care - Private Contractors Payment,583.85,0.00,COMMERCIAL SUPPLIER 
 09-12-2020,Adults,John Stanleys Care Agency Ltd,Home Care - Private Contractors Payment,1187.72,0.00,COMMERCIAL SUPPLIER 
 09-12-2020,Adults,John Stanleys Care Agency Ltd,Home Care - Private Contractors Payment,1109.17,0.00,COMMERCIAL SUPPLIER 
 09-12-2020,Adults,John Stanleys Care Agency Ltd,Home Care - Private Contractors Payment,1155.27,0.00,COMMERCIAL SUPPLIER 
 09-12-2020,Adults,John Stanleys Care Agency Ltd,Home Care - Private Contractors Payment,624.80,0.00,COMMERCIAL SUPPLIER 
 09-12-2020,Adults,John Stanleys Care Agency Ltd,Home Care - Private Contractors Payment,1160.73,0.00,COMMERCIAL SUPPLIER 
 09-12-2020,Adults,John Stanleys Care Agency Ltd,Home Care - Private Contractors Payment,1176.80,0.00,COMMERCIAL SUPPLIER 
 09-12-2020,Adults,John Stanleys Care Agency Ltd,Home Care - Private Contractors Payment,515.00,0.00,COMMERCIAL SUPPLIER 
 09-12-2020,Adults,John Stanleys Care Agency Ltd,Home Care - Private Contractors Payment,706.39,0.00,COMMERCIAL SUPPLIER 
 09-12-2020,Adults,John Stanleys Care Agency Ltd,Home Care - Private Contractors Payment,671.81,0.00,COMMERCIAL SUPPLIER 
 09-12-2020,Adults,John Stanleys Care Agency Ltd,Home Care - Private Contractors Payment,679.39,0.00,COMMERCIAL SUPPLIER 
 09-12-2020,Adults,John Stanleys Care Agency Ltd,Home Care - Private Contractors Payment,585.37,0.00,COMMERCIAL SUPPLIER 
 09-12-2020,Adults,John Stanleys Care Agency Ltd,Home Care - Private Contractors Payment,945.39,0.00,COMMERCIAL SUPPLIER 
 09-12-2020,Adults,John Stanleys Care Agency Ltd,Home Care - Private Contractors Payment,941.75,0.00,COMMERCIAL SUPPLIER 
 09-12-2020,Adults,John Stanleys Care Agency Ltd,Home Care - Private Contractors Payment,1164.67,0.00,COMMERCIAL SUPPLIER 
 09-12-2020,Adults,John Stanleys Care Agency Ltd,Home Care - Private Contractors Payment,724.28,0.00,COMMERCIAL SUPPLIER 
 09-12-2020,Adults,John Stanleys Care Agency Ltd,Home Care - Private Contractors Payment,1056.70,0.00,COMMERCIAL SUPPLIER 
 09-12-2020,Adults,John Stanleys Care Agency Ltd,Home Care - Private Contractors Payment,545.94,0.00,COMMERCIAL SUPPLIER 
 09-12-2020,Adults,John Stanleys Care Agency Ltd,Home Care - Private Contractors Payment,4368.00,0.00,COMMERCIAL SUPPLIER 
 09-12-2020,Adults,Tapestry_a.,Daycare - Private Contractors Payment,935.00,0.00,COMMERCIAL SUPPLIER 
 09-12-2020,Adults,Tapestry_a.,Daycare - Private Contractors Payment,660.00,0.00,COMMERCIAL SUPPLIER 
 09-12-2020,Adults,Tapestry_a.,Daycare - Private Contractors Payment,660.00,0.00,COMMERCIAL SUPPLIER 
 09-12-2020,Adults,Carers Trust East Midlands,Home Care - Private Contractors Payment,752.59,0.00,COMMERCIAL SUPPLIER 
 09-12-2020,Adults,Carers Trust East Midlands,Home Care - Private Contractors Payment,700.08,0.00,COMMERCIAL SUPPLIER 
 09-12-2020,Adults,Carers Trust East Midlands,Home Care - Private Contractors Payment,1050.12,0.00,COMMERCIAL SUPPLIER 
 09-12-2020,Adults,Prestige Care & Support Ltd,Home Care - Private Contractors Payment,685.76,0.00,COMMERCIAL SUPPLIER 
 09-12-2020,Adults,Prestige Care & Support Ltd,Home Care - Private Contractors Payment,648.46,0.00,COMMERCIAL SUPPLIER 
 09-12-2020,Adults,Prestige Care & Support Ltd,Home Care - Private Contractors Payment,899.89,0.00,COMMERCIAL SUPPLIER 
 09-12-2020,Adults,Prestige Care & Support Ltd,Home Care - Private Contractors Payment,713.36,0.00,COMMERCIAL SUPPLIER 
 09-12-2020,Adults,Prestige Care & Support Ltd,Home Care - Private Contractors Payment,699.18,0.00,COMMERCIAL SUPPLIER 
 09-12-2020,Adults,Prestige Care & Support Ltd,Home Care - Private Contractors Payment,1016.96,0.00,COMMERCIAL SUPPLIER 
 09-12-2020,Adults,Prestige Care & Support Ltd,Home Care - Private Contractors Payment,999.98,0.00,COMMERCIAL SUPPLIER 
 09-12-2020,Adults,Prestige Care & Support Ltd,Home Care - Private Contractors Payment,1008.17,0.00,COMMERCIAL SUPPLIER 
 09-12-2020,Adults,Prestige Care & Support Ltd,Home Care - Private Contractors Payment,899.28,0.00,COMMERCIAL SUPPLIER 
 09-12-2020,Adults,Prestige Care & Support Ltd,Home Care - Private Contractors Payment,551.10,0.00,COMMERCIAL SUPPLIER 
 09-12-2020,Adults,Prestige Care & Support Ltd,Home Care - Private Contractors Payment,759.46,0.00,COMMERCIAL SUPPLIER 
 09-12-2020,Adults,Prestige Care & Support Ltd,Home Care - Private Contractors Payment,667.26,0.00,COMMERCIAL SUPPLIER 
 09-12-2020,Adults,Prestige Care & Support Ltd,Home Care - Private Contractors Payment,546.55,0.00,COMMERCIAL SUPPLIER 
 09-12-2020,Adults,Prestige Care & Support Ltd,Home Care - Private Contractors Payment,547.46,0.00,COMMERCIAL SUPPLIER 
 09-12-2020,Adults,Prestige Care & Support Ltd,Home Care - Private Contractors Payment,950.65,0.00,COMMERCIAL SUPPLIER 
 09-12-2020,Adults,Prestige Care & Support Ltd,Home Care - Private Contractors Payment,610.85,0.00,COMMERCIAL SUPPLIER 
 09-12-2020,Adults,Prestige Care & Support Ltd,Home Care - Private Contractors Payment,813.15,0.00,COMMERCIAL SUPPLIER 
 09-12-2020,Adults,Prestige Care & Support Ltd,Home Care - Private Contractors Payment,815.27,0.00,COMMERCIAL SUPPLIER 
 09-12-2020,Adults,Prestige Care & Support Ltd,Home Care - Private Contractors Payment,1082.17,0.00,COMMERCIAL SUPPLIER 
 09-12-2020,Adults,Prestige Care & Support Ltd,Home Care - Private Contractors Payment,1102.80,0.00,COMMERCIAL SUPPLIER 
 09-12-2020,Adults,Prestige Care & Support Ltd,Home Care - Private Contractors Payment,866.53,0.00,COMMERCIAL SUPPLIER 
 09-12-2020,Adults,Prestige Care & Support Ltd,Home Care - Private Contractors Payment,877.75,0.00,COMMERCIAL SUPPLIER 
 09-12-2020,Adults,Prestige Care & Support Ltd,Home Care - Private Contractors Payment,680.98,0.00,COMMERCIAL SUPPLIER 
 09-12-2020,Adults,Prestige Care & Support Ltd,Home Care - Private Contractors Payment,816.79,0.00,COMMERCIAL SUPPLIER 
 09-12-2020,Adults,Prestige Care & Support Ltd,Home Care - Private Contractors Payment,820.43,0.00,COMMERCIAL SUPPLIER 
 09-12-2020,Adults,Prestige Care & Support Ltd,Home Care - Private Contractors Payment,1003.92,0.00,COMMERCIAL SUPPLIER 
 09-12-2020,Adults,Prestige Care & Support Ltd,Home Care - Private Contractors Payment,523.19,0.00,COMMERCIAL SUPPLIER 
 09-12-2020,Adults,Prestige Care & Support Ltd,Home Care - Private Contractors Payment,1062.16,0.00,COMMERCIAL SUPPLIER 
 09-12-2020,Adults,Prestige Care & Support Ltd,Home Care - Private Contractors Payment,612.74,0.00,COMMERCIAL SUPPLIER 
 09-12-2020,Adults,Prestige Care & Support Ltd,Home Care - Private Contractors Payment,712.76,0.00,COMMERCIAL SUPPLIER 
 09-12-2020,Adults,Prestige Care & Support Ltd,Home Care - Private Contractors Payment,720.03,0.00,COMMERCIAL SUPPLIER 
 09-12-2020,Adults,Prestige Care & Support Ltd,Home Care - Private Contractors Payment,854.40,0.00,COMMERCIAL SUPPLIER 
 09-12-2020,Adults,Prestige Care & Support Ltd,Home Care - Private Contractors Payment,861.07,0.00,COMMERCIAL SUPPLIER 
 09-12-2020,Adults,Prestige Care & Support Ltd,Home Care - Private Contractors Payment,618.43,0.00,COMMERCIAL SUPPLIER 
 09-12-2020,Adults,Prestige Care & Support Ltd,Home Care - Private Contractors Payment,573.54,0.00,COMMERCIAL SUPPLIER 
 09-12-2020,Adults,Prestige Care & Support Ltd,Home Care - Private Contractors Payment,680.00,0.00,COMMERCIAL SUPPLIER 
 09-12-2020,Adults,Prestige Care & Support Ltd,Home Care - Private Contractors Payment,546.24,0.00,COMMERCIAL SUPPLIER 
 09-12-2020,Adults,Prestige Care & Support Ltd,Home Care - Private Contractors Payment,943.57,0.00,COMMERCIAL SUPPLIER 
 09-12-2020,Adults,Prestige Care & Support Ltd,Home Care - Private Contractors Payment,801.93,0.00,COMMERCIAL SUPPLIER 
 09-12-2020,Adults,Greatbatch Ltd t/a Letterbox Distribution,"Advertising, Publicity And Marketing",16251.24,0.00,COMMERCIAL SUPPLIER 
 09-12-2020,Adults,Mears Care Ltd,Home Care - Private Contractors Payment,695.77,0.00,COMMERCIAL SUPPLIER 
 09-12-2020,Adults,Mears Care Ltd,Home Care - Private Contractors Payment,520.22,0.00,COMMERCIAL SUPPLIER 
 09-12-2020,Adults,Mears Care Ltd,Home Care - Private Contractors Payment,828.31,0.00,COMMERCIAL SUPPLIER 
 09-12-2020,Adults,Mears Care Ltd,Home Care - Private Contractors Payment,937.80,0.00,COMMERCIAL SUPPLIER 
 09-12-2020,Adults,Mears Care Ltd,Home Care - Private Contractors Payment,616.37,0.00,COMMERCIAL SUPPLIER 
 09-12-2020,Adults,Mears Care Ltd,Home Care - Private Contractors Payment,536.23,0.00,COMMERCIAL SUPPLIER 
 09-12-2020,Adults,Mears Care Ltd,Home Care - Private Contractors Payment,673.72,0.00,COMMERCIAL SUPPLIER 
 09-12-2020,Adults,Mears Care Ltd,Home Care - Private Contractors Payment,733.38,0.00,COMMERCIAL SUPPLIER 
 09-12-2020,Adults,Mears Care Ltd,Home Care - Private Contractors Payment,758.55,0.00,COMMERCIAL SUPPLIER 
 09-12-2020,Adults,Mears Care Ltd,Home Care - Private Contractors Payment,645.12,0.00,COMMERCIAL SUPPLIER 
 09-12-2020,Adults,Mears Care Ltd,Home Care - Private Contractors Payment,591.74,0.00,COMMERCIAL SUPPLIER 
 09-12-2020,Adults,Mears Care Ltd,Home Care - Private Contractors Payment,621.46,0.00,COMMERCIAL SUPPLIER 
 09-12-2020,Adults,Mears Care Ltd,Home Care - Private Contractors Payment,755.52,0.00,COMMERCIAL SUPPLIER 
 09-12-2020,Adults,Mears Care Ltd,Home Care - Private Contractors Payment,547.46,0.00,COMMERCIAL SUPPLIER 
 09-12-2020,Adults,Mears Care Ltd,Home Care - Private Contractors Payment,505.90,0.00,COMMERCIAL SUPPLIER 
 09-12-2020,Adults,Mears Care Ltd,Home Care - Private Contractors Payment,629.04,0.00,COMMERCIAL SUPPLIER 
 09-12-2020,Adults,Home Support Services (Havering & Essex) Ltd,Home Care - Private Contractors Payment,541.39,0.00,COMMERCIAL SUPPLIER 
 09-12-2020,Adults,Home Support Services (Havering & Essex) Ltd,Home Care - Private Contractors Payment,545.03,0.00,COMMERCIAL SUPPLIER 
 09-12-2020,Adults,Home Support Services (Havering & Essex) Ltd,Home Care - Private Contractors Payment,526.89,0.00,COMMERCIAL SUPPLIER 
 09-12-2020,Adults,Home Support Services (Havering & Essex) Ltd,Home Care - Private Contractors Payment,1055.60,0.00,COMMERCIAL SUPPLIER 
 09-12-2020,Adults,Home Support Services (Havering & Essex) Ltd,Home Care - Private Contractors Payment,972.38,0.00,COMMERCIAL SUPPLIER 
 09-12-2020,Adults,Home Support Services (Havering & Essex) Ltd,Home Care - Private Contractors Payment,953.88,0.00,COMMERCIAL SUPPLIER 
 09-12-2020,Adults,Home Support Services (Havering & Essex) Ltd,Home Care - Private Contractors Payment,588.71,0.00,COMMERCIAL SUPPLIER 
 09-12-2020,Adults,Home Support Services (Havering & Essex) Ltd,Home Care - Private Contractors Payment,868.10,0.00,COMMERCIAL SUPPLIER 
 09-12-2020,Adults,Home Support Services (Havering & Essex) Ltd,Home Care - Private Contractors Payment,508.63,0.00,COMMERCIAL SUPPLIER 
 09-12-2020,Adults,Home Support Services (Havering & Essex) Ltd,Home Care - Private Contractors Payment,537.81,0.00,COMMERCIAL SUPPLIER 
 09-12-2020,Adults,Home Support Services (Havering & Essex) Ltd,Home Care - Private Contractors Payment,545.99,0.00,COMMERCIAL SUPPLIER 
 09-12-2020,Adults,Home Support Services (Havering & Essex) Ltd,Home Care - Private Contractors Payment,515.00,0.00,COMMERCIAL SUPPLIER 
 09-12-2020,Adults,Home Support Services (Havering & Essex) Ltd,Home Care - Private Contractors Payment,524.71,0.00,COMMERCIAL SUPPLIER 
 09-12-2020,Adults,Home Support Services (Havering & Essex) Ltd,Home Care - Private Contractors Payment,1004.61,0.00,COMMERCIAL SUPPLIER 
 09-12-2020,Adults,Home Support Services (Havering & Essex) Ltd,Home Care - Private Contractors Payment,684.92,0.00,COMMERCIAL SUPPLIER 
 09-12-2020,Adults,Home Support Services (Havering & Essex) Ltd,Home Care - Private Contractors Payment,510.45,0.00,COMMERCIAL SUPPLIER 
 09-12-2020,Adults,Home Support Services (Havering & Essex) Ltd,Home Care - Private Contractors Payment,1176.01,0.00,COMMERCIAL SUPPLIER 
 09-12-2020,Adults,Home Support Services (Havering & Essex) Ltd,Home Care - Private Contractors Payment,1152.36,0.00,COMMERCIAL SUPPLIER 
 09-12-2020,Adults,Home Support Services (Havering & Essex) Ltd,Home Care - Private Contractors Payment,543.51,0.00,COMMERCIAL SUPPLIER 
 09-12-2020,Adults,Home Support Services (Havering & Essex) Ltd,Home Care - Private Contractors Payment,1257.02,0.00,COMMERCIAL SUPPLIER 
 09-12-2020,Adults,Home Support Services (Havering & Essex) Ltd,Home Care - Private Contractors Payment,842.66,0.00,COMMERCIAL SUPPLIER 
 09-12-2020,Adults,Home Support Services (Havering & Essex) Ltd,Home Care - Private Contractors Payment,521.98,0.00,COMMERCIAL SUPPLIER 
 09-12-2020,Adults,Home Support Services (Havering & Essex) Ltd,Home Care - Private Contractors Payment,522.59,0.00,COMMERCIAL SUPPLIER 
 09-12-2020,Adults,Home Support Services (Havering & Essex) Ltd,Home Care - Private Contractors Payment,1266.11,0.00,COMMERCIAL SUPPLIER 
 09-12-2020,Adults,Home Support Services (Havering & Essex) Ltd,Home Care - Private Contractors Payment,1183.31,0.00,COMMERCIAL SUPPLIER 
 09-12-2020,Adults,Home Support Services (Havering & Essex) Ltd,Home Care - Private Contractors Payment,999.50,0.00,COMMERCIAL SUPPLIER 
 09-12-2020,Adults,Home Support Services (Havering & Essex) Ltd,Home Care - Private Contractors Payment,824.14,0.00,COMMERCIAL SUPPLIER 
 09-12-2020,Adults,Home Support Services (Havering & Essex) Ltd,Home Care - Private Contractors Payment,574.15,0.00,COMMERCIAL SUPPLIER 
 09-12-2020,Adults,Home Support Services (Havering & Essex) Ltd,Home Care - Private Contractors Payment,968.56,0.00,COMMERCIAL SUPPLIER 
 09-12-2020,Adults,Home Support Services (Havering & Essex) Ltd,Home Care - Private Contractors Payment,572.63,0.00,COMMERCIAL SUPPLIER 
 09-12-2020,Adults,Home Support Services (Havering & Essex) Ltd,Home Care - Private Contractors Payment,879.96,0.00,COMMERCIAL SUPPLIER 
 09-12-2020,Adults,Home Support Services (Havering & Essex) Ltd,Home Care - Private Contractors Payment,538.05,0.00,COMMERCIAL SUPPLIER 
 09-12-2020,Adults,Home Support Services (Havering & Essex) Ltd,Home Care - Private Contractors Payment,1449.04,0.00,COMMERCIAL SUPPLIER 
 09-12-2020,Adults,Home Support Services (Havering & Essex) Ltd,Home Care - Private Contractors Payment,1102.61,0.00,COMMERCIAL SUPPLIER 
 09-12-2020,Adults,Home Support Services (Havering & Essex) Ltd,Home Care - Private Contractors Payment,1119.60,0.00,COMMERCIAL SUPPLIER 
 09-12-2020,Adults,Home Support Services (Havering & Essex) Ltd,Home Care - Private Contractors Payment,1341.34,0.00,COMMERCIAL SUPPLIER 
 09-12-2020,Adults,Home Support Services (Havering & Essex) Ltd,Home Care - Private Contractors Payment,1190.58,0.00,COMMERCIAL SUPPLIER 
 09-12-2020,Adults,Home Support Services (Havering & Essex) Ltd,Home Care - Private Contractors Payment,1083.50,0.00,COMMERCIAL SUPPLIER 
 09-12-2020,Adults,Home Support Services (Havering & Essex) Ltd,Home Care - Private Contractors Payment,627.83,0.00,COMMERCIAL SUPPLIER 
 09-12-2020,Adults,Home Support Services (Havering & Essex) Ltd,Home Care - Private Contractors Payment,772.29,0.00,COMMERCIAL SUPPLIER 
 09-12-2020,Adults,Home Support Services (Havering & Essex) Ltd,Home Care - Private Contractors Payment,1314.95,0.00,COMMERCIAL SUPPLIER 
 09-12-2020,Adults,Home Support Services (Havering & Essex) Ltd,Home Care - Private Contractors Payment,577.79,0.00,COMMERCIAL SUPPLIER 
 09-12-2020,Adults,Home Support Services (Havering & Essex) Ltd,Home Care - Private Contractors Payment,947.81,0.00,COMMERCIAL SUPPLIER 
 09-12-2020,Adults,Home Support Services (Havering & Essex) Ltd,Home Care - Private Contractors Payment,595.68,0.00,COMMERCIAL SUPPLIER 
 09-12-2020,Adults,Home Support Services (Havering & Essex) Ltd,Home Care - Private Contractors Payment,597.50,0.00,COMMERCIAL SUPPLIER 
 09-12-2020,Adults,Home Support Services (Havering & Essex) Ltd,Home Care - Private Contractors Payment,846.30,0.00,COMMERCIAL SUPPLIER 
 09-12-2020,Adults,Home Support Services (Havering & Essex) Ltd,Home Care - Private Contractors Payment,547.46,0.00,COMMERCIAL SUPPLIER 
 09-12-2020,Adults,Home Support Services (Havering & Essex) Ltd,Home Care - Private Contractors Payment,947.28,0.00,COMMERCIAL SUPPLIER 
 09-12-2020,Adults,Home Support Services (Havering & Essex) Ltd,Home Care - Private Contractors Payment,1118.39,0.00,COMMERCIAL SUPPLIER 
 09-12-2020,Adults,Home Support Services (Havering & Essex) Ltd,Home Care - Private Contractors Payment,1079.55,0.00,COMMERCIAL SUPPLIER 
 09-12-2020,Adults,Home Support Services (Havering & Essex) Ltd,Home Care - Private Contractors Payment,660.65,0.00,COMMERCIAL SUPPLIER 
 09-12-2020,Adults,Havering Women's Aid,Private Contractors Payment - Other,19433.20,0.00,NON COMMERCIAL SUPPLIER 
 09-12-2020,Adults,Rosemont Care Limited,Home Care - Private Contractors Payment,1019.09,0.00,COMMERCIAL SUPPLIER 
 09-12-2020,Adults,Rosemont Care Limited,Home Care - Private Contractors Payment,1019.09,0.00,COMMERCIAL SUPPLIER 
 09-12-2020,Adults,Rosemont Care Limited,Home Care - Private Contractors Payment,600.53,0.00,COMMERCIAL SUPPLIER 
 09-12-2020,Adults,Rosemont Care Limited,Home Care - Private Contractors Payment,600.53,0.00,COMMERCIAL SUPPLIER 
 09-12-2020,Adults,Rosemont Care Limited,Home Care - Private Contractors Payment,555.04,0.00,COMMERCIAL SUPPLIER 
 09-12-2020,Adults,Rosemont Care Limited,Home Care - Private Contractors Payment,1019.09,0.00,COMMERCIAL SUPPLIER 
 09-12-2020,Adults,Rosemont Care Limited,Home Care - Private Contractors Payment,1019.09,0.00,COMMERCIAL SUPPLIER 
 09-12-2020,Adults,Rosemont Care Limited,Home Care - Private Contractors Payment,1019.09,0.00,COMMERCIAL SUPPLIER 
 09-12-2020,Adults,Rosemont Care Limited,Home Care - Private Contractors Payment,1019.09,0.00,COMMERCIAL SUPPLIER 
 09-12-2020,Adults,Rosemont Care Limited,Home Care - Private Contractors Payment,573.24,0.00,COMMERCIAL SUPPLIER 
 09-12-2020,Adults,Rosemont Care Limited,Home Care - Private Contractors Payment,573.24,0.00,COMMERCIAL SUPPLIER 
 09-12-2020,Adults,Rosemont Care Limited,Home Care - Private Contractors Payment,764.32,0.00,COMMERCIAL SUPPLIER 
 09-12-2020,Adults,Rosemont Care Limited,Home Care - Private Contractors Payment,764.32,0.00,COMMERCIAL SUPPLIER 
 09-12-2020,Adults,Rosemont Care Limited,Home Care - Private Contractors Payment,1019.09,0.00,COMMERCIAL SUPPLIER 
 09-12-2020,Adults,Rosemont Care Limited,Home Care - Private Contractors Payment,1019.09,0.00,COMMERCIAL SUPPLIER 
 09-12-2020,Adults,Rosemont Care Limited,Home Care - Private Contractors Payment,1019.09,0.00,COMMERCIAL SUPPLIER 
 09-12-2020,Adults,Rosemont Care Limited,Home Care - Private Contractors Payment,1019.09,0.00,COMMERCIAL SUPPLIER 
 09-12-2020,Adults,Rosemont Care Limited,Home Care - Private Contractors Payment,764.32,0.00,COMMERCIAL SUPPLIER 
 09-12-2020,Adults,Rosemont Care Limited,Home Care - Private Contractors Payment,764.32,0.00,COMMERCIAL SUPPLIER 
 09-12-2020,Adults,Premier Carewaiting Ltd,Home Care - Private Contractors Payment,655.34,0.00,COMMERCIAL SUPPLIER 
 09-12-2020,Adults,Premier Carewaiting Ltd,Home Care - Private Contractors Payment,637.14,0.00,COMMERCIAL SUPPLIER 
 09-12-2020,Adults,Premier Carewaiting Ltd,Home Care - Private Contractors Payment,1383.50,0.00,COMMERCIAL SUPPLIER 
 09-12-2020,Adults,Premier Carewaiting Ltd,Home Care - Private Contractors Payment,637.14,0.00,COMMERCIAL SUPPLIER 
 09-12-2020,Adults,Premier Carewaiting Ltd,Home Care - Private Contractors Payment,1456.32,0.00,COMMERCIAL SUPPLIER 
 09-12-2020,Adults,Premier Carewaiting Ltd,Home Care - Private Contractors Payment,1456.32,0.00,COMMERCIAL SUPPLIER 
 09-12-2020,Adults,Premier Carewaiting Ltd,Home Care - Private Contractors Payment,673.55,0.00,COMMERCIAL SUPPLIER 
 09-12-2020,Adults,Premier Carewaiting Ltd,Home Care - Private Contractors Payment,655.34,0.00,COMMERCIAL SUPPLIER 
 09-12-2020,Adults,Premier Carewaiting Ltd,Home Care - Private Contractors Payment,4585.90,0.00,COMMERCIAL SUPPLIER 
 09-12-2020,Adults,Premier Carewaiting Ltd,Home Care - Private Contractors Payment,1273.86,0.00,COMMERCIAL SUPPLIER 
 09-12-2020,Adults,Premier Carewaiting Ltd,Home Care - Private Contractors Payment,764.57,0.00,COMMERCIAL SUPPLIER 
 09-12-2020,Adults,Premier Carewaiting Ltd,Home Care - Private Contractors Payment,1274.28,0.00,COMMERCIAL SUPPLIER 
 09-12-2020,Adults,Premier Carewaiting Ltd,Home Care - Private Contractors Payment,1328.89,0.00,COMMERCIAL SUPPLIER 
 09-12-2020,Adults,Premier Carewaiting Ltd,Home Care - Private Contractors Payment,1019.42,0.00,COMMERCIAL SUPPLIER 
 09-12-2020,Adults,Premier Carewaiting Ltd,Home Care - Private Contractors Payment,1656.56,0.00,COMMERCIAL SUPPLIER 
 09-12-2020,Adults,Premier Carewaiting Ltd,Home Care - Private Contractors Payment,1656.56,0.00,COMMERCIAL SUPPLIER 
 09-12-2020,Adults,Protecthand Care Ltd ,Other Short Term Support,1798.25,0.00,COMMERCIAL SUPPLIER 
 09-12-2020,Adults,Protecthand Care Ltd ,Other Short Term Support,1798.25,0.00,COMMERCIAL SUPPLIER 
 09-12-2020,Adults,Familycare Homes,Other Short Term Support,2000.00,0.00,COMMERCIAL SUPPLIER 
 10-12-2020,Adults,Reed Specialist Recruitment Ltd,Consultancy Fees,620.00,0.00,COMMERCIAL SUPPLIER 
 10-12-2020,Adults,Reed Specialist Recruitment Ltd,Consultancy Fees,930.00,0.00,COMMERCIAL SUPPLIER 
 10-12-2020,Adults,Reed Specialist Recruitment Ltd,Consultancy Fees,620.00,0.00,COMMERCIAL SUPPLIER 
 10-12-2020,Adults,Reed Specialist Recruitment Ltd,Consultancy Fees,930.00,0.00,COMMERCIAL SUPPLIER 
 10-12-2020,Adults,All Therapy Solutions Ltd,Occupational Health,2880.00,0.00,COMMERCIAL SUPPLIER 
 10-12-2020,Adults,Eastway Care Ltd_a,Daycare - Private Contractors Payment,4300.00,0.00,COMMERCIAL SUPPLIER 
 10-12-2020,Adults,Eastway Care Ltd_a,Daycare - Private Contractors Payment,1380.00,0.00,COMMERCIAL SUPPLIER 
 10-12-2020,Adults,Eastway Care Ltd_a,Daycare - Private Contractors Payment,2580.00,0.00,COMMERCIAL SUPPLIER 
 10-12-2020,Adults,Eastway Care Ltd_a,Daycare - Private Contractors Payment,3440.00,0.00,COMMERCIAL SUPPLIER 
 10-12-2020,Adults,Eastway Care Ltd_a,Daycare - Private Contractors Payment,2580.00,0.00,COMMERCIAL SUPPLIER 
 10-12-2020,Adults,Eastway Care Ltd_a,Daycare - Private Contractors Payment,4300.00,0.00,COMMERCIAL SUPPLIER 
 10-12-2020,Adults,Eastway Care Ltd_a,Daycare - Private Contractors Payment,1720.00,0.00,COMMERCIAL SUPPLIER 
 10-12-2020,Adults,Eastway Care Ltd_a,Daycare - Private Contractors Payment,860.00,0.00,COMMERCIAL SUPPLIER 
 10-12-2020,Adults,Eastway Care Ltd_a,Daycare - Private Contractors Payment,3100.00,0.00,COMMERCIAL SUPPLIER 
 10-12-2020,Adults,Eastway Care Ltd_a,Daycare - Private Contractors Payment,3850.00,0.00,COMMERCIAL SUPPLIER 
 10-12-2020,Adults,Housing 21,Rents Payable,10625.94,0.00,COMMERCIAL SUPPLIER 
 10-12-2020,Adults,The Learning Centre (TLC Romford) Ltd,Other Short Term Support,8000.00,0.00,COMMERCIAL SUPPLIER 
 10-12-2020,Adults,L & Q Living (SWIFT Payments),Other Short Term Support,15000.00,0.00,COMMERCIAL SUPPLIER 
 10-12-2020,Adults,The Sycamore Trust,Other Short Term Support,10000.00,0.00,COMMERCIAL SUPPLIER 
 10-12-2020,Adults,Havering Volunteer Centre,Other Short Term Support,20000.00,0.00,NON COMMERCIAL SUPPLIER 
 10-12-2020,Adults,Havering Association for People with Disabilities (H.A.D.),Other Short Term Support,10000.00,0.00,NON COMMERCIAL SUPPLIER 
 10-12-2020,Adults,Age UK East London,Other Short Term Support,10000.00,0.00,COMMERCIAL SUPPLIER 
 11-12-2020,Adults,Quality Healthcare Solutions Ltd t/a Kare Plus Romford,Home Care - Private Contractors Payment,651.49,0.00,COMMERCIAL SUPPLIER 
 11-12-2020,Adults,Quality Healthcare Solutions Ltd t/a Kare Plus Romford,Home Care - Private Contractors Payment,587.49,0.00,COMMERCIAL SUPPLIER 
 11-12-2020,Adults,Quality Healthcare Solutions Ltd t/a Kare Plus Romford,Home Care - Private Contractors Payment,590.53,0.00,COMMERCIAL SUPPLIER 
 11-12-2020,Adults,Quality Healthcare Solutions Ltd t/a Kare Plus Romford,Home Care - Private Contractors Payment,1108.26,0.00,COMMERCIAL SUPPLIER 
 11-12-2020,Adults,Quality Healthcare Solutions Ltd t/a Kare Plus Romford,Home Care - Private Contractors Payment,842.26,0.00,COMMERCIAL SUPPLIER 
 11-12-2020,Adults,Quality Healthcare Solutions Ltd t/a Kare Plus Romford,Home Care - Private Contractors Payment,796.16,0.00,COMMERCIAL SUPPLIER 
 11-12-2020,Adults,Quality Healthcare Solutions Ltd t/a Kare Plus Romford,Home Care - Private Contractors Payment,695.77,0.00,COMMERCIAL SUPPLIER 
 11-12-2020,Adults,Quality Healthcare Solutions Ltd t/a Kare Plus Romford,Home Care - Private Contractors Payment,779.78,0.00,COMMERCIAL SUPPLIER 
 11-12-2020,Adults,Quality Healthcare Solutions Ltd t/a Kare Plus Romford,Home Care - Private Contractors Payment,505.30,0.00,COMMERCIAL SUPPLIER 
 11-12-2020,Adults,Quality Healthcare Solutions Ltd t/a Kare Plus Romford,Home Care - Private Contractors Payment,635.50,0.00,COMMERCIAL SUPPLIER 
 11-12-2020,Adults,Quality Healthcare Solutions Ltd t/a Kare Plus Romford,Home Care - Private Contractors Payment,751.58,0.00,COMMERCIAL SUPPLIER 
 11-12-2020,Adults,Quality Healthcare Solutions Ltd t/a Kare Plus Romford,Home Care - Private Contractors Payment,770.99,0.00,COMMERCIAL SUPPLIER 
 11-12-2020,Adults,Quality Healthcare Solutions Ltd t/a Kare Plus Romford,Home Care - Private Contractors Payment,722.16,0.00,COMMERCIAL SUPPLIER 
 11-12-2020,Adults,Quality Healthcare Solutions Ltd t/a Kare Plus Romford,Home Care - Private Contractors Payment,772.20,0.00,COMMERCIAL SUPPLIER 
 11-12-2020,Adults,Reed Specialist Recruitment Ltd,Private Contractors Payment - Other,930.00,0.00,COMMERCIAL SUPPLIER 
 11-12-2020,Adults,Spring Consult UK Ltd,Home Care - Private Contractors Payment,2293.70,0.00,COMMERCIAL SUPPLIER 
 11-12-2020,Adults,Spring Consult UK Ltd,Home Care - Private Contractors Payment,3822.84,0.00,COMMERCIAL SUPPLIER 
 11-12-2020,Adults,Morepower Ltd t/a Aqs Homecare,Home Care - Private Contractors Payment,946.30,0.00,COMMERCIAL SUPPLIER 
 11-12-2020,Adults,Morepower Ltd t/a Aqs Homecare,Home Care - Private Contractors Payment,854.40,0.00,COMMERCIAL SUPPLIER 
 11-12-2020,Adults,Morepower Ltd t/a Aqs Homecare,Home Care - Private Contractors Payment,1076.41,0.00,COMMERCIAL SUPPLIER 
 11-12-2020,Adults,Morepower Ltd t/a Aqs Homecare,Home Care - Private Contractors Payment,1076.41,0.00,COMMERCIAL SUPPLIER 
 11-12-2020,Adults,Morepower Ltd t/a Aqs Homecare,Home Care - Private Contractors Payment,608.42,0.00,COMMERCIAL SUPPLIER 
 11-12-2020,Adults,Morepower Ltd t/a Aqs Homecare,Home Care - Private Contractors Payment,611.15,0.00,COMMERCIAL SUPPLIER 
 11-12-2020,Adults,Morepower Ltd t/a Aqs Homecare,Home Care - Private Contractors Payment,634.81,0.00,COMMERCIAL SUPPLIER 
 11-12-2020,Adults,Morepower Ltd t/a Aqs Homecare,Home Care - Private Contractors Payment,634.81,0.00,COMMERCIAL SUPPLIER 
 11-12-2020,Adults,Morepower Ltd t/a Aqs Homecare,Home Care - Private Contractors Payment,831.65,0.00,COMMERCIAL SUPPLIER 
 11-12-2020,Adults,Morepower Ltd t/a Aqs Homecare,Home Care - Private Contractors Payment,831.95,0.00,COMMERCIAL SUPPLIER 
 11-12-2020,Adults,Morepower Ltd t/a Aqs Homecare,Home Care - Private Contractors Payment,503.17,0.00,COMMERCIAL SUPPLIER 
 11-12-2020,Adults,Morepower Ltd t/a Aqs Homecare,Home Care - Private Contractors Payment,1521.05,0.00,COMMERCIAL SUPPLIER 
 11-12-2020,Adults,Morepower Ltd t/a Aqs Homecare,Home Care - Private Contractors Payment,673.93,0.00,COMMERCIAL SUPPLIER 
 11-12-2020,Adults,Morepower Ltd t/a Aqs Homecare,Home Care - Private Contractors Payment,868.65,0.00,COMMERCIAL SUPPLIER 
 11-12-2020,Adults,Morepower Ltd t/a Aqs Homecare,Home Care - Private Contractors Payment,683.33,0.00,COMMERCIAL SUPPLIER 
 11-12-2020,Adults,Morepower Ltd t/a Aqs Homecare,Home Care - Private Contractors Payment,675.45,0.00,COMMERCIAL SUPPLIER 
 11-12-2020,Adults,Morepower Ltd t/a Aqs Homecare,Home Care - Private Contractors Payment,703.35,0.00,COMMERCIAL SUPPLIER 
 11-12-2020,Adults,Morepower Ltd t/a Aqs Homecare,Home Care - Private Contractors Payment,687.88,0.00,COMMERCIAL SUPPLIER 
 11-12-2020,Adults,Morepower Ltd t/a Aqs Homecare,Home Care - Private Contractors Payment,1029.70,0.00,COMMERCIAL SUPPLIER 
 11-12-2020,Adults,Morepower Ltd t/a Aqs Homecare,Home Care - Private Contractors Payment,683.33,0.00,COMMERCIAL SUPPLIER 
 11-12-2020,Adults,Morepower Ltd t/a Aqs Homecare,Home Care - Private Contractors Payment,945.39,0.00,COMMERCIAL SUPPLIER 
 11-12-2020,Adults,Morepower Ltd t/a Aqs Homecare,Home Care - Private Contractors Payment,1045.48,0.00,COMMERCIAL SUPPLIER 
 11-12-2020,Adults,Morepower Ltd t/a Aqs Homecare,Home Care - Private Contractors Payment,1045.48,0.00,COMMERCIAL SUPPLIER 
 11-12-2020,Adults,Morepower Ltd t/a Aqs Homecare,Home Care - Private Contractors Payment,623.58,0.00,COMMERCIAL SUPPLIER 
 11-12-2020,Adults,Morepower Ltd t/a Aqs Homecare,Home Care - Private Contractors Payment,700.93,0.00,COMMERCIAL SUPPLIER 
 11-12-2020,Adults,Morepower Ltd t/a Aqs Homecare,Home Care - Private Contractors Payment,705.48,0.00,COMMERCIAL SUPPLIER 
 11-12-2020,Adults,Morepower Ltd t/a Aqs Homecare,Home Care - Private Contractors Payment,705.78,0.00,COMMERCIAL SUPPLIER 
 11-12-2020,Adults,Morepower Ltd t/a Aqs Homecare,Home Care - Private Contractors Payment,1356.66,0.00,COMMERCIAL SUPPLIER 
 11-12-2020,Adults,Morepower Ltd t/a Aqs Homecare,Home Care - Private Contractors Payment,912.93,0.00,COMMERCIAL SUPPLIER 
 11-12-2020,Adults,Independent Age,Other Short Term Support,5000.00,0.00,COMMERCIAL SUPPLIER 
 11-12-2020,Adults,Funky Willows Ltd,Other Short Term Support,8000.00,0.00,COMMERCIAL SUPPLIER 
 11-12-2020,Adults,Tapestry_a.,Other Short Term Support,20000.00,0.00,COMMERCIAL SUPPLIER 
 11-12-2020,Adults,Ace Outreach Ltd,Home Care - Private Contractors Payment,601.39,0.00,COMMERCIAL SUPPLIER 
 11-12-2020,Adults,Ace Outreach Ltd,Home Care - Private Contractors Payment,2296.00,0.00,COMMERCIAL SUPPLIER 
 14-12-2020,Adults,Reed Specialist Recruitment Ltd,Consultancy Fees,620.00,0.00,COMMERCIAL SUPPLIER 
 14-12-2020,Adults,Reed Specialist Recruitment Ltd,Consultancy Fees,1550.00,0.00,COMMERCIAL SUPPLIER 
 14-12-2020,Adults,Reed Specialist Recruitment Ltd,Consultancy Fees,930.00,0.00,COMMERCIAL SUPPLIER 
 14-12-2020,Adults,Reed Specialist Recruitment Ltd,Consultancy Fees,930.00,0.00,COMMERCIAL SUPPLIER 
 14-12-2020,Adults,Reed Specialist Recruitment Ltd,Consultancy Fees,620.00,0.00,COMMERCIAL SUPPLIER 
 14-12-2020,Adults,Reed Specialist Recruitment Ltd,Consultancy Fees,620.00,0.00,COMMERCIAL SUPPLIER 
 14-12-2020,Adults,Lodge Group Care UK Ltd,Home Care - Private Contractors Payment,689.70,0.00,COMMERCIAL SUPPLIER 
 14-12-2020,Adults,Lodge Group Care UK Ltd,Home Care - Private Contractors Payment,945.99,0.00,COMMERCIAL SUPPLIER 
 14-12-2020,Adults,Lodge Group Care UK Ltd,Home Care - Private Contractors Payment,724.58,0.00,COMMERCIAL SUPPLIER 
 14-12-2020,Adults,Lodge Group Care UK Ltd,Home Care - Private Contractors Payment,552.68,0.00,COMMERCIAL SUPPLIER 
 14-12-2020,Adults,Lodge Group Care UK Ltd,Home Care - Private Contractors Payment,547.52,0.00,COMMERCIAL SUPPLIER 
 14-12-2020,Adults,Lodge Group Care UK Ltd,Home Care - Private Contractors Payment,548.97,0.00,COMMERCIAL SUPPLIER 
 14-12-2020,Adults,Lodge Group Care UK Ltd,Home Care - Private Contractors Payment,574.81,0.00,COMMERCIAL SUPPLIER 
 14-12-2020,Adults,Lodge Group Care UK Ltd,Home Care - Private Contractors Payment,625.71,0.00,COMMERCIAL SUPPLIER 
 14-12-2020,Adults,Lodge Group Care UK Ltd,Home Care - Private Contractors Payment,943.87,0.00,COMMERCIAL SUPPLIER 
 14-12-2020,Adults,Lodge Group Care UK Ltd,Home Care - Private Contractors Payment,814.97,0.00,COMMERCIAL SUPPLIER 
 14-12-2020,Adults,Lodge Group Care UK Ltd,Home Care - Private Contractors Payment,1107.95,0.00,COMMERCIAL SUPPLIER 
 14-12-2020,Adults,Lodge Group Care UK Ltd,Home Care - Private Contractors Payment,701.23,0.00,COMMERCIAL SUPPLIER 
 14-12-2020,Adults,Lodge Group Care UK Ltd,Home Care - Private Contractors Payment,720.34,0.00,COMMERCIAL SUPPLIER 
 14-12-2020,Adults,Lodge Group Care UK Ltd,Home Care - Private Contractors Payment,785.93,0.00,COMMERCIAL SUPPLIER 
 14-12-2020,Adults,Lodge Group Care UK Ltd,Home Care - Private Contractors Payment,975.72,0.00,COMMERCIAL SUPPLIER 
 14-12-2020,Adults,Lodge Group Care UK Ltd,Home Care - Private Contractors Payment,1005.44,0.00,COMMERCIAL SUPPLIER 
 14-12-2020,Adults,Lodge Group Care UK Ltd,Home Care - Private Contractors Payment,790.40,0.00,COMMERCIAL SUPPLIER 
 14-12-2020,Adults,Lodge Group Care UK Ltd,Home Care - Private Contractors Payment,847.42,0.00,COMMERCIAL SUPPLIER 
 14-12-2020,Adults,Lodge Group Care UK Ltd,Home Care - Private Contractors Payment,670.60,0.00,COMMERCIAL SUPPLIER 
 14-12-2020,Adults,Lodge Group Care UK Ltd,Home Care - Private Contractors Payment,866.33,0.00,COMMERCIAL SUPPLIER 
 14-12-2020,Adults,Lodge Group Care UK Ltd,Home Care - Private Contractors Payment,933.34,0.00,COMMERCIAL SUPPLIER 
 14-12-2020,Adults,Prior Care Ltd_a,Home Care - Private Contractors Payment,837.71,0.00,COMMERCIAL SUPPLIER 
 14-12-2020,Adults,Prior Care Ltd_a,Home Care - Private Contractors Payment,501.35,0.00,COMMERCIAL SUPPLIER 
 14-12-2020,Adults,Prior Care Ltd_a,Home Care - Private Contractors Payment,539.27,0.00,COMMERCIAL SUPPLIER 
 14-12-2020,Adults,Prior Care Ltd_a,Home Care - Private Contractors Payment,997.67,0.00,COMMERCIAL SUPPLIER 
 14-12-2020,Adults,Prior Care Ltd_a,Home Care - Private Contractors Payment,780.09,0.00,COMMERCIAL SUPPLIER 
 14-12-2020,Adults,Prior Care Ltd_a,Home Care - Private Contractors Payment,559.59,0.00,COMMERCIAL SUPPLIER 
 14-12-2020,Adults,Prior Care Ltd_a,Home Care - Private Contractors Payment,771.60,0.00,COMMERCIAL SUPPLIER 
 14-12-2020,Adults,Prior Care Ltd_a,Home Care - Private Contractors Payment,619.34,0.00,COMMERCIAL SUPPLIER 
 14-12-2020,Adults,Prior Care Ltd_a,Home Care - Private Contractors Payment,571.72,0.00,COMMERCIAL SUPPLIER 
 14-12-2020,Adults,Prior Care Ltd_a,Home Care - Private Contractors Payment,574.15,0.00,COMMERCIAL SUPPLIER 
 14-12-2020,Adults,Prior Care Ltd_a,Home Care - Private Contractors Payment,907.28,0.00,COMMERCIAL SUPPLIER 
 14-12-2020,Adults,Prior Care Ltd_a,Home Care - Private Contractors Payment,515.00,0.00,COMMERCIAL SUPPLIER 
 14-12-2020,Adults,Prior Care Ltd_a,Home Care - Private Contractors Payment,555.95,0.00,COMMERCIAL SUPPLIER 
 14-12-2020,Adults,Prior Care Ltd_a,Home Care - Private Contractors Payment,557.47,0.00,COMMERCIAL SUPPLIER 
 14-12-2020,Adults,Prior Care Ltd_a,Home Care - Private Contractors Payment,955.81,0.00,COMMERCIAL SUPPLIER 
 14-12-2020,Adults,Prior Care Ltd_a,Home Care - Private Contractors Payment,521.37,0.00,COMMERCIAL SUPPLIER 
 14-12-2020,Adults,Prior Care Ltd_a,Home Care - Private Contractors Payment,1129.49,0.00,COMMERCIAL SUPPLIER 
 14-12-2020,Adults,Prior Care Ltd_a,Home Care - Private Contractors Payment,690.39,0.00,COMMERCIAL SUPPLIER 
 14-12-2020,Adults,Prior Care Ltd_a,Home Care - Private Contractors Payment,709.42,0.00,COMMERCIAL SUPPLIER 
 14-12-2020,Adults,Prior Care Ltd_a,Home Care - Private Contractors Payment,712.45,0.00,COMMERCIAL SUPPLIER 
 14-12-2020,Adults,Prior Care Ltd_a,Home Care - Private Contractors Payment,555.34,0.00,COMMERCIAL SUPPLIER 
 14-12-2020,Adults,Prior Care Ltd_a,Home Care - Private Contractors Payment,803.44,0.00,COMMERCIAL SUPPLIER 
 14-12-2020,Adults,Prior Care Ltd_a,Home Care - Private Contractors Payment,591.74,0.00,COMMERCIAL SUPPLIER 
 14-12-2020,Adults,Prior Care Ltd_a,Home Care - Private Contractors Payment,563.83,0.00,COMMERCIAL SUPPLIER 
 14-12-2020,Adults,Prior Care Ltd_a,Home Care - Private Contractors Payment,570.57,0.00,COMMERCIAL SUPPLIER 
 14-12-2020,Adults,Prior Care Ltd_a,Home Care - Private Contractors Payment,643.06,0.00,COMMERCIAL SUPPLIER 
 14-12-2020,Adults,Prior Care Ltd_a,Home Care - Private Contractors Payment,883.51,0.00,COMMERCIAL SUPPLIER 
 14-12-2020,Adults,Prior Care Ltd_a,Home Care - Private Contractors Payment,889.88,0.00,COMMERCIAL SUPPLIER 
 14-12-2020,Adults,Treetops Romford Ltd,Other Short Term Support,8000.00,0.00,COMMERCIAL SUPPLIER 
 14-12-2020,Adults,Brand Healthcare Services Ltd,Other Short Term Support,1798.25,0.00,COMMERCIAL SUPPLIER 
 14-12-2020,Adults,"Age Uk Redbridge, Barking and Havering Limited",Other Short Term Support,10000.00,0.00,COMMERCIAL SUPPLIER 
 14-12-2020,Adults,Allied Health Services Ltd,Home Care - Private Contractors Payment,1195.61,0.00,COMMERCIAL SUPPLIER 
 14-12-2020,Adults,Allied Health Services Ltd,Home Care - Private Contractors Payment,1195.91,0.00,COMMERCIAL SUPPLIER 
 14-12-2020,Adults,Allied Health Services Ltd,Home Care - Private Contractors Payment,1032.43,0.00,COMMERCIAL SUPPLIER 
 14-12-2020,Adults,Allied Health Services Ltd,Home Care - Private Contractors Payment,1034.56,0.00,COMMERCIAL SUPPLIER 
 14-12-2020,Adults,Allied Health Services Ltd,Home Care - Private Contractors Payment,811.02,0.00,COMMERCIAL SUPPLIER 
 14-12-2020,Adults,Allied Health Services Ltd,Home Care - Private Contractors Payment,510.15,0.00,COMMERCIAL SUPPLIER 
 14-12-2020,Adults,Allied Health Services Ltd,Home Care - Private Contractors Payment,952.36,0.00,COMMERCIAL SUPPLIER 
 14-12-2020,Adults,Allied Health Services Ltd,Home Care - Private Contractors Payment,967.53,0.00,COMMERCIAL SUPPLIER 
 14-12-2020,Adults,Allied Health Services Ltd,Home Care - Private Contractors Payment,1030.92,0.00,COMMERCIAL SUPPLIER 
 14-12-2020,Adults,Allied Health Services Ltd,Home Care - Private Contractors Payment,1032.74,0.00,COMMERCIAL SUPPLIER 
 14-12-2020,Adults,Allied Health Services Ltd,Home Care - Private Contractors Payment,1032.13,0.00,COMMERCIAL SUPPLIER 
 14-12-2020,Adults,Allied Health Services Ltd,Home Care - Private Contractors Payment,1583.53,0.00,COMMERCIAL SUPPLIER 
 14-12-2020,Adults,Allied Health Services Ltd,Home Care - Private Contractors Payment,1591.42,0.00,COMMERCIAL SUPPLIER 
 14-12-2020,Adults,Allied Health Services Ltd,Home Care - Private Contractors Payment,794.04,0.00,COMMERCIAL SUPPLIER 
 14-12-2020,Adults,Allied Health Services Ltd,Home Care - Private Contractors Payment,537.45,0.00,COMMERCIAL SUPPLIER 
 14-12-2020,Adults,Allied Health Services Ltd,Home Care - Private Contractors Payment,1072.17,0.00,COMMERCIAL SUPPLIER 
 14-12-2020,Adults,Allied Health Services Ltd,Home Care - Private Contractors Payment,1073.68,0.00,COMMERCIAL SUPPLIER 
 14-12-2020,Adults,Allied Health Services Ltd,Home Care - Private Contractors Payment,563.23,0.00,COMMERCIAL SUPPLIER 
 14-12-2020,Adults,Allied Health Services Ltd,Home Care - Private Contractors Payment,558.07,0.00,COMMERCIAL SUPPLIER 
 14-12-2020,Adults,Allied Health Services Ltd,Home Care - Private Contractors Payment,1399.43,0.00,COMMERCIAL SUPPLIER 
 14-12-2020,Adults,Allied Health Services Ltd,Home Care - Private Contractors Payment,1053.66,0.00,COMMERCIAL SUPPLIER 
 14-12-2020,Adults,Allied Health Services Ltd,Home Care - Private Contractors Payment,807.38,0.00,COMMERCIAL SUPPLIER 
 14-12-2020,Adults,Allied Health Services Ltd,Home Care - Private Contractors Payment,526.53,0.00,COMMERCIAL SUPPLIER 
 14-12-2020,Adults,Allied Health Services Ltd,Home Care - Private Contractors Payment,1071.26,0.00,COMMERCIAL SUPPLIER 
 14-12-2020,Adults,Allied Health Services Ltd,Home Care - Private Contractors Payment,1052.45,0.00,COMMERCIAL SUPPLIER 
 14-12-2020,Adults,Allied Health Services Ltd,Home Care - Private Contractors Payment,515.00,0.00,COMMERCIAL SUPPLIER 
 14-12-2020,Adults,Allied Health Services Ltd,Home Care - Private Contractors Payment,781.00,0.00,COMMERCIAL SUPPLIER 
 14-12-2020,Adults,Allied Health Services Ltd,Home Care - Private Contractors Payment,1629.93,0.00,COMMERCIAL SUPPLIER 
 14-12-2020,Adults,Allied Health Services Ltd,Home Care - Private Contractors Payment,2578.05,0.00,COMMERCIAL SUPPLIER 
 14-12-2020,Adults,Allied Health Services Ltd,Home Care - Private Contractors Payment,799.20,0.00,COMMERCIAL SUPPLIER 
 14-12-2020,Adults,Allied Health Services Ltd,Home Care - Private Contractors Payment,790.10,0.00,COMMERCIAL SUPPLIER 
 14-12-2020,Adults,Allied Health Services Ltd,Home Care - Private Contractors Payment,1060.34,0.00,COMMERCIAL SUPPLIER 
 14-12-2020,Adults,Allied Health Services Ltd,Home Care - Private Contractors Payment,1061.25,0.00,COMMERCIAL SUPPLIER 
 14-12-2020,Adults,Allied Health Services Ltd,Home Care - Private Contractors Payment,821.34,0.00,COMMERCIAL SUPPLIER 
 14-12-2020,Adults,Allied Health Services Ltd,Home Care - Private Contractors Payment,557.77,0.00,COMMERCIAL SUPPLIER 
 14-12-2020,Adults,Allied Health Services Ltd,Home Care - Private Contractors Payment,1183.17,0.00,COMMERCIAL SUPPLIER 
 14-12-2020,Adults,Allied Health Services Ltd,Home Care - Private Contractors Payment,1187.42,0.00,COMMERCIAL SUPPLIER 
 14-12-2020,Adults,Allied Health Services Ltd,Home Care - Private Contractors Payment,1300.85,0.00,COMMERCIAL SUPPLIER 
 14-12-2020,Adults,Allied Health Services Ltd,Home Care - Private Contractors Payment,525.92,0.00,COMMERCIAL SUPPLIER 
 15-12-2020,Adults,Greatbatch Ltd t/a Letterbox Distribution,"Advertising, Publicity And Marketing",15433.14,0.00,COMMERCIAL SUPPLIER 
 15-12-2020,Adults,Fountains Care Centre - Bondcare,Other Short Term Support,23040.25,0.00,COMMERCIAL SUPPLIER 
 15-12-2020,Adults,Fountains Care Centre - Bondcare,Nursing Homes - Private Contractors Payment,2833.32,0.00,COMMERCIAL SUPPLIER 
 15-12-2020,Adults,Fountains Care Centre - Bondcare,Nursing Homes - Private Contractors Payment,3264.00,0.00,COMMERCIAL SUPPLIER 
 15-12-2020,Adults,Fountains Care Centre - Bondcare,Nursing Homes - Private Contractors Payment,2296.00,0.00,COMMERCIAL SUPPLIER 
 15-12-2020,Adults,Fountains Care Centre - Bondcare,Residential Placements - Private Contractors Payment,2248.00,0.00,COMMERCIAL SUPPLIER 
 15-12-2020,Adults,Fountains Care Centre - Bondcare,Residential Placements - Private Contractors Payment,2213.52,0.00,COMMERCIAL SUPPLIER 
 15-12-2020,Adults,Fountains Care Centre - Bondcare,Residential Placements - Private Contractors Payment,2248.00,0.00,COMMERCIAL SUPPLIER 
 15-12-2020,Adults,Fountains Care Centre - Bondcare,Nursing Homes - Private Contractors Payment,615.00,0.00,COMMERCIAL SUPPLIER 
 15-12-2020,Adults,Fountains Care Centre - Bondcare,Nursing Homes - Private Contractors Payment,2460.00,0.00,COMMERCIAL SUPPLIER 
 15-12-2020,Adults,Fountains Care Centre - Bondcare,Residential Placements - Private Contractors Payment,2524.00,0.00,COMMERCIAL SUPPLIER 
 15-12-2020,Adults,Fountains Care Centre - Bondcare,Nursing Care Income,735.44,0.00,COMMERCIAL SUPPLIER 
 15-12-2020,Adults,Fountains Care Centre - Bondcare,Nursing Homes - Private Contractors Payment,2460.00,0.00,COMMERCIAL SUPPLIER 
 15-12-2020,Adults,Fountains Care Centre - Bondcare,Nursing Homes - Private Contractors Payment,2460.00,0.00,COMMERCIAL SUPPLIER 
 15-12-2020,Adults,Fountains Care Centre - Bondcare,Residential Placements - Private Contractors Payment,2524.00,0.00,COMMERCIAL SUPPLIER 
 15-12-2020,Adults,Fountains Care Centre - Bondcare,Residential Placements - Private Contractors Payment,2524.00,0.00,COMMERCIAL SUPPLIER 
 15-12-2020,Adults,Fountains Care Centre - Bondcare,Residential Placements - Private Contractors Payment,2524.00,0.00,COMMERCIAL SUPPLIER 
 15-12-2020,Adults,Fountains Care Centre - Bondcare,Residential Placements - Private Contractors Payment,3000.00,0.00,COMMERCIAL SUPPLIER 
 15-12-2020,Adults,Fountains Care Centre - Bondcare,Nursing Homes - Private Contractors Payment,2356.00,0.00,COMMERCIAL SUPPLIER 
 15-12-2020,Adults,Fountains Care Centre - Bondcare,Nursing Care Income,739.68,0.00,COMMERCIAL SUPPLIER 
 15-12-2020,Adults,Fountains Care Centre - Bondcare,Nursing Homes - Private Contractors Payment,2460.00,0.00,COMMERCIAL SUPPLIER 
 15-12-2020,Adults,Fountains Care Centre - Bondcare,Nursing Homes - Private Contractors Payment,2460.00,0.00,COMMERCIAL SUPPLIER 
 15-12-2020,Adults,Fountains Care Centre - Bondcare,Nursing Homes - Private Contractors Payment,2460.00,0.00,COMMERCIAL SUPPLIER 
 15-12-2020,Adults,Fountains Care Centre - Bondcare,Residential Placements - Private Contractors Payment,2248.00,0.00,COMMERCIAL SUPPLIER 
 15-12-2020,Adults,Fountains Care Centre - Bondcare,Nursing Homes - Private Contractors Payment,1142.14,0.00,COMMERCIAL SUPPLIER 
 15-12-2020,Adults,Fountains Care Centre - Bondcare,Nursing Homes - Private Contractors Payment,2460.00,0.00,COMMERCIAL SUPPLIER 
 15-12-2020,Adults,Fountains Care Centre - Bondcare,Residential Placements - Private Contractors Payment,2248.00,0.00,COMMERCIAL SUPPLIER 
 15-12-2020,Adults,Fountains Care Centre - Bondcare,Nursing Homes - Private Contractors Payment,1440.00,0.00,COMMERCIAL SUPPLIER 
 15-12-2020,Adults,Fountains Care Centre - Bondcare,Nursing Homes - Private Contractors Payment,5040.00,0.00,COMMERCIAL SUPPLIER 
 15-12-2020,Adults,Fountains Care Centre - Bondcare,Residential Placements - Private Contractors Payment,2248.00,0.00,COMMERCIAL SUPPLIER 
 15-12-2020,Adults,Fountains Care Centre - Bondcare,Nursing Homes - Private Contractors Payment,2460.00,0.00,COMMERCIAL SUPPLIER 
 15-12-2020,Adults,Black Swan International Ltd - Belamacanda,Residential Placements - Private Contractors Payment,3468.00,0.00,COMMERCIAL SUPPLIER 
 15-12-2020,Adults,Black Swan International Ltd - Belamacanda,Residential Placements - Private Contractors Payment,2532.20,0.00,COMMERCIAL SUPPLIER 
 15-12-2020,Adults,Black Swan International Ltd - Belamacanda,Residential Placements - Private Contractors Payment,2483.48,0.00,COMMERCIAL SUPPLIER 
 15-12-2020,Adults,Leonard Cheshire Disability_a,Residential Placements - Private Contractors Payment,5779.60,0.00,COMMERCIAL SUPPLIER 
 15-12-2020,Adults,Leonard Cheshire Disability_a,Residential Placements - Private Contractors Payment,5613.52,0.00,COMMERCIAL SUPPLIER 
 15-12-2020,Adults,Voyage Ltd - Solar-Grange Liss,Nursing Homes - Private Contractors Payment,4895.44,0.00,COMMERCIAL SUPPLIER 
 15-12-2020,Adults,Havering Care Homes Ltd t/a Abbscross Nursing Home,Nursing Homes - Private Contractors Payment,2460.00,0.00,COMMERCIAL SUPPLIER 
 15-12-2020,Adults,Havering Care Homes Ltd t/a Abbscross Nursing Home,Nursing Homes - Private Contractors Payment,2460.00,0.00,COMMERCIAL SUPPLIER 
 15-12-2020,Adults,Havering Care Homes Ltd t/a Abbscross Nursing Home,Nursing Homes - Private Contractors Payment,2296.00,0.00,COMMERCIAL SUPPLIER 
 15-12-2020,Adults,Havering Care Homes Ltd t/a Abbscross Nursing Home,Other Short Term Support,10405.28,0.00,COMMERCIAL SUPPLIER 
 15-12-2020,Adults,Havering Care Homes Ltd t/a Abbscross Nursing Home,Nursing Homes - Private Contractors Payment,2296.00,0.00,COMMERCIAL SUPPLIER 
 15-12-2020,Adults,Havering Care Homes Ltd t/a Abbscross Nursing Home,Nursing Homes - Private Contractors Payment,2460.00,0.00,COMMERCIAL SUPPLIER 
 15-12-2020,Adults,Havering Care Homes Ltd t/a Abbscross Nursing Home,Nursing Homes - Private Contractors Payment,2460.00,0.00,COMMERCIAL SUPPLIER 
 15-12-2020,Adults,Havering Care Homes Ltd t/a Abbscross Nursing Home,Nursing Homes - Private Contractors Payment,3672.00,0.00,COMMERCIAL SUPPLIER 
 15-12-2020,Adults,One Tree Estates Ltd t/a Ashbrook Nursing Home,Nursing Homes - Private Contractors Payment,2460.00,0.00,COMMERCIAL SUPPLIER 
 15-12-2020,Adults,One Tree Estates Ltd t/a Ashbrook Nursing Home,Nursing Homes - Private Contractors Payment,2460.00,0.00,COMMERCIAL SUPPLIER 
 15-12-2020,Adults,One Tree Estates Ltd t/a Ashbrook Nursing Home,Nursing Homes - Private Contractors Payment,2460.00,0.00,COMMERCIAL SUPPLIER 
 15-12-2020,Adults,One Tree Estates Ltd t/a Ashbrook Nursing Home,Nursing Homes - Private Contractors Payment,12096.00,0.00,COMMERCIAL SUPPLIER 
 15-12-2020,Adults,One Tree Estates Ltd t/a Ashbrook Nursing Home,Nursing Homes - Private Contractors Payment,2460.00,0.00,COMMERCIAL SUPPLIER 
 15-12-2020,Adults,One Tree Estates Ltd t/a Ashbrook Nursing Home,Nursing Homes - Private Contractors Payment,2460.00,0.00,COMMERCIAL SUPPLIER 
 15-12-2020,Adults,One Tree Estates Ltd t/a Ashbrook Nursing Home,Nursing Homes - Private Contractors Payment,2460.00,0.00,COMMERCIAL SUPPLIER 
 15-12-2020,Adults,One Tree Estates Ltd t/a Ashbrook Nursing Home,Nursing Homes - Private Contractors Payment,2460.00,0.00,COMMERCIAL SUPPLIER 
 15-12-2020,Adults,One Tree Estates Ltd t/a Ashbrook Nursing Home,Nursing Homes - Private Contractors Payment,1230.00,0.00,COMMERCIAL SUPPLIER 
 15-12-2020,Adults,One Tree Estates Ltd t/a Ashbrook Nursing Home,Nursing Homes - Private Contractors Payment,2460.00,0.00,COMMERCIAL SUPPLIER 
 15-12-2020,Adults,One Tree Estates Ltd t/a Ashbrook Nursing Home,Residential Placements - Private Contractors Payment,2524.00,0.00,COMMERCIAL SUPPLIER 
 15-12-2020,Adults,One Tree Estates Ltd t/a Ashbrook Nursing Home,Nursing Homes - Private Contractors Payment,2296.00,0.00,COMMERCIAL SUPPLIER 
 15-12-2020,Adults,One Tree Estates Ltd t/a Ashbrook Nursing Home,Nursing Homes - Private Contractors Payment,2460.00,0.00,COMMERCIAL SUPPLIER 
 15-12-2020,Adults,One Tree Estates Ltd t/a Ashbrook Nursing Home,Nursing Homes - Private Contractors Payment,2460.00,0.00,COMMERCIAL SUPPLIER 
 15-12-2020,Adults,One Tree Estates Ltd t/a Ashbrook Nursing Home,Nursing Care Income,771.10,0.00,COMMERCIAL SUPPLIER 
 15-12-2020,Adults,One Tree Estates Ltd t/a Ashbrook Nursing Home,Nursing Homes - Private Contractors Payment,2460.00,0.00,COMMERCIAL SUPPLIER 
 15-12-2020,Adults,One Tree Estates Ltd t/a Ashbrook Nursing Home,Nursing Homes - Private Contractors Payment,2296.00,0.00,COMMERCIAL SUPPLIER 
 15-12-2020,Adults,One Tree Estates Ltd t/a Ashbrook Nursing Home,Other Short Term Support,26013.18,0.00,COMMERCIAL SUPPLIER 
 15-12-2020,Adults,One Tree Estates Ltd t/a Ashbrook Nursing Home,Nursing Homes - Private Contractors Payment,3612.00,0.00,COMMERCIAL SUPPLIER 
 15-12-2020,Adults,One Tree Estates Ltd t/a Ashbrook Nursing Home,Nursing Homes - Private Contractors Payment,903.00,0.00,COMMERCIAL SUPPLIER 
 15-12-2020,Adults,One Tree Estates Ltd t/a Ashbrook Nursing Home,Nursing Homes - Private Contractors Payment,3612.00,0.00,COMMERCIAL SUPPLIER 
 15-12-2020,Adults,One Tree Estates Ltd t/a Ashbrook Nursing Home,Nursing Homes - Private Contractors Payment,3612.00,0.00,COMMERCIAL SUPPLIER 
 15-12-2020,Adults,One Tree Estates Ltd t/a Ashbrook Nursing Home,Nursing Homes - Private Contractors Payment,2284.29,0.00,COMMERCIAL SUPPLIER 
 15-12-2020,Adults,Highfield Care Homes Ltd t/a Romford Grange Care Home,Nursing Homes - Private Contractors Payment,2460.00,0.00,COMMERCIAL SUPPLIER 
 15-12-2020,Adults,Highfield Care Homes Ltd t/a Romford Grange Care Home,Nursing Homes - Private Contractors Payment,2460.00,0.00,COMMERCIAL SUPPLIER 
 15-12-2020,Adults,Highfield Care Homes Ltd t/a Romford Grange Care Home,Nursing Homes - Private Contractors Payment,2460.00,0.00,COMMERCIAL SUPPLIER 
 15-12-2020,Adults,Highfield Care Homes Ltd t/a Romford Grange Care Home,Nursing Homes - Private Contractors Payment,2296.00,0.00,COMMERCIAL SUPPLIER 
 15-12-2020,Adults,Highfield Care Homes Ltd t/a Romford Grange Care Home,Nursing Homes - Private Contractors Payment,645.00,0.00,COMMERCIAL SUPPLIER 
 15-12-2020,Adults,Highfield Care Homes Ltd t/a Romford Grange Care Home,Nursing Homes - Private Contractors Payment,2245.92,0.00,COMMERCIAL SUPPLIER 
 15-12-2020,Adults,Highfield Care Homes Ltd t/a Romford Grange Care Home,Nursing Homes - Private Contractors Payment,2460.00,0.00,COMMERCIAL SUPPLIER 
 15-12-2020,Adults,Highfield Care Homes Ltd t/a Romford Grange Care Home,Nursing Homes - Private Contractors Payment,2296.00,0.00,COMMERCIAL SUPPLIER 
 15-12-2020,Adults,Highfield Care Homes Ltd t/a Romford Grange Care Home,Other Short Term Support,15236.29,0.00,COMMERCIAL SUPPLIER 
 15-12-2020,Adults,MNS Care Plc_a,Residential Placements - Private Contractors Payment,2540.00,0.00,COMMERCIAL SUPPLIER 
 15-12-2020,Adults,MNS Care Plc_a,Nursing Homes - Private Contractors Payment,2460.00,0.00,COMMERCIAL SUPPLIER 
 15-12-2020,Adults,MNS Care Plc_a,Residential Placements - Private Contractors Payment,2524.00,0.00,COMMERCIAL SUPPLIER 
 15-12-2020,Adults,MNS Care Plc_a,Nursing Homes - Private Contractors Payment,2165.92,0.00,COMMERCIAL SUPPLIER 
 15-12-2020,Adults,MNS Care Plc_a,Nursing Homes - Private Contractors Payment,2856.00,0.00,COMMERCIAL SUPPLIER 
 15-12-2020,Adults,MNS Care Plc_a,Nursing Homes - Private Contractors Payment,2460.00,0.00,COMMERCIAL SUPPLIER 
 15-12-2020,Adults,Bupa Care Homes (HVC) - Havering Court,Nursing Homes - Private Contractors Payment,3638.72,0.00,COMMERCIAL SUPPLIER 
 15-12-2020,Adults,Bupa Care Homes (HVC) - Havering Court,Nursing Homes - Private Contractors Payment,3314.92,0.00,COMMERCIAL SUPPLIER 
 15-12-2020,Adults,Bupa Care Homes (HVC) - Havering Court,Other Short Term Support,19324.08,0.00,COMMERCIAL SUPPLIER 
 15-12-2020,Adults,Bupa Care Homes (HVC) - Havering Court,Nursing Homes - Private Contractors Payment,3663.40,0.00,COMMERCIAL SUPPLIER 
 15-12-2020,Adults,Bupa Care Homes (HVC) - Havering Court,Nursing Homes - Private Contractors Payment,3341.16,0.00,COMMERCIAL SUPPLIER 
 15-12-2020,Adults,Bupa Care Homes (HVC) - Havering Court,Nursing Homes - Private Contractors Payment,3132.72,0.00,COMMERCIAL SUPPLIER 
 15-12-2020,Adults,Bupa Care Homes (HVC) - Havering Court,Respite Care - Private Contractors Payment,1116.08,0.00,COMMERCIAL SUPPLIER 
 15-12-2020,Adults,Bupa Care Homes (HVC) - Havering Court,Nursing Homes - Private Contractors Payment,4620.84,0.00,COMMERCIAL SUPPLIER 
 15-12-2020,Adults,Bupa Care Homes (HVC) - Havering Court,Nursing Homes - Private Contractors Payment,6030.96,0.00,COMMERCIAL SUPPLIER 
 15-12-2020,Adults,Bupa Care Homes (HVC) - Havering Court,Nursing Homes - Private Contractors Payment,4031.04,0.00,COMMERCIAL SUPPLIER 
 15-12-2020,Adults,Bupa Care Homes (HVC) - Havering Court,Nursing Homes - Private Contractors Payment,3602.56,0.00,COMMERCIAL SUPPLIER 
 15-12-2020,Adults,Bupa Care Homes (HVC) - Havering Court,Nursing Homes - Private Contractors Payment,3309.24,0.00,COMMERCIAL SUPPLIER 
 15-12-2020,Adults,Bupa Care Homes (HVC) - Havering Court,Nursing Homes - Private Contractors Payment,3797.44,0.00,COMMERCIAL SUPPLIER 
 15-12-2020,Adults,Bupa Care Homes (HVC) - Havering Court,Nursing Homes - Private Contractors Payment,4455.36,0.00,COMMERCIAL SUPPLIER 
 15-12-2020,Adults,The Avenues Trust - 6 Peel Way,Residential Placements - Private Contractors Payment,5634.32,0.00,COMMERCIAL SUPPLIER 
 15-12-2020,Adults,The Avenues Trust - 6 Peel Way,Other Short Term Support,2229.70,0.00,COMMERCIAL SUPPLIER 
 15-12-2020,Adults,The Avenues Trust - 6 Peel Way,Residential Placements - Private Contractors Payment,5634.32,0.00,COMMERCIAL SUPPLIER 
 15-12-2020,Adults,The Avenues Trust - 6 Peel Way,Residential Placements - Private Contractors Payment,5634.32,0.00,COMMERCIAL SUPPLIER 
 15-12-2020,Adults,The Avenues Trust - 6 Peel Way,Residential Placements - Private Contractors Payment,5634.32,0.00,COMMERCIAL SUPPLIER 
 15-12-2020,Adults,The Avenues Trust - 6 Peel Way,Residential Placements - Private Contractors Payment,5634.32,0.00,COMMERCIAL SUPPLIER 
 15-12-2020,Adults,Clacton Family Trust_a,Residential Placements - Private Contractors Payment,5148.20,0.00,COMMERCIAL SUPPLIER 
 15-12-2020,Adults,Clacton Family Trust_a,Residential Placements - Private Contractors Payment,4540.08,0.00,COMMERCIAL SUPPLIER 
 15-12-2020,Adults,Clacton Family Trust_a,Residential Placements - Private Contractors Payment,1697.92,0.00,COMMERCIAL SUPPLIER 
 15-12-2020,Adults,Voyage Ltd - Solar Care Melbreck,Nursing Homes - Private Contractors Payment,3881.56,0.00,COMMERCIAL SUPPLIER 
 15-12-2020,Adults,Fitzroy Support,Residential Placements - Private Contractors Payment,5088.88,0.00,COMMERCIAL SUPPLIER 
 15-12-2020,Adults,Peter House Care Ltd t/a Aldanat Care,Residential Placements - Private Contractors Payment,5972.12,0.00,COMMERCIAL SUPPLIER 
 15-12-2020,Adults,Dudbrook Hall Residential Home,Residential Placements - Private Contractors Payment,2524.00,0.00,COMMERCIAL SUPPLIER 
 15-12-2020,Adults,Bupa Care Homes - Hutton Village,Nursing Homes - Private Contractors Payment,2221.44,0.00,COMMERCIAL SUPPLIER 
 15-12-2020,Adults,Havering Care Homes Ltd t/a Upminster Nursing Home,Nursing Homes - Private Contractors Payment,615.00,0.00,COMMERCIAL SUPPLIER 
 15-12-2020,Adults,Havering Care Homes Ltd t/a Upminster Nursing Home,Nursing Homes - Private Contractors Payment,553.60,0.00,COMMERCIAL SUPPLIER 
 15-12-2020,Adults,Havering Care Homes Ltd t/a Upminster Nursing Home,Nursing Homes - Private Contractors Payment,2296.00,0.00,COMMERCIAL SUPPLIER 
 15-12-2020,Adults,Havering Care Homes Ltd t/a Upminster Nursing Home,Nursing Homes - Private Contractors Payment,2296.00,0.00,COMMERCIAL SUPPLIER 
 15-12-2020,Adults,Havering Care Homes Ltd t/a Upminster Nursing Home,Nursing Homes - Private Contractors Payment,2296.00,0.00,COMMERCIAL SUPPLIER 
 15-12-2020,Adults,Havering Care Homes Ltd t/a Upminster Nursing Home,Nursing Homes - Private Contractors Payment,2460.00,0.00,COMMERCIAL SUPPLIER 
 15-12-2020,Adults,Havering Care Homes Ltd t/a Upminster Nursing Home,Nursing Homes - Private Contractors Payment,2460.00,0.00,COMMERCIAL SUPPLIER 
 15-12-2020,Adults,Havering Care Homes Ltd t/a Upminster Nursing Home,Nursing Homes - Private Contractors Payment,2460.00,0.00,COMMERCIAL SUPPLIER 
 15-12-2020,Adults,Havering Care Homes Ltd t/a Upminster Nursing Home,Other Short Term Support,13749.82,0.00,COMMERCIAL SUPPLIER 
 15-12-2020,Adults,Havering Care Homes Ltd t/a Upminster Nursing Home,Nursing Homes - Private Contractors Payment,2296.00,0.00,COMMERCIAL SUPPLIER 
 15-12-2020,Adults,Havering Care Homes Ltd t/a Upminster Nursing Home,Nursing Homes - Private Contractors Payment,2214.40,0.00,COMMERCIAL SUPPLIER 
 15-12-2020,Adults,Havering Care Homes Ltd t/a Upminster Nursing Home,Nursing Homes - Private Contractors Payment,4000.00,0.00,COMMERCIAL SUPPLIER 
 15-12-2020,Adults,Havering Care Homes Ltd t/a Upminster Nursing Home,Nursing Homes - Private Contractors Payment,2460.00,0.00,COMMERCIAL SUPPLIER 
 15-12-2020,Adults,Havering Care Homes Ltd t/a Upminster Nursing Home,Nursing Homes - Private Contractors Payment,2460.00,0.00,COMMERCIAL SUPPLIER 
 15-12-2020,Adults,Cranham Court Nursing Home_a,Nursing Homes - Private Contractors Payment,2924.72,0.00,COMMERCIAL SUPPLIER 
 15-12-2020,Adults,Cranham Court Nursing Home_a,Nursing Homes - Private Contractors Payment,2460.00,0.00,COMMERCIAL SUPPLIER 
 15-12-2020,Adults,Cranham Court Nursing Home_a,Residential Care Income,595.44,0.00,COMMERCIAL SUPPLIER 
 15-12-2020,Adults,Cranham Court Nursing Home_a,Nursing Homes - Private Contractors Payment,2460.00,0.00,COMMERCIAL SUPPLIER 
 15-12-2020,Adults,Cranham Court Nursing Home_a,Other Short Term Support,30472.59,0.00,COMMERCIAL SUPPLIER 
 15-12-2020,Adults,Cranham Court Nursing Home_a,Nursing Homes - Private Contractors Payment,2296.00,0.00,COMMERCIAL SUPPLIER 
 15-12-2020,Adults,Essex Care Consortium Ltd_a,Residential Placements - Private Contractors Payment,4214.96,0.00,COMMERCIAL SUPPLIER 
 15-12-2020,Adults,Mundy House,Residential Placements - Private Contractors Payment,2448.00,0.00,COMMERCIAL SUPPLIER 
 15-12-2020,Adults,CC The Laurels Ltd,Residential Placements - Private Contractors Payment,3664.00,0.00,COMMERCIAL SUPPLIER 
 15-12-2020,Adults,Lukka Care Homes Ltd - Ravenscourt,Nursing Homes - Private Contractors Payment,903.00,0.00,COMMERCIAL SUPPLIER 
 15-12-2020,Adults,Lukka Care Homes Ltd - Ravenscourt,Nursing Homes - Private Contractors Payment,3612.00,0.00,COMMERCIAL SUPPLIER 
 15-12-2020,Adults,Lukka Care Homes Ltd - Ravenscourt,Other Short Term Support,26013.18,0.00,COMMERCIAL SUPPLIER 
 15-12-2020,Adults,Lukka Care Homes Ltd - Ravenscourt,Nursing Homes - Private Contractors Payment,2460.00,0.00,COMMERCIAL SUPPLIER 
 15-12-2020,Adults,Lukka Care Homes Ltd - Ravenscourt,Residential Placements - Private Contractors Payment,2524.00,0.00,COMMERCIAL SUPPLIER 
 15-12-2020,Adults,Lukka Care Homes Ltd - Ravenscourt,Nursing Homes - Private Contractors Payment,3230.72,0.00,COMMERCIAL SUPPLIER 
 15-12-2020,Adults,Lukka Care Homes Ltd - Ravenscourt,Nursing Homes - Private Contractors Payment,2296.00,0.00,COMMERCIAL SUPPLIER 
 15-12-2020,Adults,Lukka Care Homes Ltd - Ravenscourt,Nursing Homes - Private Contractors Payment,3504.32,0.00,COMMERCIAL SUPPLIER 
 15-12-2020,Adults,Lukka Care Homes Ltd - Ravenscourt,Nursing Homes - Private Contractors Payment,2296.00,0.00,COMMERCIAL SUPPLIER 
 15-12-2020,Adults,Lukka Care Homes Ltd - Ravenscourt,Nursing Homes - Private Contractors Payment,615.00,0.00,COMMERCIAL SUPPLIER 
 15-12-2020,Adults,Lukka Care Homes Ltd - Ravenscourt,Nursing Homes - Private Contractors Payment,2460.00,0.00,COMMERCIAL SUPPLIER 
 15-12-2020,Adults,Lukka Care Homes Ltd - Ravenscourt,Nursing Homes - Private Contractors Payment,2296.00,0.00,COMMERCIAL SUPPLIER 
 15-12-2020,Adults,Barchester Healthcare Ltd - Park View Care Home,Nursing Homes - Private Contractors Payment,4424.52,0.00,COMMERCIAL SUPPLIER 
 15-12-2020,Adults,Barchester Healthcare Ltd - Park View Care Home,Nursing Homes - Private Contractors Payment,3900.00,0.00,COMMERCIAL SUPPLIER 
 15-12-2020,Adults,Barchester Healthcare Ltd - Park View Care Home,Nursing Homes - Private Contractors Payment,2617.37,0.00,COMMERCIAL SUPPLIER 
 15-12-2020,Adults,Barchester Healthcare Ltd - Park View Care Home,Nursing Homes - Private Contractors Payment,3664.32,0.00,COMMERCIAL SUPPLIER 
 15-12-2020,Adults,Barchester Healthcare Ltd - Park View Care Home,Nursing Homes - Private Contractors Payment,5508.00,0.00,COMMERCIAL SUPPLIER 
 15-12-2020,Adults,Barchester Healthcare Ltd - Park View Care Home,Nursing Homes - Private Contractors Payment,9072.00,0.00,COMMERCIAL SUPPLIER 
 15-12-2020,Adults,Barchester Healthcare Ltd - Park View Care Home,Nursing Homes - Private Contractors Payment,3300.00,0.00,COMMERCIAL SUPPLIER 
 15-12-2020,Adults,Barchester Healthcare Ltd - Park View Care Home,Nursing Homes - Private Contractors Payment,9072.00,0.00,COMMERCIAL SUPPLIER 
 15-12-2020,Adults,Barchester Healthcare Ltd - Park View Care Home,Residential Placements - Private Contractors Payment,4400.00,0.00,COMMERCIAL SUPPLIER 
 15-12-2020,Adults,Barchester Healthcare Ltd - Park View Care Home,Nursing Homes - Private Contractors Payment,2803.32,0.00,COMMERCIAL SUPPLIER 
 15-12-2020,Adults,Barchester Healthcare Ltd - Park View Care Home,Nursing Homes - Private Contractors Payment,1827.57,0.00,COMMERCIAL SUPPLIER 
 15-12-2020,Adults,Barchester Healthcare Ltd - Park View Care Home,Nursing Homes - Private Contractors Payment,4264.32,0.00,COMMERCIAL SUPPLIER 
 15-12-2020,Adults,Barchester Healthcare Ltd - Park View Care Home,Nursing Homes - Private Contractors Payment,4264.32,0.00,COMMERCIAL SUPPLIER 
 15-12-2020,Adults,Barchester Healthcare Ltd - Park View Care Home,Nursing Homes - Private Contractors Payment,4009.64,0.00,COMMERCIAL SUPPLIER 
 15-12-2020,Adults,Barchester Healthcare Ltd - Park View Care Home,Nursing Homes - Private Contractors Payment,5304.00,0.00,COMMERCIAL SUPPLIER 
 15-12-2020,Adults,Barchester Healthcare Ltd - Park View Care Home,Residential Placements - Private Contractors Payment,4667.52,0.00,COMMERCIAL SUPPLIER 
 15-12-2020,Adults,Barchester Healthcare Ltd - Park View Care Home,Nursing Homes - Private Contractors Payment,4009.64,0.00,COMMERCIAL SUPPLIER 
 15-12-2020,Adults,Barchester Healthcare Ltd - Park View Care Home,Residential Placements - Private Contractors Payment,2366.40,0.00,COMMERCIAL SUPPLIER 
 15-12-2020,Adults,Westminster Health Care Ltd Derham House,Residential Placements - Private Contractors Payment,4457.08,0.00,COMMERCIAL SUPPLIER 
 15-12-2020,Adults,Westminster Health Care Ltd Derham House,Other Short Term Support,24155.10,0.00,COMMERCIAL SUPPLIER 
 15-12-2020,Adults,Westminster Health Care Ltd Derham House,Nursing Homes - Private Contractors Payment,4454.72,0.00,COMMERCIAL SUPPLIER 
 15-12-2020,Adults,Westminster Health Care Ltd Derham House,Nursing Homes - Private Contractors Payment,4454.72,0.00,COMMERCIAL SUPPLIER 
 15-12-2020,Adults,Westminster Health Care Ltd Derham House,Nursing Homes - Private Contractors Payment,857.14,0.00,COMMERCIAL SUPPLIER 
 15-12-2020,Adults,Westminster Health Care Ltd Derham House,Nursing Homes - Private Contractors Payment,4000.00,0.00,COMMERCIAL SUPPLIER 
 15-12-2020,Adults,Westminster Health Care Ltd Derham House,Nursing Homes - Private Contractors Payment,4000.00,0.00,COMMERCIAL SUPPLIER 
 15-12-2020,Adults,Westminster Health Care Ltd Derham House,Residential Placements - Private Contractors Payment,2524.00,0.00,COMMERCIAL SUPPLIER 
 15-12-2020,Adults,Westminster Health Care Ltd Derham House,Residential Placements - Private Contractors Payment,2524.00,0.00,COMMERCIAL SUPPLIER 
 15-12-2020,Adults,Westminster Health Care Ltd Derham House,Residential Placements - Private Contractors Payment,5400.00,0.00,COMMERCIAL SUPPLIER 
 15-12-2020,Adults,Westminster Health Care Ltd Derham House,Residential Placements - Private Contractors Payment,2524.00,0.00,COMMERCIAL SUPPLIER 
 15-12-2020,Adults,Westminster Health Care Ltd Derham House,Nursing Homes - Private Contractors Payment,2460.00,0.00,COMMERCIAL SUPPLIER 
 15-12-2020,Adults,HC One Ltd - Oaklands,Residential Placements - Private Contractors Payment,2248.00,0.00,COMMERCIAL SUPPLIER 
 15-12-2020,Adults,HC-One Oval Ltd - Chaseview,Residential Placements - Private Contractors Payment,2170.68,0.00,COMMERCIAL SUPPLIER 
 15-12-2020,Adults,HC-One Oval Ltd - Chaseview,Nursing Homes - Private Contractors Payment,2359.44,0.00,COMMERCIAL SUPPLIER 
 15-12-2020,Adults,Gable Court Nursing Home Ltd,Residential Placements - Private Contractors Payment,2154.80,0.00,COMMERCIAL SUPPLIER 
 15-12-2020,Adults,Gable Court Nursing Home Ltd,Nursing Homes - Private Contractors Payment,2346.00,0.00,COMMERCIAL SUPPLIER 
 15-12-2020,Adults,HC-One Oval Ltd - The Hornchurch Nursing Centre,Nursing Homes - Private Contractors Payment,2296.00,0.00,COMMERCIAL SUPPLIER 
 15-12-2020,Adults,HC-One Oval Ltd - The Hornchurch Nursing Centre,Nursing Homes - Private Contractors Payment,2460.00,0.00,COMMERCIAL SUPPLIER 
 15-12-2020,Adults,HC-One Oval Ltd - The Hornchurch Nursing Centre,Nursing Homes - Private Contractors Payment,2460.00,0.00,COMMERCIAL SUPPLIER 
 15-12-2020,Adults,HC-One Oval Ltd - The Hornchurch Nursing Centre,Nursing Homes - Private Contractors Payment,2296.00,0.00,COMMERCIAL SUPPLIER 
 15-12-2020,Adults,HC-One Oval Ltd - The Hornchurch Nursing Centre,Nursing Homes - Private Contractors Payment,2296.00,0.00,COMMERCIAL SUPPLIER 
 15-12-2020,Adults,HC-One Oval Ltd - The Hornchurch Nursing Centre,Nursing Homes - Private Contractors Payment,2296.00,0.00,COMMERCIAL SUPPLIER 
 15-12-2020,Adults,HC-One Oval Ltd - The Hornchurch Nursing Centre,Nursing Homes - Private Contractors Payment,3612.00,0.00,COMMERCIAL SUPPLIER 
 15-12-2020,Adults,HC-One Oval Ltd - The Hornchurch Nursing Centre,Other Short Term Support,20438.94,0.00,COMMERCIAL SUPPLIER 
 15-12-2020,Adults,HC-One Oval Ltd - The Hornchurch Nursing Centre,Nursing Homes - Private Contractors Payment,2296.00,0.00,COMMERCIAL SUPPLIER 
 15-12-2020,Adults,HC-One Oval Ltd - The Hornchurch Nursing Centre,Residential Care Income,699.33,0.00,COMMERCIAL SUPPLIER 
 15-12-2020,Adults,HC-One Oval Ltd - The Hornchurch Nursing Centre,Residential Care Income,818.48,0.00,COMMERCIAL SUPPLIER 
 15-12-2020,Adults,HC-One Oval Ltd - The Hornchurch Nursing Centre,Nursing Homes - Private Contractors Payment,2460.00,0.00,COMMERCIAL SUPPLIER 
 15-12-2020,Adults,HC-One Oval Ltd - The Hornchurch Nursing Centre,Nursing Homes - Private Contractors Payment,2865.96,0.00,COMMERCIAL SUPPLIER 
 15-12-2020,Adults,HC-One Oval Ltd - The Hornchurch Nursing Centre,Nursing Homes - Private Contractors Payment,12768.00,0.00,COMMERCIAL SUPPLIER 
 15-12-2020,Adults,HC-One Oval Ltd - The Hornchurch Nursing Centre,Nursing Homes - Private Contractors Payment,2460.00,0.00,COMMERCIAL SUPPLIER 
 15-12-2020,Adults,HC-One Oval Ltd - The Hornchurch Nursing Centre,Residential Placements - Private Contractors Payment,2163.43,0.00,COMMERCIAL SUPPLIER 
 15-12-2020,Adults,HC-One Oval Ltd - The Hornchurch Nursing Centre,Residential Placements - Private Contractors Payment,2524.00,0.00,COMMERCIAL SUPPLIER 
 15-12-2020,Adults,HC-One Oval Ltd - The Hornchurch Nursing Centre,Residential Placements - Private Contractors Payment,2524.00,0.00,COMMERCIAL SUPPLIER 
 15-12-2020,Adults,HC-One Oval Ltd - The Hornchurch Nursing Centre,Nursing Homes - Private Contractors Payment,2460.00,0.00,COMMERCIAL SUPPLIER 
 15-12-2020,Adults,HC-One Oval Ltd - The Hornchurch Nursing Centre,Nursing Homes - Private Contractors Payment,4636.32,0.00,COMMERCIAL SUPPLIER 
 15-12-2020,Adults,HC-One Oval Ltd - The Hornchurch Nursing Centre,Nursing Homes - Private Contractors Payment,2619.36,0.00,COMMERCIAL SUPPLIER 
 15-12-2020,Adults,HC-One Oval Ltd - The Hornchurch Nursing Centre,Nursing Homes - Private Contractors Payment,3264.00,0.00,COMMERCIAL SUPPLIER 
 15-12-2020,Adults,HC-One Oval Ltd - The Hornchurch Nursing Centre,Nursing Homes - Private Contractors Payment,2797.80,0.00,COMMERCIAL SUPPLIER 
 15-12-2020,Adults,HC-One Oval Ltd - The Hornchurch Nursing Centre,Nursing Homes - Private Contractors Payment,2460.00,0.00,COMMERCIAL SUPPLIER 
 15-12-2020,Adults,HC-One Oval Ltd - The Hornchurch Nursing Centre,Nursing Homes - Private Contractors Payment,2296.00,0.00,COMMERCIAL SUPPLIER 
 15-12-2020,Adults,HC-One Oval Ltd - Admirals Reach Residential & Nursing Centre,Nursing Homes - Private Contractors Payment,1065.72,0.00,COMMERCIAL SUPPLIER 
 15-12-2020,Adults,Bramerton Care Home - Community Homes of Intensive Care and Education Ltd,Residential Placements - Private Contractors Payment,7494.96,0.00,COMMERCIAL SUPPLIER 
 15-12-2020,Adults,High Hurlands Homes,Residential Placements - Private Contractors Payment,6076.80,0.00,COMMERCIAL SUPPLIER 
 15-12-2020,Adults,Beechcourt Care Centre - Bondcare,Nursing Homes - Private Contractors Payment,2460.00,0.00,COMMERCIAL SUPPLIER 
 15-12-2020,Adults,Beechcourt Care Centre - Bondcare,Nursing Homes - Private Contractors Payment,2296.00,0.00,COMMERCIAL SUPPLIER 
 15-12-2020,Adults,Beechcourt Care Centre - Bondcare,Nursing Homes - Private Contractors Payment,2460.00,0.00,COMMERCIAL SUPPLIER 
 15-12-2020,Adults,Beechcourt Care Centre - Bondcare,Nursing Homes - Private Contractors Payment,2296.00,0.00,COMMERCIAL SUPPLIER 
 15-12-2020,Adults,Beechcourt Care Centre - Bondcare,Nursing Homes - Private Contractors Payment,2296.00,0.00,COMMERCIAL SUPPLIER 
 15-12-2020,Adults,Beechcourt Care Centre - Bondcare,Nursing Homes - Private Contractors Payment,2631.60,0.00,COMMERCIAL SUPPLIER 
 15-12-2020,Adults,Beechcourt Care Centre - Bondcare,Residential Placements - Private Contractors Payment,2248.00,0.00,COMMERCIAL SUPPLIER 
 15-12-2020,Adults,Beechcourt Care Centre - Bondcare,Residential Placements - Private Contractors Payment,2248.00,0.00,COMMERCIAL SUPPLIER 
 15-12-2020,Adults,Beechcourt Care Centre - Bondcare,Nursing Homes - Private Contractors Payment,2296.00,0.00,COMMERCIAL SUPPLIER 
 15-12-2020,Adults,Beechcourt Care Centre - Bondcare,Nursing Homes - Private Contractors Payment,2296.00,0.00,COMMERCIAL SUPPLIER 
 15-12-2020,Adults,Beechcourt Care Centre - Bondcare,Nursing Homes - Private Contractors Payment,2460.00,0.00,COMMERCIAL SUPPLIER 
 15-12-2020,Adults,Beechcourt Care Centre - Bondcare,Nursing Homes - Private Contractors Payment,2296.00,0.00,COMMERCIAL SUPPLIER 
 15-12-2020,Adults,Beechcourt Care Centre - Bondcare,Nursing Homes - Private Contractors Payment,2460.00,0.00,COMMERCIAL SUPPLIER 
 15-12-2020,Adults,Beechcourt Care Centre - Bondcare,Nursing Homes - Private Contractors Payment,2296.00,0.00,COMMERCIAL SUPPLIER 
 15-12-2020,Adults,Beechcourt Care Centre - Bondcare,Nursing Homes - Private Contractors Payment,2460.00,0.00,COMMERCIAL SUPPLIER 
 15-12-2020,Adults,Beechcourt Care Centre - Bondcare,Other Short Term Support,19695.70,0.00,COMMERCIAL SUPPLIER 
 15-12-2020,Adults,Beechcourt Care Centre - Bondcare,Residential Placements - Private Contractors Payment,1262.00,0.00,COMMERCIAL SUPPLIER 
 15-12-2020,Adults,Beechcourt Care Centre - Bondcare,Residential Placements - Private Contractors Payment,2524.00,0.00,COMMERCIAL SUPPLIER 
 15-12-2020,Adults,Beechcourt Care Centre - Bondcare,Nursing Homes - Private Contractors Payment,2460.00,0.00,COMMERCIAL SUPPLIER 
 15-12-2020,Adults,Beechcourt Care Centre - Bondcare,Nursing Homes - Private Contractors Payment,2460.00,0.00,COMMERCIAL SUPPLIER 
 15-12-2020,Adults,Beechcourt Care Centre - Bondcare,Nursing Homes - Private Contractors Payment,2460.00,0.00,COMMERCIAL SUPPLIER 
 15-12-2020,Adults,Beechcourt Care Centre - Bondcare,Nursing Homes - Private Contractors Payment,2460.00,0.00,COMMERCIAL SUPPLIER 
 15-12-2020,Adults,Beechcourt Care Centre - Bondcare,Nursing Homes - Private Contractors Payment,2460.00,0.00,COMMERCIAL SUPPLIER 
 15-12-2020,Adults,Beechcourt Care Centre - Bondcare,Nursing Homes - Private Contractors Payment,2460.00,0.00,COMMERCIAL SUPPLIER 
 15-12-2020,Adults,Beechcourt Care Centre - Bondcare,Nursing Homes - Private Contractors Payment,2460.00,0.00,COMMERCIAL SUPPLIER 
 15-12-2020,Adults,Beechcourt Care Centre - Bondcare,Nursing Homes - Private Contractors Payment,2460.00,0.00,COMMERCIAL SUPPLIER 
 15-12-2020,Adults,Beechcourt Care Centre - Bondcare,Nursing Homes - Private Contractors Payment,2460.00,0.00,COMMERCIAL SUPPLIER 
 15-12-2020,Adults,Beechcourt Care Centre - Bondcare,Nursing Homes - Private Contractors Payment,2460.00,0.00,COMMERCIAL SUPPLIER 
 15-12-2020,Adults,Bondcare (London) Ltd ,Nursing Homes - Private Contractors Payment,2520.00,0.00,COMMERCIAL SUPPLIER 
 15-12-2020,Adults,Bondcare (London) Ltd ,Nursing Homes - Private Contractors Payment,3780.00,0.00,COMMERCIAL SUPPLIER 
 15-12-2020,Adults,Bondcare (London) Ltd ,Nursing Homes - Private Contractors Payment,3612.00,0.00,COMMERCIAL SUPPLIER 
 15-12-2020,Adults,Bondcare (London) Ltd ,Nursing Homes - Private Contractors Payment,1806.00,0.00,COMMERCIAL SUPPLIER 
 15-12-2020,Adults,Bondcare (London) Ltd ,Nursing Homes - Private Contractors Payment,3612.00,0.00,COMMERCIAL SUPPLIER 
 15-12-2020,Adults,Bondcare (London) Ltd ,Nursing Homes - Private Contractors Payment,645.00,0.00,COMMERCIAL SUPPLIER 
 15-12-2020,Adults,Bondcare (London) Ltd ,Nursing Homes - Private Contractors Payment,3612.00,0.00,COMMERCIAL SUPPLIER 
 15-12-2020,Adults,Bondcare (London) Ltd ,Nursing Homes - Private Contractors Payment,1806.00,0.00,COMMERCIAL SUPPLIER 
 15-12-2020,Adults,Bondcare (London) Ltd ,Nursing Homes - Private Contractors Payment,3612.00,0.00,COMMERCIAL SUPPLIER 
 15-12-2020,Adults,Bondcare (London) Ltd ,Nursing Homes - Private Contractors Payment,774.00,0.00,COMMERCIAL SUPPLIER 
 15-12-2020,Adults,Bondcare (London) Ltd ,Nursing Homes - Private Contractors Payment,1419.00,0.00,COMMERCIAL SUPPLIER 
 15-12-2020,Adults,Bondcare (London) Ltd ,Nursing Homes - Private Contractors Payment,3612.00,0.00,COMMERCIAL SUPPLIER 
 15-12-2020,Adults,Bondcare (London) Ltd ,Nursing Homes - Private Contractors Payment,903.00,0.00,COMMERCIAL SUPPLIER 
 15-12-2020,Adults,Brandon House,Residential Placements - Private Contractors Payment,1994.88,0.00,COMMERCIAL SUPPLIER 
 15-12-2020,Adults,Brandon House,Residential Placements - Private Contractors Payment,763.76,0.00,COMMERCIAL SUPPLIER 
 15-12-2020,Adults,Brandon House,Residential Placements - Private Contractors Payment,1986.00,0.00,COMMERCIAL SUPPLIER 
 15-12-2020,Adults,Alexander Court Care Centre - Bondcare,Nursing Homes - Private Contractors Payment,3612.00,0.00,COMMERCIAL SUPPLIER 
 15-12-2020,Adults,Alexander Court Care Centre - Bondcare,Nursing Homes - Private Contractors Payment,2359.44,0.00,COMMERCIAL SUPPLIER 
 15-12-2020,Adults,Alexander Court Care Centre - Bondcare,Nursing Homes - Private Contractors Payment,2513.28,0.00,COMMERCIAL SUPPLIER 
 15-12-2020,Adults,Alexander Court Care Centre - Bondcare,Nursing Homes - Private Contractors Payment,2407.20,0.00,COMMERCIAL SUPPLIER 
 15-12-2020,Adults,Alexander Court Care Centre - Bondcare,Nursing Homes - Private Contractors Payment,2572.00,0.00,COMMERCIAL SUPPLIER 
 15-12-2020,Adults,Alexander Court Care Centre - Bondcare,Nursing Homes - Private Contractors Payment,2513.28,0.00,COMMERCIAL SUPPLIER 
 15-12-2020,Adults,Alexander Court Care Centre - Bondcare,Residential Placements - Private Contractors Payment,2366.40,0.00,COMMERCIAL SUPPLIER 
 15-12-2020,Adults,Alexander Court Care Centre - Bondcare,Nursing Homes - Private Contractors Payment,2513.28,0.00,COMMERCIAL SUPPLIER 
 15-12-2020,Adults,Alexander Court Care Centre - Bondcare,Nursing Homes - Private Contractors Payment,645.00,0.00,COMMERCIAL SUPPLIER 
 15-12-2020,Adults,Alexander Court Care Centre - Bondcare,Nursing Homes - Private Contractors Payment,3612.00,0.00,COMMERCIAL SUPPLIER 
 15-12-2020,Adults,Alexander Court Care Centre - Bondcare,Nursing Homes - Private Contractors Payment,3570.00,0.00,COMMERCIAL SUPPLIER 
 15-12-2020,Adults,Emerson Court_a,Residential Placements - Private Contractors Payment,2524.00,0.00,COMMERCIAL SUPPLIER 
 15-12-2020,Adults,Emerson Court_a,Respite Care - Private Contractors Payment,1893.00,0.00,COMMERCIAL SUPPLIER 
 15-12-2020,Adults,Emerson Court_a,Residential Placements - Private Contractors Payment,2713.20,0.00,COMMERCIAL SUPPLIER 
 15-12-2020,Adults,Emerson Court_a,Other Short Term Support,7803.95,0.00,COMMERCIAL SUPPLIER 
 15-12-2020,Adults,DMP Healthcare (Heatherbrook) Ltd,Nursing Homes - Private Contractors Payment,2296.00,0.00,NON COMMERCIAL SUPPLIER 
 15-12-2020,Adults,DMP Healthcare (Heatherbrook) Ltd,Nursing Homes - Private Contractors Payment,2604.00,0.00,NON COMMERCIAL SUPPLIER 
 15-12-2020,Adults,DMP Healthcare (Heatherbrook) Ltd,Nursing Homes - Private Contractors Payment,2460.00,0.00,NON COMMERCIAL SUPPLIER 
 15-12-2020,Adults,DMP Healthcare (Heatherbrook) Ltd,Residential Placements - Private Contractors Payment,2248.00,0.00,NON COMMERCIAL SUPPLIER 
 15-12-2020,Adults,DMP Healthcare (Heatherbrook) Ltd,Nursing Homes - Private Contractors Payment,1148.00,0.00,NON COMMERCIAL SUPPLIER 
 15-12-2020,Adults,DMP Healthcare (Heatherbrook) Ltd,Nursing Homes - Private Contractors Payment,2296.00,0.00,NON COMMERCIAL SUPPLIER 
 15-12-2020,Adults,DMP Healthcare (Heatherbrook) Ltd,Other Short Term Support,16722.77,0.00,NON COMMERCIAL SUPPLIER 
 15-12-2020,Adults,DMP Healthcare (Heatherbrook) Ltd,Nursing Homes - Private Contractors Payment,3737.76,0.00,NON COMMERCIAL SUPPLIER 
 15-12-2020,Adults,DMP Healthcare (Heatherbrook) Ltd,Nursing Homes - Private Contractors Payment,5208.00,0.00,NON COMMERCIAL SUPPLIER 
 15-12-2020,Adults,DMP Healthcare (Heatherbrook) Ltd,Nursing Homes - Private Contractors Payment,1535.71,0.00,NON COMMERCIAL SUPPLIER 
 15-12-2020,Adults,DMP Healthcare (Heatherbrook) Ltd,Nursing Homes - Private Contractors Payment,4300.00,0.00,NON COMMERCIAL SUPPLIER 
 15-12-2020,Adults,DMP Healthcare (Heatherbrook) Ltd,Nursing Homes - Private Contractors Payment,4300.00,0.00,NON COMMERCIAL SUPPLIER 
 15-12-2020,Adults,DMP Healthcare (Heatherbrook) Ltd,Nursing Homes - Private Contractors Payment,1845.00,0.00,NON COMMERCIAL SUPPLIER 
 15-12-2020,Adults,DMP Healthcare (Heatherbrook) Ltd,Residential Placements - Private Contractors Payment,7812.00,0.00,NON COMMERCIAL SUPPLIER 
 15-12-2020,Adults,DMP Healthcare (Heatherbrook) Ltd,Nursing Homes - Private Contractors Payment,2460.00,0.00,NON COMMERCIAL SUPPLIER 
 15-12-2020,Adults,DMP Healthcare (Heatherbrook) Ltd,Nursing Homes - Private Contractors Payment,1770.72,0.00,NON COMMERCIAL SUPPLIER 
 15-12-2020,Adults,DMP Healthcare (Heatherbrook) Ltd,Nursing Homes - Private Contractors Payment,3026.72,0.00,NON COMMERCIAL SUPPLIER 
 15-12-2020,Adults,DMP Healthcare (Heatherbrook) Ltd,Nursing Homes - Private Contractors Payment,2460.00,0.00,NON COMMERCIAL SUPPLIER 
 15-12-2020,Adults,DMP Healthcare (Heatherbrook) Ltd,Nursing Homes - Private Contractors Payment,2604.00,0.00,NON COMMERCIAL SUPPLIER 
 15-12-2020,Adults,DMP Healthcare (Heatherbrook) Ltd,Nursing Homes - Private Contractors Payment,2460.00,0.00,NON COMMERCIAL SUPPLIER 
 15-12-2020,Adults,Sense_a,Residential Placements - Private Contractors Payment,7986.12,0.00,COMMERCIAL SUPPLIER 
 15-12-2020,Adults,Outlook Care - 4 Beauly Way,Other Short Term Support,2229.70,0.00,COMMERCIAL SUPPLIER 
 15-12-2020,Adults,Outlook Care - 4 Beauly Way,Residential Placements - Private Contractors Payment,5988.48,0.00,COMMERCIAL SUPPLIER 
 15-12-2020,Adults,Outlook Care - 4 Beauly Way,Residential Placements - Private Contractors Payment,4460.92,0.00,COMMERCIAL SUPPLIER 
 15-12-2020,Adults,Outlook Care - 4 Beauly Way,Residential Placements - Private Contractors Payment,4460.92,0.00,COMMERCIAL SUPPLIER 
 15-12-2020,Adults,Outlook Care - 4 Beauly Way,Residential Placements - Private Contractors Payment,4460.92,0.00,COMMERCIAL SUPPLIER 
 15-12-2020,Adults,Outlook Care - 1A Hulse Avenue,Other Short Term Support,1858.09,0.00,COMMERCIAL SUPPLIER 
 15-12-2020,Adults,Outlook Care - 1A Hulse Avenue,Residential Placements - Private Contractors Payment,5319.64,0.00,COMMERCIAL SUPPLIER 
 15-12-2020,Adults,Outlook Care - 1A Hulse Avenue,Residential Placements - Private Contractors Payment,5319.64,0.00,COMMERCIAL SUPPLIER 
 15-12-2020,Adults,Outlook Care - 1A Hulse Avenue,Residential Placements - Private Contractors Payment,8183.80,0.00,COMMERCIAL SUPPLIER 
 15-12-2020,Adults,Outlook Care - 1A Hulse Avenue,Residential Placements - Private Contractors Payment,5215.32,0.00,COMMERCIAL SUPPLIER 
 15-12-2020,Adults,St Elizabeth's Centre_a,Nursing Homes - Private Contractors Payment,3648.96,0.00,COMMERCIAL SUPPLIER 
 15-12-2020,Adults,St Elizabeth's Centre_a,Residential Placements - Private Contractors Payment,9613.68,0.00,COMMERCIAL SUPPLIER 
 15-12-2020,Adults,Masumin Ltd t/s Abbeleigh House,Residential Placements - Private Contractors Payment,2524.00,0.00,COMMERCIAL SUPPLIER 
 15-12-2020,Adults,Masumin Ltd t/s Abbeleigh House,Residential Placements - Private Contractors Payment,2524.00,0.00,COMMERCIAL SUPPLIER 
 15-12-2020,Adults,Masumin Ltd t/s Abbeleigh House,Residential Placements - Private Contractors Payment,2524.00,0.00,COMMERCIAL SUPPLIER 
 15-12-2020,Adults,Masumin Ltd t/s Abbeleigh House,Residential Placements - Private Contractors Payment,2524.00,0.00,COMMERCIAL SUPPLIER 
 15-12-2020,Adults,Masumin Ltd t/s Abbeleigh House,Residential Placements - Private Contractors Payment,2524.00,0.00,COMMERCIAL SUPPLIER 
 15-12-2020,Adults,Masumin Ltd t/s Abbeleigh House,Residential Placements - Private Contractors Payment,2524.00,0.00,COMMERCIAL SUPPLIER 
 15-12-2020,Adults,Masumin Ltd t/s Abbeleigh House,Residential Placements - Private Contractors Payment,2248.00,0.00,COMMERCIAL SUPPLIER 
 15-12-2020,Adults,Masumin Ltd t/s Abbeleigh House,Residential Placements - Private Contractors Payment,2524.00,0.00,COMMERCIAL SUPPLIER 
 15-12-2020,Adults,Masumin Ltd t/s Abbeleigh House,Residential Placements - Private Contractors Payment,2524.00,0.00,COMMERCIAL SUPPLIER 
 15-12-2020,Adults,Masumin Ltd t/s Abbeleigh House,Residential Placements - Private Contractors Payment,2524.00,0.00,COMMERCIAL SUPPLIER 
 15-12-2020,Adults,Masumin Ltd t/s Abbeleigh House,Other Short Term Support,15236.29,0.00,COMMERCIAL SUPPLIER 
 15-12-2020,Adults,Masumin Ltd t/s Abbeleigh House,Residential Placements - Private Contractors Payment,2524.00,0.00,COMMERCIAL SUPPLIER 
 15-12-2020,Adults,Masumin Ltd t/s Abbeleigh House,Residential Placements - Private Contractors Payment,2524.00,0.00,COMMERCIAL SUPPLIER 
 15-12-2020,Adults,Masumin Ltd t/s Abbeleigh House,Residential Placements - Private Contractors Payment,2524.00,0.00,COMMERCIAL SUPPLIER 
 15-12-2020,Adults,Ashling House_a,Residential Placements - Private Contractors Payment,2524.00,0.00,COMMERCIAL SUPPLIER 
 15-12-2020,Adults,Ashling House_a,Other Short Term Support,5202.63,0.00,COMMERCIAL SUPPLIER 
 15-12-2020,Adults,Ashling House_a,Residential Placements - Private Contractors Payment,2524.00,0.00,COMMERCIAL SUPPLIER 
 15-12-2020,Adults,Clover Cottage Ltd,Residential Placements - Private Contractors Payment,2248.00,0.00,COMMERCIAL SUPPLIER 
 15-12-2020,Adults,Clover Cottage Ltd,Residential Placements - Private Contractors Payment,2248.00,0.00,COMMERCIAL SUPPLIER 
 15-12-2020,Adults,Clover Cottage Ltd,Residential Placements - Private Contractors Payment,2524.00,0.00,COMMERCIAL SUPPLIER 
 15-12-2020,Adults,Clover Cottage Ltd,Residential Placements - Private Contractors Payment,2248.00,0.00,COMMERCIAL SUPPLIER 
 15-12-2020,Adults,Clover Cottage Ltd,Residential Placements - Private Contractors Payment,2524.00,0.00,COMMERCIAL SUPPLIER 
 15-12-2020,Adults,Clover Cottage Ltd,Residential Placements - Private Contractors Payment,2524.00,0.00,COMMERCIAL SUPPLIER 
 15-12-2020,Adults,Clover Cottage Ltd,Residential Placements - Private Contractors Payment,2524.00,0.00,COMMERCIAL SUPPLIER 
 15-12-2020,Adults,Clover Cottage Ltd,Other Short Term Support,6317.49,0.00,COMMERCIAL SUPPLIER 
 15-12-2020,Adults,Clover Cottage Ltd,Residential Placements - Private Contractors Payment,2248.00,0.00,COMMERCIAL SUPPLIER 
 15-12-2020,Adults,Ebury Court_a,Residential Placements - Private Contractors Payment,2248.00,0.00,COMMERCIAL SUPPLIER 
 15-12-2020,Adults,Ebury Court_a,Residential Placements - Private Contractors Payment,4080.00,0.00,COMMERCIAL SUPPLIER 
 15-12-2020,Adults,Ebury Court_a,Residential Placements - Private Contractors Payment,3076.32,0.00,COMMERCIAL SUPPLIER 
 15-12-2020,Adults,Ebury Court_a,Other Short Term Support,14493.06,0.00,COMMERCIAL SUPPLIER 
 15-12-2020,Adults,May Residential Homes Ltd,Residential Placements - Private Contractors Payment,2524.00,0.00,COMMERCIAL SUPPLIER 
 15-12-2020,Adults,May Residential Homes Ltd,Residential Placements - Private Contractors Payment,2524.00,0.00,COMMERCIAL SUPPLIER 
 15-12-2020,Adults,May Residential Homes Ltd,Residential Placements - Private Contractors Payment,2868.60,0.00,COMMERCIAL SUPPLIER 
 15-12-2020,Adults,May Residential Homes Ltd,Residential Placements - Private Contractors Payment,3369.60,0.00,COMMERCIAL SUPPLIER 
 15-12-2020,Adults,Outlook Care - 49 Hainault Road,Residential Placements - Private Contractors Payment,2909.92,0.00,COMMERCIAL SUPPLIER 
 15-12-2020,Adults,Outlook Care - 49 Hainault Road,Other Short Term Support,1858.09,0.00,COMMERCIAL SUPPLIER 
 15-12-2020,Adults,Outlook Care - 49 Hainault Road,Residential Placements - Private Contractors Payment,1042.48,0.00,COMMERCIAL SUPPLIER 
 15-12-2020,Adults,Outlook Care - 49 Hainault Road,Residential Placements - Private Contractors Payment,1042.48,0.00,COMMERCIAL SUPPLIER 
 15-12-2020,Adults,Arran Manor,Residential Placements - Private Contractors Payment,3463.28,0.00,COMMERCIAL SUPPLIER 
 15-12-2020,Adults,Arran Manor,Residential Placements - Private Contractors Payment,2524.00,0.00,COMMERCIAL SUPPLIER 
 15-12-2020,Adults,Arran Manor,Respite Care - Private Contractors Payment,1171.86,0.00,COMMERCIAL SUPPLIER 
 15-12-2020,Adults,Arran Manor,Residential Placements - Private Contractors Payment,2524.00,0.00,COMMERCIAL SUPPLIER 
 15-12-2020,Adults,Arran Manor,Residential Placements - Private Contractors Payment,3500.00,0.00,COMMERCIAL SUPPLIER 
 15-12-2020,Adults,Arran Manor,Other Short Term Support,8175.58,0.00,COMMERCIAL SUPPLIER 
 15-12-2020,Adults,Arran Manor,Residential Placements - Private Contractors Payment,3424.08,0.00,COMMERCIAL SUPPLIER 
 15-12-2020,Adults,Arran Manor,Residential Placements - Private Contractors Payment,3500.00,0.00,COMMERCIAL SUPPLIER 
 15-12-2020,Adults,Langley House,Residential Placements - Private Contractors Payment,2524.00,0.00,COMMERCIAL SUPPLIER 
 15-12-2020,Adults,Langley House,Residential Placements - Private Contractors Payment,2524.00,0.00,COMMERCIAL SUPPLIER 
 15-12-2020,Adults,Langley House,Residential Placements - Private Contractors Payment,2248.00,0.00,COMMERCIAL SUPPLIER 
 15-12-2020,Adults,Langley House,Residential Placements - Private Contractors Payment,2524.00,0.00,COMMERCIAL SUPPLIER 
 15-12-2020,Adults,Langley House,Residential Placements - Private Contractors Payment,2248.00,0.00,COMMERCIAL SUPPLIER 
 15-12-2020,Adults,Langley House,Residential Placements - Private Contractors Payment,2248.00,0.00,COMMERCIAL SUPPLIER 
 15-12-2020,Adults,Langley House,Residential Placements - Private Contractors Payment,2248.00,0.00,COMMERCIAL SUPPLIER 
 15-12-2020,Adults,Langley House,Residential Placements - Private Contractors Payment,2248.00,0.00,COMMERCIAL SUPPLIER 
 15-12-2020,Adults,Langley House,Residential Placements - Private Contractors Payment,2248.00,0.00,COMMERCIAL SUPPLIER 
 15-12-2020,Adults,Langley House,Residential Placements - Private Contractors Payment,2154.80,0.00,COMMERCIAL SUPPLIER 
 15-12-2020,Adults,Langley House,Residential Placements - Private Contractors Payment,2206.88,0.00,COMMERCIAL SUPPLIER 
 15-12-2020,Adults,Langley House,Residential Placements - Private Contractors Payment,2524.00,0.00,COMMERCIAL SUPPLIER 
 15-12-2020,Adults,Langley House,Residential Placements - Private Contractors Payment,2248.00,0.00,COMMERCIAL SUPPLIER 
 15-12-2020,Adults,Langley House,Residential Placements - Private Contractors Payment,2248.00,0.00,COMMERCIAL SUPPLIER 
 15-12-2020,Adults,Langley House,Residential Placements - Private Contractors Payment,2248.00,0.00,COMMERCIAL SUPPLIER 
 15-12-2020,Adults,Langley House,Residential Placements - Private Contractors Payment,2524.00,0.00,COMMERCIAL SUPPLIER 
 15-12-2020,Adults,Langley House,Residential Placements - Private Contractors Payment,2524.00,0.00,COMMERCIAL SUPPLIER 
 15-12-2020,Adults,Langley House,Residential Placements - Private Contractors Payment,2524.00,0.00,COMMERCIAL SUPPLIER 
 15-12-2020,Adults,Langley House,Residential Placements - Private Contractors Payment,2524.00,0.00,COMMERCIAL SUPPLIER 
 15-12-2020,Adults,Langley House,Other Short Term Support,9290.43,0.00,COMMERCIAL SUPPLIER 
 15-12-2020,Adults,Langley House,Residential Placements - Private Contractors Payment,2248.00,0.00,COMMERCIAL SUPPLIER 
 15-12-2020,Adults,Little Gaynes,Residential Placements - Private Contractors Payment,2880.00,0.00,COMMERCIAL SUPPLIER 
 15-12-2020,Adults,Little Gaynes,Respite Care - Private Contractors Payment,2694.29,0.00,COMMERCIAL SUPPLIER 
 15-12-2020,Adults,Little Gaynes,Residential Placements - Private Contractors Payment,2524.00,0.00,COMMERCIAL SUPPLIER 
 15-12-2020,Adults,Little Gaynes,Respite Care - Private Contractors Payment,2108.57,0.00,COMMERCIAL SUPPLIER 
 15-12-2020,Adults,Little Gaynes,Other Short Term Support,7432.34,0.00,COMMERCIAL SUPPLIER 
 15-12-2020,Adults,Little Gaynes,Respite Care - Private Contractors Payment,3280.00,0.00,COMMERCIAL SUPPLIER 
 15-12-2020,Adults,Moreland House_a,Other Short Term Support,18580.85,0.00,COMMERCIAL SUPPLIER 
 15-12-2020,Adults,Moreland House_a,Nursing Homes - Private Contractors Payment,1671.43,0.00,COMMERCIAL SUPPLIER 
 15-12-2020,Adults,Moreland House_a,Nursing Homes - Private Contractors Payment,3600.00,0.00,COMMERCIAL SUPPLIER 
 15-12-2020,Adults,Moreland House_a,Nursing Homes - Private Contractors Payment,3600.00,0.00,COMMERCIAL SUPPLIER 
 15-12-2020,Adults,Moreland House_a,Nursing Homes - Private Contractors Payment,3600.00,0.00,COMMERCIAL SUPPLIER 
 15-12-2020,Adults,Moreland House_a,Nursing Homes - Private Contractors Payment,2460.00,0.00,COMMERCIAL SUPPLIER 
 15-12-2020,Adults,Moreland House_a,Nursing Homes - Private Contractors Payment,2460.00,0.00,COMMERCIAL SUPPLIER 
 15-12-2020,Adults,Moreland House_a,Nursing Homes - Private Contractors Payment,3063.72,0.00,COMMERCIAL SUPPLIER 
 15-12-2020,Adults,Ladyville Lodge_a,Nursing Homes - Private Contractors Payment,2296.00,0.00,COMMERCIAL SUPPLIER 
 15-12-2020,Adults,Ladyville Lodge_a,Residential Placements - Private Contractors Payment,2524.00,0.00,COMMERCIAL SUPPLIER 
 15-12-2020,Adults,Ladyville Lodge_a,Nursing Homes - Private Contractors Payment,2400.00,0.00,COMMERCIAL SUPPLIER 
 15-12-2020,Adults,Ladyville Lodge_a,Nursing Homes - Private Contractors Payment,2296.00,0.00,COMMERCIAL SUPPLIER 
 15-12-2020,Adults,Ladyville Lodge_a,Other Short Term Support,16351.14,0.00,COMMERCIAL SUPPLIER 
 15-12-2020,Adults,Ladyville Lodge_a,Residential Placements - Private Contractors Payment,2524.00,0.00,COMMERCIAL SUPPLIER 
 15-12-2020,Adults,Ladyville Lodge_a,Nursing Homes - Private Contractors Payment,2460.00,0.00,COMMERCIAL SUPPLIER 
 15-12-2020,Adults,Ladyville Lodge_a,Respite Care - Private Contractors Payment,1262.00,0.00,COMMERCIAL SUPPLIER 
 15-12-2020,Adults,Ladyville Lodge_a,Residential Placements - Private Contractors Payment,4238.36,0.00,COMMERCIAL SUPPLIER 
 15-12-2020,Adults,Ladyville Lodge_a,Residential Placements - Private Contractors Payment,3324.00,0.00,COMMERCIAL SUPPLIER 
 15-12-2020,Adults,Ladyville Lodge_a,Residential Placements - Private Contractors Payment,2524.00,0.00,COMMERCIAL SUPPLIER 
 15-12-2020,Adults,Nightingale Residential Care Home Ltd,Residential Placements - Private Contractors Payment,2433.86,0.00,COMMERCIAL SUPPLIER 
 15-12-2020,Adults,Nightingale Residential Care Home Ltd,Residential Placements - Private Contractors Payment,3060.00,0.00,COMMERCIAL SUPPLIER 
 15-12-2020,Adults,Nightingale Residential Care Home Ltd,Residential Placements - Private Contractors Payment,2524.00,0.00,COMMERCIAL SUPPLIER 
 15-12-2020,Adults,Nightingale Residential Care Home Ltd,Residential Placements - Private Contractors Payment,2524.00,0.00,COMMERCIAL SUPPLIER 
 15-12-2020,Adults,Nightingale Residential Care Home Ltd,Residential Placements - Private Contractors Payment,2524.00,0.00,COMMERCIAL SUPPLIER 
 15-12-2020,Adults,Nightingale Residential Care Home Ltd,Respite Care - Private Contractors Payment,631.00,0.00,COMMERCIAL SUPPLIER 
 15-12-2020,Adults,Nightingale Residential Care Home Ltd,Respite Care - Private Contractors Payment,1680.00,0.00,COMMERCIAL SUPPLIER 
 15-12-2020,Adults,Nightingale Residential Care Home Ltd,Respite Care - Private Contractors Payment,1920.00,0.00,COMMERCIAL SUPPLIER 
 15-12-2020,Adults,Nightingale Residential Care Home Ltd,Respite Care - Private Contractors Payment,2524.00,0.00,COMMERCIAL SUPPLIER 
 15-12-2020,Adults,Nightingale Residential Care Home Ltd,Residential Placements - Private Contractors Payment,2524.00,0.00,COMMERCIAL SUPPLIER 
 15-12-2020,Adults,Nightingale Residential Care Home Ltd,Residential Placements - Private Contractors Payment,2524.00,0.00,COMMERCIAL SUPPLIER 
 15-12-2020,Adults,Nightingale Residential Care Home Ltd,Residential Placements - Private Contractors Payment,2524.00,0.00,COMMERCIAL SUPPLIER 
 15-12-2020,Adults,Nightingale Residential Care Home Ltd,Residential Placements - Private Contractors Payment,3400.00,0.00,COMMERCIAL SUPPLIER 
 15-12-2020,Adults,Nightingale Residential Care Home Ltd,Residential Placements - Private Contractors Payment,2524.00,0.00,COMMERCIAL SUPPLIER 
 15-12-2020,Adults,Nightingale Residential Care Home Ltd,Residential Placements - Private Contractors Payment,2524.00,0.00,COMMERCIAL SUPPLIER 
 15-12-2020,Adults,Nightingale Residential Care Home Ltd,Residential Placements - Private Contractors Payment,2524.00,0.00,COMMERCIAL SUPPLIER 
 15-12-2020,Adults,Nightingale Residential Care Home Ltd,Residential Placements - Private Contractors Payment,2524.00,0.00,COMMERCIAL SUPPLIER 
 15-12-2020,Adults,Nightingale Residential Care Home Ltd,Respite Care - Private Contractors Payment,540.86,0.00,COMMERCIAL SUPPLIER 
 15-12-2020,Adults,Nightingale Residential Care Home Ltd,Respite Care - Private Contractors Payment,721.14,0.00,COMMERCIAL SUPPLIER 
 15-12-2020,Adults,Nightingale Residential Care Home Ltd,Other Short Term Support,15979.53,0.00,COMMERCIAL SUPPLIER 
 15-12-2020,Adults,Oaks Residential Home,Residential Placements - Private Contractors Payment,3800.00,0.00,COMMERCIAL SUPPLIER 
 15-12-2020,Adults,Oaks Residential Home,Other Short Term Support,9662.04,0.00,COMMERCIAL SUPPLIER 
 15-12-2020,Adults,Oaks Residential Home,Residential Placements - Private Contractors Payment,2524.00,0.00,COMMERCIAL SUPPLIER 
 15-12-2020,Adults,Oaks Residential Home,Residential Placements - Private Contractors Payment,2524.00,0.00,COMMERCIAL SUPPLIER 
 15-12-2020,Adults,Oaks Residential Home,Residential Placements - Private Contractors Payment,2524.00,0.00,COMMERCIAL SUPPLIER 
 15-12-2020,Adults,Oaks Residential Home,Residential Placements - Private Contractors Payment,2524.00,0.00,COMMERCIAL SUPPLIER 
 15-12-2020,Adults,Oaks Residential Home,Residential Placements - Private Contractors Payment,2524.00,0.00,COMMERCIAL SUPPLIER 
 15-12-2020,Adults,Oaks Residential Home,Residential Placements - Private Contractors Payment,2524.00,0.00,COMMERCIAL SUPPLIER 
 15-12-2020,Adults,Oaks Residential Home,Residential Placements - Private Contractors Payment,2524.00,0.00,COMMERCIAL SUPPLIER 
 15-12-2020,Adults,Oaks Residential Home,Residential Placements - Private Contractors Payment,2248.00,0.00,COMMERCIAL SUPPLIER 
 15-12-2020,Adults,Oaks Residential Home,Residential Placements - Private Contractors Payment,2248.00,0.00,COMMERCIAL SUPPLIER 
 15-12-2020,Adults,Oaks Residential Home,Residential Placements - Private Contractors Payment,2248.00,0.00,COMMERCIAL SUPPLIER 
 15-12-2020,Adults,Parkside_a,Residential Placements - Private Contractors Payment,3340.00,0.00,COMMERCIAL SUPPLIER 
 15-12-2020,Adults,Parkside_a,Residential Placements - Private Contractors Payment,3300.00,0.00,COMMERCIAL SUPPLIER 
 15-12-2020,Adults,Parkside_a,Other Short Term Support,11891.75,0.00,COMMERCIAL SUPPLIER 
 15-12-2020,Adults,Parkside_a,Residential Placements - Private Contractors Payment,3600.00,0.00,COMMERCIAL SUPPLIER 
 15-12-2020,Adults,Parkside_a,Residential Placements - Private Contractors Payment,2524.00,0.00,COMMERCIAL SUPPLIER 
 15-12-2020,Adults,Priory Supporting Care Ltd,Residential Placements - Private Contractors Payment,2524.00,0.00,COMMERCIAL SUPPLIER 
 15-12-2020,Adults,Priory Supporting Care Ltd,Residential Placements - Private Contractors Payment,2524.00,0.00,COMMERCIAL SUPPLIER 
 15-12-2020,Adults,Priory Supporting Care Ltd,Residential Placements - Private Contractors Payment,2524.00,0.00,COMMERCIAL SUPPLIER 
 15-12-2020,Adults,Priory Supporting Care Ltd,Residential Placements - Private Contractors Payment,3876.00,0.00,COMMERCIAL SUPPLIER 
 15-12-2020,Adults,Priory Supporting Care Ltd,Residential Placements - Private Contractors Payment,2524.00,0.00,COMMERCIAL SUPPLIER 
 15-12-2020,Adults,Priory Supporting Care Ltd,Residential Placements - Private Contractors Payment,2524.00,0.00,COMMERCIAL SUPPLIER 
 15-12-2020,Adults,Priory Supporting Care Ltd,Other Short Term Support,9290.43,0.00,COMMERCIAL SUPPLIER 
 15-12-2020,Adults,Priory Supporting Care Ltd,Residential Placements - Private Contractors Payment,2652.00,0.00,COMMERCIAL SUPPLIER 
 15-12-2020,Adults,Priory Supporting Care Ltd,Residential Placements - Private Contractors Payment,2448.00,0.00,COMMERCIAL SUPPLIER 
 15-12-2020,Adults,Priory Supporting Care Ltd,Residential Placements - Private Contractors Payment,2331.76,0.00,COMMERCIAL SUPPLIER 
 15-12-2020,Adults,Priory Supporting Care Ltd,Residential Placements - Private Contractors Payment,2652.00,0.00,COMMERCIAL SUPPLIER 
 15-12-2020,Adults,Priory Supporting Care Ltd,Residential Placements - Private Contractors Payment,2248.00,0.00,COMMERCIAL SUPPLIER 
 15-12-2020,Adults,Ash Grove Residential Care Home,Respite Care - Private Contractors Payment,722.57,0.00,COMMERCIAL SUPPLIER 
 15-12-2020,Adults,Ash Grove Residential Care Home,Residential Placements - Private Contractors Payment,2524.00,0.00,COMMERCIAL SUPPLIER 
 15-12-2020,Adults,Ash Grove Residential Care Home,Residential Placements - Private Contractors Payment,3060.00,0.00,COMMERCIAL SUPPLIER 
 15-12-2020,Adults,Ash Grove Residential Care Home,Respite Care - Private Contractors Payment,2167.71,0.00,COMMERCIAL SUPPLIER 
 15-12-2020,Adults,Ash Grove Residential Care Home,Residential Placements - Private Contractors Payment,2524.00,0.00,COMMERCIAL SUPPLIER 
 15-12-2020,Adults,Ash Grove Residential Care Home,Residential Placements - Private Contractors Payment,2416.00,0.00,COMMERCIAL SUPPLIER 
 15-12-2020,Adults,Ash Grove Residential Care Home,Residential Placements - Private Contractors Payment,1725.71,0.00,COMMERCIAL SUPPLIER 
 15-12-2020,Adults,Ash Grove Residential Care Home,Residential Placements - Private Contractors Payment,2524.00,0.00,COMMERCIAL SUPPLIER 
 15-12-2020,Adults,Ash Grove Residential Care Home,Residential Placements - Private Contractors Payment,2524.00,0.00,COMMERCIAL SUPPLIER 
 15-12-2020,Adults,Ash Grove Residential Care Home,Residential Placements - Private Contractors Payment,2524.00,0.00,COMMERCIAL SUPPLIER 
 15-12-2020,Adults,Ash Grove Residential Care Home,Residential Placements - Private Contractors Payment,2416.00,0.00,COMMERCIAL SUPPLIER 
 15-12-2020,Adults,Ash Grove Residential Care Home,Residential Placements - Private Contractors Payment,2416.00,0.00,COMMERCIAL SUPPLIER 
 15-12-2020,Adults,Ash Grove Residential Care Home,Residential Placements - Private Contractors Payment,2416.00,0.00,COMMERCIAL SUPPLIER 
 15-12-2020,Adults,Ash Grove Residential Care Home,Residential Placements - Private Contractors Payment,2416.00,0.00,COMMERCIAL SUPPLIER 
 15-12-2020,Adults,Ash Grove Residential Care Home,Residential Placements - Private Contractors Payment,2416.00,0.00,COMMERCIAL SUPPLIER 
 15-12-2020,Adults,Ash Grove Residential Care Home,Residential Placements - Private Contractors Payment,2416.00,0.00,COMMERCIAL SUPPLIER 
 15-12-2020,Adults,Ash Grove Residential Care Home,Residential Placements - Private Contractors Payment,2416.00,0.00,COMMERCIAL SUPPLIER 
 15-12-2020,Adults,Ash Grove Residential Care Home,Residential Placements - Private Contractors Payment,2588.57,0.00,COMMERCIAL SUPPLIER 
 15-12-2020,Adults,Ash Grove Residential Care Home,Residential Placements - Private Contractors Payment,2416.00,0.00,COMMERCIAL SUPPLIER 
 15-12-2020,Adults,Ash Grove Residential Care Home,Residential Placements - Private Contractors Payment,2416.00,0.00,COMMERCIAL SUPPLIER 
 15-12-2020,Adults,Ash Grove Residential Care Home,Residential Placements - Private Contractors Payment,2416.00,0.00,COMMERCIAL SUPPLIER 
 15-12-2020,Adults,Ash Grove Residential Care Home,Residential Placements - Private Contractors Payment,2416.00,0.00,COMMERCIAL SUPPLIER 
 15-12-2020,Adults,Ash Grove Residential Care Home,Residential Placements - Private Contractors Payment,2416.00,0.00,COMMERCIAL SUPPLIER 
 15-12-2020,Adults,Ash Grove Residential Care Home,Residential Placements - Private Contractors Payment,2416.00,0.00,COMMERCIAL SUPPLIER 
 15-12-2020,Adults,Ash Grove Residential Care Home,Residential Placements - Private Contractors Payment,2416.00,0.00,COMMERCIAL SUPPLIER 
 15-12-2020,Adults,Ash Grove Residential Care Home,Residential Placements - Private Contractors Payment,1893.00,0.00,COMMERCIAL SUPPLIER 
 15-12-2020,Adults,Ash Grove Residential Care Home,Residential Placements - Private Contractors Payment,2524.00,0.00,COMMERCIAL SUPPLIER 
 15-12-2020,Adults,Ash Grove Residential Care Home,Other Short Term Support,9662.04,0.00,COMMERCIAL SUPPLIER 
 15-12-2020,Adults,Voyage Ltd - 89 Mawney Road,Residential Placements - Private Contractors Payment,5534.52,0.00,COMMERCIAL SUPPLIER 
 15-12-2020,Adults,Voyage Ltd - 89 Mawney Road,Residential Placements - Private Contractors Payment,5672.20,0.00,COMMERCIAL SUPPLIER 
 15-12-2020,Adults,Voyage Ltd - 89 Mawney Road,Residential Placements - Private Contractors Payment,5534.52,0.00,COMMERCIAL SUPPLIER 
 15-12-2020,Adults,Voyage Ltd - 89 Mawney Road,Residential Placements - Private Contractors Payment,5534.52,0.00,COMMERCIAL SUPPLIER 
 15-12-2020,Adults,Voyage Ltd - 89 Mawney Road,Residential Placements - Private Contractors Payment,5534.52,0.00,COMMERCIAL SUPPLIER 
 15-12-2020,Adults,Voyage Ltd - 89 Mawney Road,Residential Placements - Private Contractors Payment,5534.52,0.00,COMMERCIAL SUPPLIER 
 15-12-2020,Adults,GCH - Hillside Nursing Home,Residential Placements - Private Contractors Payment,1158.72,0.00,COMMERCIAL SUPPLIER 
 15-12-2020,Adults,GCH - Hillside Nursing Home,Nursing Homes - Private Contractors Payment,2460.00,0.00,COMMERCIAL SUPPLIER 
 15-12-2020,Adults,GCH - Hillside Nursing Home,Nursing Homes - Private Contractors Payment,2460.00,0.00,COMMERCIAL SUPPLIER 
 15-12-2020,Adults,GCH - Hillside Nursing Home,Nursing Homes - Private Contractors Payment,2460.00,0.00,COMMERCIAL SUPPLIER 
 15-12-2020,Adults,GCH - Hillside Nursing Home,Nursing Homes - Private Contractors Payment,2460.00,0.00,COMMERCIAL SUPPLIER 
 15-12-2020,Adults,GCH - Hillside Nursing Home,Nursing Homes - Private Contractors Payment,3060.00,0.00,COMMERCIAL SUPPLIER 
 15-12-2020,Adults,GCH - Hillside Nursing Home,Nursing Homes - Private Contractors Payment,2460.00,0.00,COMMERCIAL SUPPLIER 
 15-12-2020,Adults,GCH - Hillside Nursing Home,Nursing Homes - Private Contractors Payment,2460.00,0.00,COMMERCIAL SUPPLIER 
 15-12-2020,Adults,GCH - Hillside Nursing Home,Nursing Homes - Private Contractors Payment,2460.00,0.00,COMMERCIAL SUPPLIER 
 15-12-2020,Adults,GCH - Hillside Nursing Home,Nursing Homes - Private Contractors Payment,2296.00,0.00,COMMERCIAL SUPPLIER 
 15-12-2020,Adults,GCH - Hillside Nursing Home,Residential Placements - Private Contractors Payment,2524.00,0.00,COMMERCIAL SUPPLIER 
 15-12-2020,Adults,GCH - Hillside Nursing Home,Residential Placements - Private Contractors Payment,2524.00,0.00,COMMERCIAL SUPPLIER 
 15-12-2020,Adults,GCH - Hillside Nursing Home,Nursing Homes - Private Contractors Payment,4224.00,0.00,COMMERCIAL SUPPLIER 
 15-12-2020,Adults,GCH - Hillside Nursing Home,Nursing Homes - Private Contractors Payment,14784.00,0.00,COMMERCIAL SUPPLIER 
 15-12-2020,Adults,GCH - Hillside Nursing Home,Nursing Homes - Private Contractors Payment,14784.00,0.00,COMMERCIAL SUPPLIER 
 15-12-2020,Adults,GCH - Hillside Nursing Home,Nursing Homes - Private Contractors Payment,14784.00,0.00,COMMERCIAL SUPPLIER 
 15-12-2020,Adults,GCH - Hillside Nursing Home,Nursing Homes - Private Contractors Payment,14784.00,0.00,COMMERCIAL SUPPLIER 
 15-12-2020,Adults,GCH - Hillside Nursing Home,Nursing Homes - Private Contractors Payment,14784.00,0.00,COMMERCIAL SUPPLIER 
 15-12-2020,Adults,GCH - Hillside Nursing Home,Nursing Homes - Private Contractors Payment,14784.00,0.00,COMMERCIAL SUPPLIER 
 15-12-2020,Adults,GCH - Hillside Nursing Home,Residential Placements - Private Contractors Payment,2248.00,0.00,COMMERCIAL SUPPLIER 
 15-12-2020,Adults,GCH - Hillside Nursing Home,Nursing Homes - Private Contractors Payment,516.00,0.00,COMMERCIAL SUPPLIER 
 15-12-2020,Adults,GCH - Hillside Nursing Home,Nursing Homes - Private Contractors Payment,2112.00,0.00,COMMERCIAL SUPPLIER 
 15-12-2020,Adults,GCH - Hillside Nursing Home,Nursing Homes - Private Contractors Payment,3612.00,0.00,COMMERCIAL SUPPLIER 
 15-12-2020,Adults,GCH - Hillside Nursing Home,Nursing Homes - Private Contractors Payment,14784.00,0.00,COMMERCIAL SUPPLIER 
 15-12-2020,Adults,GCH - Hillside Nursing Home,Nursing Homes - Private Contractors Payment,2064.00,0.00,COMMERCIAL SUPPLIER 
 15-12-2020,Adults,GCH - Hillside Nursing Home,Nursing Homes - Private Contractors Payment,3612.00,0.00,COMMERCIAL SUPPLIER 
 15-12-2020,Adults,GCH - Hillside Nursing Home,Nursing Homes - Private Contractors Payment,1419.00,0.00,COMMERCIAL SUPPLIER 
 15-12-2020,Adults,GCH - Hillside Nursing Home,Nursing Homes - Private Contractors Payment,3612.00,0.00,COMMERCIAL SUPPLIER 
 15-12-2020,Adults,GCH - Hillside Nursing Home,Other Short Term Support,20438.94,0.00,COMMERCIAL SUPPLIER 
 15-12-2020,Adults,GCH - Hillside Nursing Home,Nursing Homes - Private Contractors Payment,2460.00,0.00,COMMERCIAL SUPPLIER 
 15-12-2020,Adults,GCH - Hillside Nursing Home,Nursing Homes - Private Contractors Payment,3400.00,0.00,COMMERCIAL SUPPLIER 
 15-12-2020,Adults,GCH - Hillside Nursing Home,Residential Placements - Private Contractors Payment,2524.00,0.00,COMMERCIAL SUPPLIER 
 15-12-2020,Adults,GCH - Hillside Nursing Home,Nursing Homes - Private Contractors Payment,3060.00,0.00,COMMERCIAL SUPPLIER 
 15-12-2020,Adults,GCH - Hillside Nursing Home,Nursing Homes - Private Contractors Payment,2460.00,0.00,COMMERCIAL SUPPLIER 
 15-12-2020,Adults,GCH - Hillside Nursing Home,Nursing Homes - Private Contractors Payment,2460.00,0.00,COMMERCIAL SUPPLIER 
 15-12-2020,Adults,GCH - Hillside Nursing Home,Residential Placements - Private Contractors Payment,2524.00,0.00,COMMERCIAL SUPPLIER 
 15-12-2020,Adults,GCH - Hillside Nursing Home,Nursing Homes - Private Contractors Payment,2460.00,0.00,COMMERCIAL SUPPLIER 
 15-12-2020,Adults,GCH - Hillside Nursing Home,Nursing Homes - Private Contractors Payment,2460.00,0.00,COMMERCIAL SUPPLIER 
 15-12-2020,Adults,GCH - Hillside Nursing Home,Nursing Homes - Private Contractors Payment,2460.00,0.00,COMMERCIAL SUPPLIER 
 15-12-2020,Adults,Outlook Care - 86 Veronica Close,Residential Placements - Private Contractors Payment,4317.88,0.00,COMMERCIAL SUPPLIER 
 15-12-2020,Adults,Outlook Care - 86 Veronica Close,Residential Placements - Private Contractors Payment,4317.88,0.00,COMMERCIAL SUPPLIER 
 15-12-2020,Adults,Outlook Care - 86 Veronica Close,Residential Placements - Private Contractors Payment,4317.88,0.00,COMMERCIAL SUPPLIER 
 15-12-2020,Adults,Outlook Care - 86 Veronica Close,Residential Placements - Private Contractors Payment,4317.88,0.00,COMMERCIAL SUPPLIER 
 15-12-2020,Adults,Outlook Care - 86 Veronica Close,Residential Placements - Private Contractors Payment,4317.88,0.00,COMMERCIAL SUPPLIER 
 15-12-2020,Adults,Outlook Care - 86 Veronica Close,Residential Placements - Private Contractors Payment,4317.88,0.00,COMMERCIAL SUPPLIER 
 15-12-2020,Adults,Outlook Care - 86 Veronica Close,Residential Placements - Private Contractors Payment,4317.88,0.00,COMMERCIAL SUPPLIER 
 15-12-2020,Adults,Outlook Care - 86 Veronica Close,Residential Placements - Private Contractors Payment,4317.88,0.00,COMMERCIAL SUPPLIER 
 15-12-2020,Adults,Outlook Care - 86 Veronica Close,Other Short Term Support,3716.17,0.00,COMMERCIAL SUPPLIER 
 15-12-2020,Adults,The Lodge_a,Residential Placements - Private Contractors Payment,2524.00,0.00,COMMERCIAL SUPPLIER 
 15-12-2020,Adults,The Lodge_a,Residential Placements - Private Contractors Payment,2524.00,0.00,COMMERCIAL SUPPLIER 
 15-12-2020,Adults,The Lodge_a,Residential Placements - Private Contractors Payment,607.14,0.00,COMMERCIAL SUPPLIER 
 15-12-2020,Adults,The Lodge_a,Residential Placements - Private Contractors Payment,3400.00,0.00,COMMERCIAL SUPPLIER 
 15-12-2020,Adults,The Lodge_a,Residential Placements - Private Contractors Payment,850.00,0.00,COMMERCIAL SUPPLIER 
 15-12-2020,Adults,The Lodge_a,Residential Placements - Private Contractors Payment,3400.00,0.00,COMMERCIAL SUPPLIER 
 15-12-2020,Adults,The Lodge_a,Residential Placements - Private Contractors Payment,27200.00,0.00,COMMERCIAL SUPPLIER 
 15-12-2020,Adults,The Lodge_a,Residential Placements - Private Contractors Payment,2524.00,0.00,COMMERCIAL SUPPLIER 
 15-12-2020,Adults,The Lodge_a,Other Short Term Support,34932.00,0.00,COMMERCIAL SUPPLIER 
 15-12-2020,Adults,The Lodge_a,Residential Placements - Private Contractors Payment,2524.00,0.00,COMMERCIAL SUPPLIER 
 15-12-2020,Adults,The Lodge_a,Residential Placements - Private Contractors Payment,901.43,0.00,COMMERCIAL SUPPLIER 
 15-12-2020,Adults,The Lodge_a,Residential Placements - Private Contractors Payment,2524.00,0.00,COMMERCIAL SUPPLIER 
 15-12-2020,Adults,The Lodge_a,Residential Placements - Private Contractors Payment,2524.00,0.00,COMMERCIAL SUPPLIER 
 15-12-2020,Adults,The Lodge_a,Residential Placements - Private Contractors Payment,2524.00,0.00,COMMERCIAL SUPPLIER 
 15-12-2020,Adults,The Lodge_a,Residential Placements - Private Contractors Payment,2524.00,0.00,COMMERCIAL SUPPLIER 
 15-12-2020,Adults,The Lodge_a,Residential Placements - Private Contractors Payment,2524.00,0.00,COMMERCIAL SUPPLIER 
 15-12-2020,Adults,The Lodge_a,Residential Placements - Private Contractors Payment,2524.00,0.00,COMMERCIAL SUPPLIER 
 15-12-2020,Adults,The Lodge_a,Residential Placements - Private Contractors Payment,2524.00,0.00,COMMERCIAL SUPPLIER 
 15-12-2020,Adults,The Lodge_a,Residential Placements - Private Contractors Payment,2524.00,0.00,COMMERCIAL SUPPLIER 
 15-12-2020,Adults,The Lodge_a,Residential Placements - Private Contractors Payment,2524.00,0.00,COMMERCIAL SUPPLIER 
 15-12-2020,Adults,The Lodge_a,Residential Placements - Private Contractors Payment,2524.00,0.00,COMMERCIAL SUPPLIER 
 15-12-2020,Adults,The Lodge_a,Residential Placements - Private Contractors Payment,2524.00,0.00,COMMERCIAL SUPPLIER 
 15-12-2020,Adults,The Lodge_a,Residential Placements - Private Contractors Payment,2524.00,0.00,COMMERCIAL SUPPLIER 
 15-12-2020,Adults,The Lodge_a,Residential Placements - Private Contractors Payment,2524.00,0.00,COMMERCIAL SUPPLIER 
 15-12-2020,Adults,The Lodge_a,Residential Placements - Private Contractors Payment,2524.00,0.00,COMMERCIAL SUPPLIER 
 15-12-2020,Adults,The Lodge_a,Residential Placements - Private Contractors Payment,2524.00,0.00,COMMERCIAL SUPPLIER 
 15-12-2020,Adults,The Lodge_a,Residential Placements - Private Contractors Payment,2524.00,0.00,COMMERCIAL SUPPLIER 
 15-12-2020,Adults,The Lodge_a,Residential Placements - Private Contractors Payment,2524.00,0.00,COMMERCIAL SUPPLIER 
 15-12-2020,Adults,The Lodge_a,Residential Placements - Private Contractors Payment,2524.00,0.00,COMMERCIAL SUPPLIER 
 15-12-2020,Adults,The Lodge_a,Residential Placements - Private Contractors Payment,1700.00,0.00,COMMERCIAL SUPPLIER 
 15-12-2020,Adults,The Lodge_a,Residential Placements - Private Contractors Payment,2524.00,0.00,COMMERCIAL SUPPLIER 
 15-12-2020,Adults,The Lodge_a,Residential Placements - Private Contractors Payment,2524.00,0.00,COMMERCIAL SUPPLIER 
 15-12-2020,Adults,The Lodge_a,Residential Placements - Private Contractors Payment,2524.00,0.00,COMMERCIAL SUPPLIER 
 15-12-2020,Adults,The Lodge_a,Residential Placements - Private Contractors Payment,2524.00,0.00,COMMERCIAL SUPPLIER 
 15-12-2020,Adults,The Lodge_a,Residential Placements - Private Contractors Payment,2524.00,0.00,COMMERCIAL SUPPLIER 
 15-12-2020,Adults,The Lodge_a,Residential Placements - Private Contractors Payment,2524.00,0.00,COMMERCIAL SUPPLIER 
 15-12-2020,Adults,The Lodge_a,Residential Placements - Private Contractors Payment,2524.00,0.00,COMMERCIAL SUPPLIER 
 15-12-2020,Adults,The Lodge_a,Residential Placements - Private Contractors Payment,2524.00,0.00,COMMERCIAL SUPPLIER 
 15-12-2020,Adults,The Lodge_a,Residential Placements - Private Contractors Payment,3876.00,0.00,COMMERCIAL SUPPLIER 
 15-12-2020,Adults,The Lodge_a,Residential Placements - Private Contractors Payment,2524.00,0.00,COMMERCIAL SUPPLIER 
 15-12-2020,Adults,The Lodge_a,Residential Placements - Private Contractors Payment,2524.00,0.00,COMMERCIAL SUPPLIER 
 15-12-2020,Adults,The Lodge_a,Residential Placements - Private Contractors Payment,2524.00,0.00,COMMERCIAL SUPPLIER 
 15-12-2020,Adults,The Lodge_a,Residential Placements - Private Contractors Payment,2524.00,0.00,COMMERCIAL SUPPLIER 
 15-12-2020,Adults,The Lodge_a,Residential Placements - Private Contractors Payment,2524.00,0.00,COMMERCIAL SUPPLIER 
 15-12-2020,Adults,The Lodge_a,Residential Placements - Private Contractors Payment,2524.00,0.00,COMMERCIAL SUPPLIER 
 15-12-2020,Adults,The Lodge_a,Residential Placements - Private Contractors Payment,2524.00,0.00,COMMERCIAL SUPPLIER 
 15-12-2020,Adults,The Lodge_a,Residential Placements - Private Contractors Payment,2524.00,0.00,COMMERCIAL SUPPLIER 
 15-12-2020,Adults,The Lodge_a,Residential Placements - Private Contractors Payment,2524.00,0.00,COMMERCIAL SUPPLIER 
 15-12-2020,Adults,The Lodge_a,Residential Placements - Private Contractors Payment,2524.00,0.00,COMMERCIAL SUPPLIER 
 15-12-2020,Adults,The Lodge_a,Residential Placements - Private Contractors Payment,2524.00,0.00,COMMERCIAL SUPPLIER 
 15-12-2020,Adults,The Lodge_a,Residential Placements - Private Contractors Payment,2524.00,0.00,COMMERCIAL SUPPLIER 
 15-12-2020,Adults,The Lodge_a,Residential Placements - Private Contractors Payment,2524.00,0.00,COMMERCIAL SUPPLIER 
 15-12-2020,Adults,The Lodge_a,Residential Placements - Private Contractors Payment,2524.00,0.00,COMMERCIAL SUPPLIER 
 15-12-2020,Adults,The Lodge_a,Residential Placements - Private Contractors Payment,2524.00,0.00,COMMERCIAL SUPPLIER 
 15-12-2020,Adults,The Lodge_a,Residential Placements - Private Contractors Payment,2524.00,0.00,COMMERCIAL SUPPLIER 
 15-12-2020,Adults,T L Care (Havering) Ltd,Residential Placements - Private Contractors Payment,2248.00,0.00,COMMERCIAL SUPPLIER 
 15-12-2020,Adults,T L Care (Havering) Ltd,Residential Placements - Private Contractors Payment,2524.00,0.00,COMMERCIAL SUPPLIER 
 15-12-2020,Adults,T L Care (Havering) Ltd,Residential Placements - Private Contractors Payment,2524.00,0.00,COMMERCIAL SUPPLIER 
 15-12-2020,Adults,T L Care (Havering) Ltd,Other Short Term Support,10405.28,0.00,COMMERCIAL SUPPLIER 
 15-12-2020,Adults,T L Care (Havering) Ltd,Residential Placements - Private Contractors Payment,2524.00,0.00,COMMERCIAL SUPPLIER 
 15-12-2020,Adults,T L Care (Havering) Ltd,Residential Placements - Private Contractors Payment,2524.00,0.00,COMMERCIAL SUPPLIER 
 15-12-2020,Adults,T L Care (Havering) Ltd,Residential Placements - Private Contractors Payment,2524.00,0.00,COMMERCIAL SUPPLIER 
 15-12-2020,Adults,T L Care (Havering) Ltd,Residential Placements - Private Contractors Payment,2524.00,0.00,COMMERCIAL SUPPLIER 
 15-12-2020,Adults,T L Care (Havering) Ltd,Residential Placements - Private Contractors Payment,2524.00,0.00,COMMERCIAL SUPPLIER 
 15-12-2020,Adults,Rose House_a,Other Short Term Support,1486.47,0.00,COMMERCIAL SUPPLIER 
 15-12-2020,Adults,Rose House_a,Residential Placements - Private Contractors Payment,6407.64,0.00,COMMERCIAL SUPPLIER 
 15-12-2020,Adults,Melody Lodge_a,Residential Placements - Private Contractors Payment,4488.00,0.00,COMMERCIAL SUPPLIER 
 15-12-2020,Adults,Abbottswood Lodge,Residential Placements - Private Contractors Payment,1687.00,0.00,COMMERCIAL SUPPLIER 
 15-12-2020,Adults,Autism Initiatives,Residential Placements - Private Contractors Payment,5323.40,0.00,COMMERCIAL SUPPLIER 
 15-12-2020,Adults,Personal Care Support Ltd,Residential Placements - Private Contractors Payment,4570.12,0.00,COMMERCIAL SUPPLIER 
 15-12-2020,Adults,The Cottage Residential Care Home,Residential Placements - Private Contractors Payment,2837.84,0.00,COMMERCIAL SUPPLIER 
 15-12-2020,Adults,The Cottage Residential Care Home,Residential Placements - Private Contractors Payment,746.25,0.00,COMMERCIAL SUPPLIER 
 15-12-2020,Adults,The Cottage Residential Care Home,Residential Placements - Private Contractors Payment,995.00,0.00,COMMERCIAL SUPPLIER 
 15-12-2020,Adults,Eight Ash Court Ltd,Residential Placements - Private Contractors Payment,4521.84,0.00,COMMERCIAL SUPPLIER 
 15-12-2020,Adults,Ashgate House Ltd_a,Residential Placements - Private Contractors Payment,3792.92,0.00,COMMERCIAL SUPPLIER 
 15-12-2020,Adults,Ashgate House Ltd_a,Residential Placements - Private Contractors Payment,713.68,0.00,COMMERCIAL SUPPLIER 
 15-12-2020,Adults,Ashgate House Ltd_a,Other Short Term Support,3716.17,0.00,COMMERCIAL SUPPLIER 
 15-12-2020,Adults,Ashgate House Ltd_a,Residential Placements - Private Contractors Payment,4538.32,0.00,COMMERCIAL SUPPLIER 
 15-12-2020,Adults,Ashgate House Ltd_a,Residential Placements - Private Contractors Payment,3606.72,0.00,COMMERCIAL SUPPLIER 
 15-12-2020,Adults,Ashgate House Ltd_a,Residential Placements - Private Contractors Payment,1247.04,0.00,COMMERCIAL SUPPLIER 
 15-12-2020,Adults,Ashgate House Ltd_a,Residential Placements - Private Contractors Payment,3501.20,0.00,COMMERCIAL SUPPLIER 
 15-12-2020,Adults,Ashgate House Ltd_a,Residential Placements - Private Contractors Payment,4499.28,0.00,COMMERCIAL SUPPLIER 
 15-12-2020,Adults,Ashdene House Ltd_a,Residential Placements - Private Contractors Payment,4586.48,0.00,COMMERCIAL SUPPLIER 
 15-12-2020,Adults,Voyage Ltd - Drakes Place,Residential Placements - Private Contractors Payment,4274.96,0.00,COMMERCIAL SUPPLIER 
 15-12-2020,Adults,Autism Wessex,Residential Placements - Private Contractors Payment,5840.76,0.00,COMMERCIAL SUPPLIER 
 15-12-2020,Adults,Crowstone Care Home Ltd - The Grange,Residential Placements - Private Contractors Payment,1988.00,0.00,COMMERCIAL SUPPLIER 
 15-12-2020,Adults,Acorn Village_a,Residential Placements - Private Contractors Payment,6624.28,0.00,COMMERCIAL SUPPLIER 
 15-12-2020,Adults,Hilton House,Residential Placements - Private Contractors Payment,4097.64,0.00,COMMERCIAL SUPPLIER 
 15-12-2020,Adults,Churchill House_a,Other Short Term Support,5202.63,0.00,COMMERCIAL SUPPLIER 
 15-12-2020,Adults,Churchill House_a,Residential Placements - Private Contractors Payment,4031.04,0.00,COMMERCIAL SUPPLIER 
 15-12-2020,Adults,Churchill House_a,Residential Placements - Private Contractors Payment,2832.08,0.00,COMMERCIAL SUPPLIER 
 15-12-2020,Adults,Churchill House_a,Residential Placements - Private Contractors Payment,3876.00,0.00,COMMERCIAL SUPPLIER 
 15-12-2020,Adults,Moorlands Rehabilitation (Staffordshire) Ltd,Nursing Homes - Private Contractors Payment,3129.36,0.00,COMMERCIAL SUPPLIER 
 15-12-2020,Adults,Ashking House Ltd,Other Short Term Support,2601.32,0.00,COMMERCIAL SUPPLIER 
 15-12-2020,Adults,Ashking House Ltd,Residential Placements - Private Contractors Payment,5978.56,0.00,COMMERCIAL SUPPLIER 
 15-12-2020,Adults,Ashking House Ltd,Residential Placements - Private Contractors Payment,3930.92,0.00,COMMERCIAL SUPPLIER 
 15-12-2020,Adults,Ashking House Ltd,Residential Placements - Private Contractors Payment,1546.48,0.00,COMMERCIAL SUPPLIER 
 15-12-2020,Adults,Community Care Mission 2000 Ltd,Residential Placements - Private Contractors Payment,10381.20,0.00,COMMERCIAL SUPPLIER 
 15-12-2020,Adults,Community Care Mission 2000 Ltd,Residential Placements - Private Contractors Payment,8837.84,0.00,COMMERCIAL SUPPLIER 
 15-12-2020,Adults,Genesis Residential Homes Ltd - Dothan House,Residential Placements - Private Contractors Payment,2524.00,0.00,COMMERCIAL SUPPLIER 
 15-12-2020,Adults,Genesis Residential Homes Ltd - Dothan House,Residential Placements - Private Contractors Payment,901.43,0.00,COMMERCIAL SUPPLIER 
 15-12-2020,Adults,Genesis Residential Homes Ltd - Dothan House,Residential Placements - Private Contractors Payment,2524.00,0.00,COMMERCIAL SUPPLIER 
 15-12-2020,Adults,Genesis Residential Homes Ltd - Dothan House,Residential Placements - Private Contractors Payment,2524.00,0.00,COMMERCIAL SUPPLIER 
 15-12-2020,Adults,Genesis Residential Homes Ltd - Dothan House,Residential Placements - Private Contractors Payment,2524.00,0.00,COMMERCIAL SUPPLIER 
 15-12-2020,Adults,Genesis Residential Homes Ltd - Dothan House,Residential Placements - Private Contractors Payment,2524.00,0.00,COMMERCIAL SUPPLIER 
 15-12-2020,Adults,Genesis Residential Homes Ltd - Dothan House,Residential Placements - Private Contractors Payment,2524.00,0.00,COMMERCIAL SUPPLIER 
 15-12-2020,Adults,Genesis Residential Homes Ltd - Dothan House,Residential Placements - Private Contractors Payment,2524.00,0.00,COMMERCIAL SUPPLIER 
 15-12-2020,Adults,Genesis Residential Homes Ltd - Dothan House,Residential Placements - Private Contractors Payment,2524.00,0.00,COMMERCIAL SUPPLIER 
 15-12-2020,Adults,Genesis Residential Homes Ltd - Dothan House,Residential Placements - Private Contractors Payment,2524.00,0.00,COMMERCIAL SUPPLIER 
 15-12-2020,Adults,Genesis Residential Homes Ltd - Dothan House,Residential Placements - Private Contractors Payment,2524.00,0.00,COMMERCIAL SUPPLIER 
 15-12-2020,Adults,Genesis Residential Homes Ltd - Dothan House,Other Short Term Support,7060.72,0.00,COMMERCIAL SUPPLIER 
 15-12-2020,Adults,DMP Healthcare (Cherry Orchard) Ltd,Nursing Homes - Private Contractors Payment,2460.00,0.00,COMMERCIAL SUPPLIER 
 15-12-2020,Adults,DMP Healthcare (Cherry Orchard) Ltd,Nursing Homes - Private Contractors Payment,3664.32,0.00,COMMERCIAL SUPPLIER 
 15-12-2020,Adults,DMP Healthcare (Cherry Orchard) Ltd,Nursing Homes - Private Contractors Payment,3365.80,0.00,COMMERCIAL SUPPLIER 
 15-12-2020,Adults,DMP Healthcare (Cherry Orchard) Ltd,Nursing Homes - Private Contractors Payment,2513.28,0.00,COMMERCIAL SUPPLIER 
 15-12-2020,Adults,DMP Healthcare (Cherry Orchard) Ltd,Nursing Homes - Private Contractors Payment,3664.32,0.00,COMMERCIAL SUPPLIER 
 15-12-2020,Adults,DMP Healthcare (Cherry Orchard) Ltd,Nursing Homes - Private Contractors Payment,3228.32,0.00,COMMERCIAL SUPPLIER 
 15-12-2020,Adults,DMP Healthcare (Cherry Orchard) Ltd,Nursing Homes - Private Contractors Payment,4278.76,0.00,COMMERCIAL SUPPLIER 
 15-12-2020,Adults,DMP Healthcare (Cherry Orchard) Ltd,Nursing Homes - Private Contractors Payment,2916.60,0.00,COMMERCIAL SUPPLIER 
 15-12-2020,Adults,Whiteheather Ltd,Residential Placements - Private Contractors Payment,9212.32,0.00,COMMERCIAL SUPPLIER 
 15-12-2020,Adults,Brook Care Home_a,Residential Placements - Private Contractors Payment,2939.84,0.00,COMMERCIAL SUPPLIER 
 15-12-2020,Adults,Castle Care UK Ltd,Nursing Homes - Private Contractors Payment,2700.32,0.00,COMMERCIAL SUPPLIER 
 15-12-2020,Adults,Castle Care UK Ltd,Nursing Homes - Private Contractors Payment,2460.00,0.00,COMMERCIAL SUPPLIER 
 15-12-2020,Adults,Castle Care UK Ltd,Residential Placements - Private Contractors Payment,5712.00,0.00,COMMERCIAL SUPPLIER 
 15-12-2020,Adults,Barleycroft Care Home Ltd,Residential Placements - Private Contractors Payment,2524.00,0.00,COMMERCIAL SUPPLIER 
 15-12-2020,Adults,Barleycroft Care Home Ltd,Residential Placements - Private Contractors Payment,2524.00,0.00,COMMERCIAL SUPPLIER 
 15-12-2020,Adults,Barleycroft Care Home Ltd,Residential Placements - Private Contractors Payment,2524.00,0.00,COMMERCIAL SUPPLIER 
 15-12-2020,Adults,Barleycroft Care Home Ltd,Residential Placements - Private Contractors Payment,2524.00,0.00,COMMERCIAL SUPPLIER 
 15-12-2020,Adults,Barleycroft Care Home Ltd,Nursing Homes - Private Contractors Payment,2460.00,0.00,COMMERCIAL SUPPLIER 
 15-12-2020,Adults,Barleycroft Care Home Ltd,Residential Placements - Private Contractors Payment,2524.00,0.00,COMMERCIAL SUPPLIER 
 15-12-2020,Adults,Barleycroft Care Home Ltd,Residential Placements - Private Contractors Payment,2524.00,0.00,COMMERCIAL SUPPLIER 
 15-12-2020,Adults,Barleycroft Care Home Ltd,Residential Placements - Private Contractors Payment,2248.00,0.00,COMMERCIAL SUPPLIER 
 15-12-2020,Adults,Barleycroft Care Home Ltd,Nursing Homes - Private Contractors Payment,2296.00,0.00,COMMERCIAL SUPPLIER 
 15-12-2020,Adults,Barleycroft Care Home Ltd,Nursing Homes - Private Contractors Payment,2296.00,0.00,COMMERCIAL SUPPLIER 
 15-12-2020,Adults,Barleycroft Care Home Ltd,Nursing Homes - Private Contractors Payment,2296.00,0.00,COMMERCIAL SUPPLIER 
 15-12-2020,Adults,Barleycroft Care Home Ltd,Residential Placements - Private Contractors Payment,2248.00,0.00,COMMERCIAL SUPPLIER 
 15-12-2020,Adults,Barleycroft Care Home Ltd,Nursing Homes - Private Contractors Payment,2296.00,0.00,COMMERCIAL SUPPLIER 
 15-12-2020,Adults,Barleycroft Care Home Ltd,Residential Placements - Private Contractors Payment,2343.71,0.00,COMMERCIAL SUPPLIER 
 15-12-2020,Adults,Barleycroft Care Home Ltd,Residential Placements - Private Contractors Payment,2524.00,0.00,COMMERCIAL SUPPLIER 
 15-12-2020,Adults,Barleycroft Care Home Ltd,Residential Placements - Private Contractors Payment,2248.00,0.00,COMMERCIAL SUPPLIER 
 15-12-2020,Adults,Barleycroft Care Home Ltd,Nursing Homes - Private Contractors Payment,1032.00,0.00,COMMERCIAL SUPPLIER 
 15-12-2020,Adults,Barleycroft Care Home Ltd,Nursing Homes - Private Contractors Payment,3612.00,0.00,COMMERCIAL SUPPLIER 
 15-12-2020,Adults,Barleycroft Care Home Ltd,Nursing Homes - Private Contractors Payment,1419.00,0.00,COMMERCIAL SUPPLIER 
 15-12-2020,Adults,Barleycroft Care Home Ltd,Nursing Homes - Private Contractors Payment,4752.00,0.00,COMMERCIAL SUPPLIER 
 15-12-2020,Adults,Barleycroft Care Home Ltd,Nursing Homes - Private Contractors Payment,3612.00,0.00,COMMERCIAL SUPPLIER 
 15-12-2020,Adults,Barleycroft Care Home Ltd,Nursing Homes - Private Contractors Payment,12096.00,0.00,COMMERCIAL SUPPLIER 
 15-12-2020,Adults,Barleycroft Care Home Ltd,Residential Placements - Private Contractors Payment,517.71,0.00,COMMERCIAL SUPPLIER 
 15-12-2020,Adults,Barleycroft Care Home Ltd,Residential Placements - Private Contractors Payment,2416.00,0.00,COMMERCIAL SUPPLIER 
 15-12-2020,Adults,Barleycroft Care Home Ltd,Residential Placements - Private Contractors Payment,991.57,0.00,COMMERCIAL SUPPLIER 
 15-12-2020,Adults,Barleycroft Care Home Ltd,Residential Placements - Private Contractors Payment,2524.00,0.00,COMMERCIAL SUPPLIER 
 15-12-2020,Adults,Barleycroft Care Home Ltd,Nursing Homes - Private Contractors Payment,129.00,0.00,COMMERCIAL SUPPLIER 
 15-12-2020,Adults,Barleycroft Care Home Ltd,Nursing Homes - Private Contractors Payment,3612.00,0.00,COMMERCIAL SUPPLIER 
 15-12-2020,Adults,Barleycroft Care Home Ltd,Residential Placements - Private Contractors Payment,2416.00,0.00,COMMERCIAL SUPPLIER 
 15-12-2020,Adults,Barleycroft Care Home Ltd,Nursing Homes - Private Contractors Payment,1806.00,0.00,COMMERCIAL SUPPLIER 
 15-12-2020,Adults,Barleycroft Care Home Ltd,Nursing Homes - Private Contractors Payment,3612.00,0.00,COMMERCIAL SUPPLIER 
 15-12-2020,Adults,Barleycroft Care Home Ltd,Residential Placements - Private Contractors Payment,1725.71,0.00,COMMERCIAL SUPPLIER 
 15-12-2020,Adults,Barleycroft Care Home Ltd,Residential Placements - Private Contractors Payment,2416.00,0.00,COMMERCIAL SUPPLIER 
 15-12-2020,Adults,Barleycroft Care Home Ltd,Other Short Term Support,29729.35,0.00,COMMERCIAL SUPPLIER 
 15-12-2020,Adults,Barleycroft Care Home Ltd,Nursing Homes - Private Contractors Payment,2460.00,0.00,COMMERCIAL SUPPLIER 
 15-12-2020,Adults,Barleycroft Care Home Ltd,Nursing Homes - Private Contractors Payment,2460.00,0.00,COMMERCIAL SUPPLIER 
 15-12-2020,Adults,Barleycroft Care Home Ltd,Nursing Homes - Private Contractors Payment,2460.00,0.00,COMMERCIAL SUPPLIER 
 15-12-2020,Adults,Barleycroft Care Home Ltd,Nursing Homes - Private Contractors Payment,2460.00,0.00,COMMERCIAL SUPPLIER 
 15-12-2020,Adults,The Avenues Trust - 73A Neave Crescent,Other Short Term Support,3716.17,0.00,COMMERCIAL SUPPLIER 
 15-12-2020,Adults,The Avenues Trust - 73A Neave Crescent,Residential Placements - Private Contractors Payment,4515.09,0.00,COMMERCIAL SUPPLIER 
 15-12-2020,Adults,The Avenues Trust - 73A Neave Crescent,Residential Placements - Private Contractors Payment,2778.51,0.00,COMMERCIAL SUPPLIER 
 15-12-2020,Adults,The Avenues Trust - 73A Neave Crescent,Residential Placements - Private Contractors Payment,5812.12,0.00,COMMERCIAL SUPPLIER 
 15-12-2020,Adults,The Avenues Trust - 73A Neave Crescent,Residential Placements - Private Contractors Payment,5515.92,0.00,COMMERCIAL SUPPLIER 
 15-12-2020,Adults,The Avenues Trust - 73A Neave Crescent,Residential Placements - Private Contractors Payment,5928.36,0.00,COMMERCIAL SUPPLIER 
 15-12-2020,Adults,The Avenues Trust - 73A Neave Crescent,Residential Placements - Private Contractors Payment,5515.92,0.00,COMMERCIAL SUPPLIER 
 15-12-2020,Adults,The Avenues Trust - 73A Neave Crescent,Residential Placements - Private Contractors Payment,5928.36,0.00,COMMERCIAL SUPPLIER 
 15-12-2020,Adults,The Avenues Trust - 73A Neave Crescent,Residential Placements - Private Contractors Payment,5809.60,0.00,COMMERCIAL SUPPLIER 
 15-12-2020,Adults,The Avenues Trust - 73A Neave Crescent,Residential Placements - Private Contractors Payment,5809.60,0.00,COMMERCIAL SUPPLIER 
 15-12-2020,Adults,The Avenues Trust_a,Residential Placements - Private Contractors Payment,5812.12,0.00,COMMERCIAL SUPPLIER 
 15-12-2020,Adults,The Avenues Trust_a,Residential Placements - Private Contractors Payment,5812.12,0.00,COMMERCIAL SUPPLIER 
 15-12-2020,Adults,The Avenues Trust_a,Residential Placements - Private Contractors Payment,5812.12,0.00,COMMERCIAL SUPPLIER 
 15-12-2020,Adults,The Avenues Trust - 13A Repton Drive,Residential Placements - Private Contractors Payment,5955.36,0.00,COMMERCIAL SUPPLIER 
 15-12-2020,Adults,The Avenues Trust - 13A Repton Drive,Other Short Term Support,2229.70,0.00,COMMERCIAL SUPPLIER 
 15-12-2020,Adults,The Avenues Trust - 13A Repton Drive,Residential Placements - Private Contractors Payment,5955.36,0.00,COMMERCIAL SUPPLIER 
 15-12-2020,Adults,The Avenues Trust - 13A Repton Drive,Residential Placements - Private Contractors Payment,5955.36,0.00,COMMERCIAL SUPPLIER 
 15-12-2020,Adults,The Avenues Trust - 13A Repton Drive,Residential Placements - Private Contractors Payment,5955.36,0.00,COMMERCIAL SUPPLIER 
 15-12-2020,Adults,The Avenues Trust - 13A Repton Drive,Residential Placements - Private Contractors Payment,5955.36,0.00,COMMERCIAL SUPPLIER 
 15-12-2020,Adults,The Avenues Trust - 13A Repton Drive,Residential Placements - Private Contractors Payment,5955.36,0.00,COMMERCIAL SUPPLIER 
 15-12-2020,Adults,Consensus Support Services Ltd - Southwold House,Residential Placements - Private Contractors Payment,8031.00,0.00,COMMERCIAL SUPPLIER 
 15-12-2020,Adults,Palm Care Ltd,Residential Placements - Private Contractors Payment,5659.48,0.00,COMMERCIAL SUPPLIER 
 15-12-2020,Adults,The Meath,Residential Placements - Private Contractors Payment,5472.32,0.00,COMMERCIAL SUPPLIER 
 15-12-2020,Adults,The Meath,Residential Placements - Private Contractors Payment,5472.32,0.00,COMMERCIAL SUPPLIER 
 15-12-2020,Adults,Runwood Homes Plc - Woodbury Court,Residential Placements - Private Contractors Payment,2039.20,0.00,COMMERCIAL SUPPLIER 
 15-12-2020,Adults,Consensus Support Services Ltd - Rowan House,Residential Placements - Private Contractors Payment,8169.20,0.00,COMMERCIAL SUPPLIER 
 15-12-2020,Adults,Oaks Health Ltd,Residential Placements - Private Contractors Payment,8418.52,0.00,COMMERCIAL SUPPLIER 
 15-12-2020,Adults,Sandringham Care Home,Nursing Homes - Private Contractors Payment,2165.92,0.00,COMMERCIAL SUPPLIER 
 15-12-2020,Adults,Clearwater Care (Hackney) Ltd - Searsons Way,Residential Placements - Private Contractors Payment,11628.00,0.00,COMMERCIAL SUPPLIER 
 15-12-2020,Adults,Clearwater Care (Hackney) Ltd - Searsons Way,Other Short Term Support,1486.47,0.00,COMMERCIAL SUPPLIER 
 15-12-2020,Adults,Clearwater Care (Hackney) Ltd - Searsons Way,Residential Placements - Private Contractors Payment,6364.80,0.00,COMMERCIAL SUPPLIER 
 15-12-2020,Adults,Clearwater Care (Hackney) Ltd - Searsons Way,Residential Placements - Private Contractors Payment,6789.12,0.00,COMMERCIAL SUPPLIER 
 15-12-2020,Adults,Clearwater Care (Hackney) Ltd - Searsons Way,Other Short Term Support,1858.09,0.00,COMMERCIAL SUPPLIER 
 15-12-2020,Adults,Stow Healthcare (CP) Ltd,Residential Placements - Private Contractors Payment,2524.00,0.00,COMMERCIAL SUPPLIER 
 15-12-2020,Adults,Outlook Care - 74 Neave Crescent,Respite Care - Private Contractors Payment,21033.60,0.00,COMMERCIAL SUPPLIER 
 15-12-2020,Adults,Outlook Care - 74 Neave Crescent,Residential Placements - Private Contractors Payment,28779.12,0.00,COMMERCIAL SUPPLIER 
 15-12-2020,Adults,Outlook Care - 74 Neave Crescent,Other Short Term Support,3716.17,0.00,COMMERCIAL SUPPLIER 
 15-12-2020,Adults,Aitch Care Homes (London) Ltd_Cherrycroft,Residential Placements - Private Contractors Payment,7292.64,0.00,COMMERCIAL SUPPLIER 
 15-12-2020,Adults,Black Swan International Ltd - Mid Meadows,Residential Placements - Private Contractors Payment,3672.00,0.00,COMMERCIAL SUPPLIER 
 15-12-2020,Adults,Black Swan International Ltd - Mid Meadows,Residential Placements - Private Contractors Payment,3570.00,0.00,COMMERCIAL SUPPLIER 
 15-12-2020,Adults,CAS Learning Disabilities Ltd,Residential Placements - Private Contractors Payment,8995.60,0.00,COMMERCIAL SUPPLIER 
 15-12-2020,Adults,Bluebell Residential & Nursing Home,Residential Placements - Private Contractors Payment,2233.08,0.00,COMMERCIAL SUPPLIER 
 15-12-2020,Adults,Roselock Ltd_a,Residential Placements - Private Contractors Payment,6920.64,0.00,COMMERCIAL SUPPLIER 
 15-12-2020,Adults,Roselock Ltd_a,Residential Placements - Private Contractors Payment,6920.64,0.00,COMMERCIAL SUPPLIER 
 15-12-2020,Adults,Acer Healthcare Operation Ltd,Nursing Homes - Private Contractors Payment,2407.20,0.00,COMMERCIAL SUPPLIER 
 15-12-2020,Adults,Acer Healthcare Operation Ltd,Nursing Homes - Private Contractors Payment,2513.28,0.00,COMMERCIAL SUPPLIER 
 15-12-2020,Adults,Endsleigh Care Ltd,Residential Placements - Private Contractors Payment,2784.60,0.00,COMMERCIAL SUPPLIER 
 15-12-2020,Adults,Endsleigh Care Ltd,Residential Placements - Private Contractors Payment,1856.40,0.00,COMMERCIAL SUPPLIER 
 15-12-2020,Adults,North London Care (Havering) Ltd_a,Other Short Term Support,2229.70,0.00,COMMERCIAL SUPPLIER 
 15-12-2020,Adults,North London Care (Havering) Ltd_a,Residential Placements - Private Contractors Payment,8231.80,0.00,COMMERCIAL SUPPLIER 
 15-12-2020,Adults,North London Care (Havering) Ltd_a,Residential Placements - Private Contractors Payment,6578.80,0.00,COMMERCIAL SUPPLIER 
 15-12-2020,Adults,North London Care (Havering) Ltd_a,Residential Placements - Private Contractors Payment,7001.28,0.00,COMMERCIAL SUPPLIER 
 15-12-2020,Adults,North London Care (Havering) Ltd_a,Residential Placements - Private Contractors Payment,7264.36,0.00,COMMERCIAL SUPPLIER 
 15-12-2020,Adults,Ranc Care Homes Ltd - Romford Care Centre,Other Short Term Support,42364.34,0.00,COMMERCIAL SUPPLIER 
 15-12-2020,Adults,Ranc Care Homes Ltd - Romford Care Centre,Residential Placements - Private Contractors Payment,2524.00,0.00,COMMERCIAL SUPPLIER 
 15-12-2020,Adults,Ranc Care Homes Ltd - Romford Care Centre,Residential Placements - Private Contractors Payment,2524.00,0.00,COMMERCIAL SUPPLIER 
 15-12-2020,Adults,Ranc Care Homes Ltd - Romford Care Centre,Nursing Homes - Private Contractors Payment,2460.00,0.00,COMMERCIAL SUPPLIER 
 15-12-2020,Adults,Ranc Care Homes Ltd - Romford Care Centre,Nursing Homes - Private Contractors Payment,2460.00,0.00,COMMERCIAL SUPPLIER 
 15-12-2020,Adults,Ranc Care Homes Ltd - Romford Care Centre,Residential Placements - Private Contractors Payment,2524.00,0.00,COMMERCIAL SUPPLIER 
 15-12-2020,Adults,Ranc Care Homes Ltd - Romford Care Centre,Residential Placements - Private Contractors Payment,2524.00,0.00,COMMERCIAL SUPPLIER 
 15-12-2020,Adults,Ranc Care Homes Ltd - Romford Care Centre,Nursing Homes - Private Contractors Payment,2460.00,0.00,COMMERCIAL SUPPLIER 
 15-12-2020,Adults,Ranc Care Homes Ltd - Romford Care Centre,Residential Placements - Private Contractors Payment,2524.00,0.00,COMMERCIAL SUPPLIER 
 15-12-2020,Adults,Ranc Care Homes Ltd - Romford Care Centre,Nursing Homes - Private Contractors Payment,2460.00,0.00,COMMERCIAL SUPPLIER 
 15-12-2020,Adults,Ranc Care Homes Ltd - Romford Care Centre,Nursing Homes - Private Contractors Payment,2296.00,0.00,COMMERCIAL SUPPLIER 
 15-12-2020,Adults,Satash Community Care Project Ltd,Residential Placements - Private Contractors Payment,6067.76,0.00,COMMERCIAL SUPPLIER 
 15-12-2020,Adults,Runwood Homes - Windle Court,Residential Placements - Private Contractors Payment,2431.40,0.00,COMMERCIAL SUPPLIER 
 15-12-2020,Adults,Two Trees Caring Home,Residential Placements - Private Contractors Payment,2759.16,0.00,COMMERCIAL SUPPLIER 
 15-12-2020,Adults,Care Management Group Ltd - Liliputs Farmhouse,Other Short Term Support,2972.93,0.00,COMMERCIAL SUPPLIER 
 15-12-2020,Adults,Care Management Group Ltd - Liliputs Farmhouse,Other Short Term Support,2601.32,0.00,COMMERCIAL SUPPLIER 
 15-12-2020,Adults,Care Management Group Ltd - Liliputs Farmhouse,Residential Placements - Private Contractors Payment,7727.60,0.00,COMMERCIAL SUPPLIER 
 15-12-2020,Adults,Care Management Group Ltd - Liliputs Farmhouse,Residential Placements - Private Contractors Payment,7914.64,0.00,COMMERCIAL SUPPLIER 
 15-12-2020,Adults,Care Management Group Ltd - Liliputs Farmhouse,Residential Placements - Private Contractors Payment,9609.48,0.00,COMMERCIAL SUPPLIER 
 15-12-2020,Adults,Leonard Cheshire Disability_a.,Residential Placements - Private Contractors Payment,4140.68,0.00,COMMERCIAL SUPPLIER 
 15-12-2020,Adults,Care Management Group Ltd - Meesons Lodge,Residential Placements - Private Contractors Payment,6762.72,0.00,COMMERCIAL SUPPLIER 
 15-12-2020,Adults,Care Management Group Ltd - Meesons Lodge,Residential Placements - Private Contractors Payment,6364.80,0.00,COMMERCIAL SUPPLIER 
 15-12-2020,Adults,Acorn Lodge Care Home,Residential Placements - Private Contractors Payment,4158.84,0.00,NON COMMERCIAL SUPPLIER 
 15-12-2020,Adults,Lily Close-Partnerships in Care,Residential Placements - Private Contractors Payment,5710.28,0.00,COMMERCIAL SUPPLIER 
 15-12-2020,Adults,Lily Close-Partnerships in Care,Other Short Term Support,3716.17,0.00,COMMERCIAL SUPPLIER 
 15-12-2020,Adults,St Andrews Lodge,Nursing Homes - Private Contractors Payment,2758.08,0.00,COMMERCIAL SUPPLIER 
 15-12-2020,Adults,Archangel Homecare Ltd,Residential Placements - Private Contractors Payment,2043.48,0.00,COMMERCIAL SUPPLIER 
 15-12-2020,Adults,Ashchurch House,Residential Placements - Private Contractors Payment,1664.00,0.00,COMMERCIAL SUPPLIER 
 15-12-2020,Adults,Ashchurch House,Residential Placements - Private Contractors Payment,3492.24,0.00,COMMERCIAL SUPPLIER 
 15-12-2020,Adults,Ashchurch House,Other Short Term Support,3716.17,0.00,COMMERCIAL SUPPLIER 
 15-12-2020,Adults,Ashchurch House,Residential Placements - Private Contractors Payment,4459.00,0.00,COMMERCIAL SUPPLIER 
 15-12-2020,Adults,Sunnyside House Ltd_a,Residential Placements - Private Contractors Payment,6330.84,0.00,COMMERCIAL SUPPLIER 
 15-12-2020,Adults,Sunnyside House Ltd_a,Residential Placements - Private Contractors Payment,5380.36,0.00,COMMERCIAL SUPPLIER 
 15-12-2020,Adults,Sunnyside House Ltd_a,Residential Placements - Private Contractors Payment,5524.64,0.00,COMMERCIAL SUPPLIER 
 15-12-2020,Adults,Meadowbanks,Residential Placements - Private Contractors Payment,4200.00,0.00,COMMERCIAL SUPPLIER 
 15-12-2020,Adults,Meadowbanks,Other Short Term Support,14864.68,0.00,COMMERCIAL SUPPLIER 
 15-12-2020,Adults,Florijn Care Ltd,Residential Placements - Private Contractors Payment,9579.84,0.00,COMMERCIAL SUPPLIER 
 15-12-2020,Adults,Larkfield Hall Ltd_a,Residential Placements - Private Contractors Payment,6595.12,0.00,COMMERCIAL SUPPLIER 
 15-12-2020,Adults,The Avenues Trust Support Services Glebe House,Nursing Homes - Private Contractors Payment,3957.24,0.00,COMMERCIAL SUPPLIER 
 15-12-2020,Adults,The Avenues Trust Support Services Glebe House,Nursing Homes - Private Contractors Payment,2564.28,0.00,COMMERCIAL SUPPLIER 
 15-12-2020,Adults,The Avenues Trust Support Services Glebe House,Nursing Homes - Private Contractors Payment,2564.28,0.00,COMMERCIAL SUPPLIER 
 15-12-2020,Adults,The Avenues Trust Support Services Glebe House,Nursing Homes - Private Contractors Payment,2564.28,0.00,COMMERCIAL SUPPLIER 
 15-12-2020,Adults,The Avenues Trust Support Services Glebe House,Nursing Homes - Private Contractors Payment,2564.28,0.00,COMMERCIAL SUPPLIER 
 15-12-2020,Adults,The Avenues Trust Support Services Glebe House,Other Short Term Support,4459.41,0.00,COMMERCIAL SUPPLIER 
 15-12-2020,Adults,The Avenues Trust Support Services Glebe House,Nursing Homes - Private Contractors Payment,4036.40,0.00,COMMERCIAL SUPPLIER 
 15-12-2020,Adults,The Avenues Trust Support Services Glebe House,Nursing Homes - Private Contractors Payment,4036.40,0.00,COMMERCIAL SUPPLIER 
 15-12-2020,Adults,The Avenues Trust Support Services Glebe House,Nursing Homes - Private Contractors Payment,4036.40,0.00,COMMERCIAL SUPPLIER 
 15-12-2020,Adults,The Avenues Trust Support Services Glebe House,Nursing Homes - Private Contractors Payment,4036.40,0.00,COMMERCIAL SUPPLIER 
 15-12-2020,Adults,The Avenues Trust Support Services Glebe House,Nursing Homes - Private Contractors Payment,4036.40,0.00,COMMERCIAL SUPPLIER 
 15-12-2020,Adults,The Avenues Trust Support Services Glebe House,Nursing Homes - Private Contractors Payment,4036.40,0.00,COMMERCIAL SUPPLIER 
 15-12-2020,Adults,The Avenues Trust Support Services Glebe House,Nursing Homes - Private Contractors Payment,4036.40,0.00,COMMERCIAL SUPPLIER 
 15-12-2020,Adults,The Avenues Trust Support Services Glebe House,Nursing Homes - Private Contractors Payment,3957.24,0.00,COMMERCIAL SUPPLIER 
 15-12-2020,Adults,The Avenues Trust Support Services Glebe House,Nursing Homes - Private Contractors Payment,3957.24,0.00,COMMERCIAL SUPPLIER 
 15-12-2020,Adults,The Avenues Trust Support Services Glebe House,Nursing Homes - Private Contractors Payment,3957.24,0.00,COMMERCIAL SUPPLIER 
 15-12-2020,Adults,The Avenues Trust Support Services Glebe House,Nursing Homes - Private Contractors Payment,3315.61,0.00,COMMERCIAL SUPPLIER 
 15-12-2020,Adults,The Avenues Trust Support Services Glebe House,Nursing Homes - Private Contractors Payment,4036.40,0.00,COMMERCIAL SUPPLIER 
 15-12-2020,Adults,The Avenues Trust Support Services Glebe House,Nursing Homes - Private Contractors Payment,4036.40,0.00,COMMERCIAL SUPPLIER 
 15-12-2020,Adults,Brenalwood Care Home,Residential Placements - Private Contractors Payment,2529.60,0.00,COMMERCIAL SUPPLIER 
 15-12-2020,Adults,Park View_a,Residential Placements - Private Contractors Payment,2277.84,0.00,COMMERCIAL SUPPLIER 
 15-12-2020,Adults,Bishops Croft - Craegmoor FCL New Directions,Residential Placements - Private Contractors Payment,6152.64,0.00,COMMERCIAL SUPPLIER 
 15-12-2020,Adults,The Cherry Tree - Care Mangement Group,Residential Placements - Private Contractors Payment,3856.28,0.00,COMMERCIAL SUPPLIER 
 15-12-2020,Adults,The Cherry Tree - Care Mangement Group,Other Short Term Support,2601.32,0.00,COMMERCIAL SUPPLIER 
 15-12-2020,Adults,Lotus Lodge,Residential Placements - Private Contractors Payment,8753.72,0.00,COMMERCIAL SUPPLIER 
 15-12-2020,Adults,Consensus Support Services Ltd - Kingston House,Residential Placements - Private Contractors Payment,6428.44,0.00,COMMERCIAL SUPPLIER 
 15-12-2020,Adults,Bluebell & Hawthorn,Residential Placements - Private Contractors Payment,5100.00,0.00,COMMERCIAL SUPPLIER 
 15-12-2020,Adults,Bluebell & Hawthorn,Residential Placements - Private Contractors Payment,5202.00,0.00,COMMERCIAL SUPPLIER 
 15-12-2020,Adults,Bluebell & Hawthorn,Nursing Homes - Private Contractors Payment,4738.96,0.00,COMMERCIAL SUPPLIER 
 15-12-2020,Adults,Bluebell & Hawthorn,Nursing Homes - Private Contractors Payment,4842.76,0.00,COMMERCIAL SUPPLIER 
 15-12-2020,Adults,Bluebell & Hawthorn,Residential Placements - Private Contractors Payment,5202.00,0.00,COMMERCIAL SUPPLIER 
 15-12-2020,Adults,Newnton House Residential Care Home,Residential Placements - Private Contractors Payment,3352.12,0.00,COMMERCIAL SUPPLIER 
 15-12-2020,Adults,Livability - John Grooms Court,Residential Placements - Private Contractors Payment,2210.72,0.00,COMMERCIAL SUPPLIER 
 15-12-2020,Adults,Livability - John Grooms Court,Residential Placements - Private Contractors Payment,2210.72,0.00,COMMERCIAL SUPPLIER 
 15-12-2020,Adults,Maple Health UK Limited - Maple Manor,Residential Placements - Private Contractors Payment,7001.28,0.00,COMMERCIAL SUPPLIER 
 15-12-2020,Adults,Voyage 1 Ltd - Quite Waters,Residential Placements - Private Contractors Payment,5842.88,0.00,COMMERCIAL SUPPLIER 
 15-12-2020,Adults,Willows Care Home - Churchgate Healthcare (Willows) Ltd,Other Short Term Support,26756.42,0.00,COMMERCIAL SUPPLIER 
 15-12-2020,Adults,Willows Care Home - Churchgate Healthcare (Willows) Ltd,Residential Placements - Private Contractors Payment,3541.44,0.00,COMMERCIAL SUPPLIER 
 15-12-2020,Adults,Willows Care Home - Churchgate Healthcare (Willows) Ltd,Residential Placements - Private Contractors Payment,2856.00,0.00,COMMERCIAL SUPPLIER 
 15-12-2020,Adults,Willows Care Home - Churchgate Healthcare (Willows) Ltd,Nursing Homes - Private Contractors Payment,2460.00,0.00,COMMERCIAL SUPPLIER 
 15-12-2020,Adults,Willows Care Home - Churchgate Healthcare (Willows) Ltd,Nursing Homes - Private Contractors Payment,2296.00,0.00,COMMERCIAL SUPPLIER 
 15-12-2020,Adults,Willows Care Home - Churchgate Healthcare (Willows) Ltd,Nursing Homes - Private Contractors Payment,3580.00,0.00,COMMERCIAL SUPPLIER 
 15-12-2020,Adults,Willows Care Home - Churchgate Healthcare (Willows) Ltd,Nursing Homes - Private Contractors Payment,2460.00,0.00,COMMERCIAL SUPPLIER 
 15-12-2020,Adults,The Royal National Institute for Deaf People ,Residential Placements - Private Contractors Payment,5456.76,0.00,COMMERCIAL SUPPLIER 
 15-12-2020,Adults,The Royal National Institute for Deaf People ,Residential Placements - Private Contractors Payment,6275.68,0.00,COMMERCIAL SUPPLIER 
 15-12-2020,Adults,Cedar Grange,Nursing Homes - Private Contractors Payment,3774.00,0.00,COMMERCIAL SUPPLIER 
 15-12-2020,Adults,Black Swan International Ltd - Drummonds,Residential Placements - Private Contractors Payment,2361.36,0.00,COMMERCIAL SUPPLIER 
 15-12-2020,Adults,Black Swan International Ltd - Drummonds,Residential Placements - Private Contractors Payment,2361.36,0.00,COMMERCIAL SUPPLIER 
 15-12-2020,Adults,TLC Care Homes Ltd - Point Clear,Residential Placements - Private Contractors Payment,7298.32,0.00,COMMERCIAL SUPPLIER 
 15-12-2020,Adults,Bethany House Care Home,Nursing Homes - Private Contractors Payment,3990.84,0.00,COMMERCIAL SUPPLIER 
 15-12-2020,Adults,St Mary's House,Residential Placements - Private Contractors Payment,2277.84,0.00,COMMERCIAL SUPPLIER 
 15-12-2020,Adults,Manor Lodge Care Home,Nursing Homes - Private Contractors Payment,2460.00,0.00,COMMERCIAL SUPPLIER 
 15-12-2020,Adults,Manor Lodge Care Home,Residential Placements - Private Contractors Payment,2371.96,0.00,COMMERCIAL SUPPLIER 
 15-12-2020,Adults,Angelic Care Resourcing Ltd,Nursing Homes - Private Contractors Payment,2728.52,0.00,COMMERCIAL SUPPLIER 
 15-12-2020,Adults,North Court Care Home,Residential Placements - Private Contractors Payment,2417.92,0.00,COMMERCIAL SUPPLIER 
 15-12-2020,Adults,Faircross 102,Residential Placements - Private Contractors Payment,5031.52,0.00,NON COMMERCIAL SUPPLIER 
 15-12-2020,Adults,The Maltings Care Home,Residential Placements - Private Contractors Payment,2113.04,0.00,COMMERCIAL SUPPLIER 
 15-12-2020,Adults,Richardson Partnership for Care,Residential Placements - Private Contractors Payment,4779.96,0.00,COMMERCIAL SUPPLIER 
 15-12-2020,Adults,The Orders of St John Care Trust_a,Residential Placements - Private Contractors Payment,2166.48,0.00,COMMERCIAL SUPPLIER 
 15-12-2020,Adults,Voyage Care Ltd - Wey House,Nursing Homes - Private Contractors Payment,4099.44,0.00,COMMERCIAL SUPPLIER 
 15-12-2020,Adults,Park Riding,Residential Placements - Private Contractors Payment,2154.80,0.00,COMMERCIAL SUPPLIER 
 15-12-2020,Adults,Zero Three Care Homes LLP_a,Residential Placements - Private Contractors Payment,11767.56,0.00,COMMERCIAL SUPPLIER 
 15-12-2020,Adults,Tealk Services Ltd,Residential Placements - Private Contractors Payment,3060.00,0.00,NON COMMERCIAL SUPPLIER 
 15-12-2020,Adults,Millard House Care Home,Residential Placements - Private Contractors Payment,2524.00,0.00,COMMERCIAL SUPPLIER 
 15-12-2020,Adults,Parkcare Homes (No 2) Ltd t/as Windsor House,Residential Placements - Private Contractors Payment,5632.28,0.00,COMMERCIAL SUPPLIER 
 15-12-2020,Adults,Lancam Care Services Ltd,Nursing Homes - Private Contractors Payment,3264.00,0.00,COMMERCIAL SUPPLIER 
 15-12-2020,Adults,The Laurels Nursing Home Hastings,Nursing Homes - Private Contractors Payment,2460.00,0.00,NON COMMERCIAL SUPPLIER 
 15-12-2020,Adults,Totham Lodge Care Home,Residential Placements - Private Contractors Payment,2754.00,0.00,COMMERCIAL SUPPLIER 
 15-12-2020,Adults,Carebase (Sewardstone) Ltd t/a Ashbrook Court,Residential Placements - Private Contractors Payment,2515.32,0.00,COMMERCIAL SUPPLIER 
 15-12-2020,Adults,Sanctuary Home Care Ltd - Shaftesbury Court,Residential Placements - Private Contractors Payment,2248.00,0.00,COMMERCIAL SUPPLIER 
 15-12-2020,Adults,Country Court Care Homes 2 Ltd - Walberton Place Care Home,Residential Placements - Private Contractors Payment,5000.00,0.00,COMMERCIAL SUPPLIER 
 15-12-2020,Adults,Runwood Homes Ltd - Kathryn Court,Residential Placements - Private Contractors Payment,2524.00,0.00,COMMERCIAL SUPPLIER 
 15-12-2020,Adults,Epilepsy Society,Residential Placements - Private Contractors Payment,5928.40,0.00,COMMERCIAL SUPPLIER 
 15-12-2020,Adults,Sanctuary Care.,Residential Placements - Private Contractors Payment,3184.00,0.00,COMMERCIAL SUPPLIER 
 15-12-2020,Adults,Footsteps Care Homes Ltd_a,Residential Placements - Private Contractors Payment,10800.00,0.00,COMMERCIAL SUPPLIER 
 15-12-2020,Adults,Acer Healthcare Operation Ltd,Residential Placements - Private Contractors Payment,3180.00,0.00,COMMERCIAL SUPPLIER 
 15-12-2020,Adults,Caretech Community Services Ltd,Residential Placements - Private Contractors Payment,12780.00,0.00,COMMERCIAL SUPPLIER 
 15-12-2020,Adults,Dussindale Park Nursing Home,Nursing Homes - Private Contractors Payment,656.64,0.00,COMMERCIAL SUPPLIER 
 15-12-2020,Adults,Heathcotes Group,Residential Placements - Private Contractors Payment,6259.80,0.00,COMMERCIAL SUPPLIER 
 15-12-2020,Adults,Manor Lodge_a,Other Short Term Support,5574.26,0.00,COMMERCIAL SUPPLIER 
 15-12-2020,Adults,Bethel Care Homes_a,Other Short Term Support,1114.85,0.00,COMMERCIAL SUPPLIER 
 15-12-2020,Adults,Cygnet Health Care,Other Short Term Support,1858.09,0.00,COMMERCIAL SUPPLIER 
 15-12-2020,Adults,Adjuvo Care and Support Ltd,Residential Placements - Private Contractors Payment,20632.62,0.00,COMMERCIAL SUPPLIER 
 15-12-2020,Adults,Adjuvo Care and Support Ltd,Residential Placements - Private Contractors Payment,11605.85,0.00,COMMERCIAL SUPPLIER 
 15-12-2020,Adults,Bettertogether Limited,Supported Other Accommodation - Private Contractors Payment,2056.00,0.00,NON COMMERCIAL SUPPLIER 
 15-12-2020,Adults,Bettertogether Limited,Supported Other Accommodation - Private Contractors Payment,2056.00,0.00,NON COMMERCIAL SUPPLIER 
 15-12-2020,Adults,Bettertogether Limited,Supported Other Accommodation - Private Contractors Payment,1612.00,0.00,NON COMMERCIAL SUPPLIER 
 15-12-2020,Adults,Bettertogether Limited,Supported Other Accommodation - Private Contractors Payment,1832.00,0.00,NON COMMERCIAL SUPPLIER 
 15-12-2020,Adults,Bettertogether Limited,Supported Other Accommodation - Private Contractors Payment,1832.00,0.00,NON COMMERCIAL SUPPLIER 
 15-12-2020,Adults,Bettertogether Limited,Supported Other Accommodation - Private Contractors Payment,1440.00,0.00,NON COMMERCIAL SUPPLIER 
 15-12-2020,Adults,Bettertogether Limited,Supported Other Accommodation - Private Contractors Payment,1832.00,0.00,NON COMMERCIAL SUPPLIER 
 15-12-2020,Adults,Bettertogether Limited,Supported Other Accommodation - Private Contractors Payment,1832.00,0.00,NON COMMERCIAL SUPPLIER 
 15-12-2020,Adults,Bettertogether Limited,Supported Other Accommodation - Private Contractors Payment,1612.00,0.00,NON COMMERCIAL SUPPLIER 
 15-12-2020,Adults,Bettertogether Limited,Supported Other Accommodation - Private Contractors Payment,1832.00,0.00,NON COMMERCIAL SUPPLIER 
 15-12-2020,Adults,TLC Care Homes Ltd,Supported Other Accommodation - Private Contractors Payment,12529.84,0.00,COMMERCIAL SUPPLIER 
 15-12-2020,Adults,2 Peel Way - Outlook Care,Home Care - Private Contractors Payment,900.00,0.00,NON COMMERCIAL SUPPLIER 
 15-12-2020,Adults,2 Peel Way - Outlook Care,Supported Other Accommodation - Private Contractors Payment,1606.92,0.00,NON COMMERCIAL SUPPLIER 
 15-12-2020,Adults,2 Peel Way - Outlook Care,Supported Other Accommodation - Private Contractors Payment,2851.44,0.00,NON COMMERCIAL SUPPLIER 
 15-12-2020,Adults,2 Peel Way - Outlook Care,Supported Other Accommodation - Private Contractors Payment,2189.48,0.00,NON COMMERCIAL SUPPLIER 
 15-12-2020,Adults,2 Peel Way - Outlook Care,Supported Other Accommodation - Private Contractors Payment,3678.84,0.00,NON COMMERCIAL SUPPLIER 
 15-12-2020,Adults,2 Peel Way - Outlook Care,Supported Other Accommodation - Private Contractors Payment,2685.96,0.00,NON COMMERCIAL SUPPLIER 
 15-12-2020,Adults,2 Peel Way - Outlook Care,Supported Other Accommodation - Private Contractors Payment,1260.00,0.00,NON COMMERCIAL SUPPLIER 
 15-12-2020,Adults,2 Peel Way - Outlook Care,Supported Other Accommodation - Private Contractors Payment,1575.40,0.00,NON COMMERCIAL SUPPLIER 
 15-12-2020,Adults,Outlook Care - 4 Peel Way,Supported Other Accommodation - Private Contractors Payment,2975.56,0.00,COMMERCIAL SUPPLIER 
 15-12-2020,Adults,Outlook Care - 4 Peel Way,Supported Other Accommodation - Private Contractors Payment,3262.36,0.00,COMMERCIAL SUPPLIER 
 15-12-2020,Adults,Outlook Care - 4 Peel Way,Supported Other Accommodation - Private Contractors Payment,3072.08,0.00,COMMERCIAL SUPPLIER 
 15-12-2020,Adults,Outlook Care - 4 Peel Way,Supported Other Accommodation - Private Contractors Payment,2672.16,0.00,COMMERCIAL SUPPLIER 
 15-12-2020,Adults,Outlook Care - 4 Peel Way,Supported Other Accommodation - Private Contractors Payment,1582.72,0.00,COMMERCIAL SUPPLIER 
 15-12-2020,Adults,Outlook Care - 4 Peel Way,Supported Other Accommodation - Private Contractors Payment,1158.40,0.00,COMMERCIAL SUPPLIER 
 15-12-2020,Adults,Outlook Care - 4 Peel Way,Supported Other Accommodation - Private Contractors Payment,1605.80,0.00,COMMERCIAL SUPPLIER 
 15-12-2020,Adults,Outlook Care - 4 Peel Way,Supported Other Accommodation - Private Contractors Payment,856.80,0.00,COMMERCIAL SUPPLIER 
 15-12-2020,Adults,Stable Family Home Trust BH24 3BN,Supported Other Accommodation - Private Contractors Payment,3797.68,0.00,COMMERCIAL SUPPLIER 
 15-12-2020,Adults,St Elizabeth's Centre_a,Supported Other Accommodation - Private Contractors Payment,10394.08,0.00,COMMERCIAL SUPPLIER 
 15-12-2020,Adults,Lodge Group Care UK Ltd,Supported Other Accommodation - Private Contractors Payment,7795.64,0.00,COMMERCIAL SUPPLIER 
 15-12-2020,Adults,Lodge Group Care UK Ltd,Supported Other Accommodation - Private Contractors Payment,8062.08,0.00,COMMERCIAL SUPPLIER 
